{"text_format":"1","workbook":"xlsx","n_sheets":3,"sheets":["Please Read","Interactive Report","Coding"],"not_rendered":{"charts":1,"images":2,"macros":1,"external_links":1,"defined_names":183,"comments":1,"pivot_tables":0},"unopened":[],"bounds":{"document_bytes":16777216,"sheet_cells":100000,"rows_first":2000,"rows_last":500,"rows_between":2000,"halvings":0,"cell_chars":16384,"cell_head_chars":4096},"cells_cut":0,"cells_raw":0,"read":"whole","date_system":"1900"}

{"sheet":"Please Read","index":0,"n_rows":141,"n_cols":3,"rows_kept":141,"cut":false,"hidden":false,"merged":[[61,1,61,9],[66,1,66,9],[67,1,67,9],[68,1,68,9],[48,1,48,9],[50,1,50,9],[52,1,52,9],[54,1,54,9],[57,1,57,9],[59,1,59,9],[42,1,42,9],[0,0,0,9],[1,0,1,9],[5,1,5,9],[6,2,6,8],[9,1,9,9]]}
[{"$f":"\"CIPFA Planning Service\"","v":"CIPFA Planning Service"}]
["INTERACTIVE REPORT"]
[]
[null,"A) What is the Interactive Report?"]
[]
[null,"The Interactive Report is another version of the club's final reports.  It contains the same data and will faithfully recreate the charts displayed in the pdf/hardcopy reports.  It is easy to use and provides additional information."]
[]
[null,"B) What are the advantages of the Interactive Report compared to the normal reports?"]
[]
[null,"The Interactive Report has the following advantages over the normal reports:"]
[]
[null,"1) The comparison group can be changed."]
[]
[null,"•  This enables multiple comparisons e.g. against neighbouring authorities, high performers or family groups."]
[null,"•  Different comparison groups can be used for different charts."]
[]
[null,"2) The value for each authority displaying on the graph is displayed in a table below the chart."]
[null,"This information is not available in the normal reports and has several uses."]
[]
[null,"• Giving detailed information on family groups, e.g. the values of the headline indicators for each member."]
[null,"• Identifying authorities with high, low or similar values."]
[null,"• Identifying quartiles, and which authorities fall into each quartile."]
[]
[null,"3) The format of the chart can be changed."]
[null,"The charts in our reports have been formatted to print clearly on a wide range of printers in both colour"]
[null,"and in black and white.  In the interactive report this can be amended to suit your preferences."]
[]
[null,"• The colour scheme can be amended to match 'corporate' colour schemes."]
[null,"• More 'aesthetic' options can be used."]
[]
[null,"4) Charts automatically print as an A4 page or charts can be copied to produce custom reports"]
[null,"or presentations."]
[]
[null,"• The Chart prints automatically as an A4 sheet containing all the relevant information."]
[null,"• Please see below for details of how to use this to copy charts and produce your own reports."]
[null,"This could be used to produce for example summary reports, any selection of charts or the same "]
[null,"chart compared to multiple comparison groups."]
[]
[null,"C) Instructions for the Interactive Report"]
[]
[null,"The report sheet is split into two sections:"]
[]
[null,"The Upper section: \nThis section prints out on one page of A4 paper.\nIt allows you to view or print out a copy of individual charts from the original report.  Using 3 controls, you can choose which graph is to be displayed, which authority's value you would like to see and within which comparator group set.\nIf the chosen chart contains less than 22 authorities' data, e.g. if the \"Original Comparators\" selection is chosen, a key with corresponding letters will appear on the right of the chart.\nThe boxes \"Black Bar\" and \"Average\" display the value of the selected authority and the average value across the selected comparator group."]
[null,"The three controls are in the form of three drop down lists:"]
[null,null,"Step 1 - Graph:  This selects the graph you would like to display"]
[null,null,"Step 2 - Authority:  This highlights any authority on the graph"]
[]
[]
[null,"The Bottom section: \nThis section does not print.  This section provides data for the authorities displaying on the graph and enables you to select customised comparison groups."]
[]
[null,"The contents of this bottom section are affected by the comparator group chosen in Step 3 of the Upper section.  Only authorities present in the selected comparator group will be displayed in the bottom section."]
[]
[null,"The table of data is automatically sorted by the value displayed on the chart.  This means that the first value showing in the table corresponds to the first bar on the left of the chart and so on.  You can change how the data is sorted by using the \"radio buttons\" at the top of the table."]
[]
[null,"Using the Radio buttons to sort the data:  \nThe small circles beside each column heading of the Bottom section are radio buttons.  By using these buttons, the information on the Bottom section can be sorted in a different order.  This has no effect on the way the chart is displayed.\n\n\"Short Name\", causes information to be displayed in alphabetical order.\n\"Data\", causes information to be displayed in descending order of the graph data.\n\"Tier\", causes information to be displayed by order of tier."]
[]
[null,"Selecting Authorities:"]
[null,"\nAuthorities of interest can be selected and then either be made to display at the top of the table, so their data can be found quickly or displayed on the chart on their own as a customised comparator group."]
[]
[null,"To select an authority:\nTick the tickbox beside the authority's name."]
[]
[null,"To unselect an authority:\nUntick the tickbox beside the authority's name."]
[]
[null,"You will then be able to use the two additional tick boxes to bring this data to the top of the table or to display"]
[null,"the selected group on the chart."]
[]
[null,"\"Force Selected Authorities to top\" tick box:  \nTicking this box has no effect on the chart itself but it will force the selected authorities to rise to the top of the table.  This would be particularly useful if you want to see how other authorities perform in the same comparator group."]
[null,"\"Display only selected authorities\" tick box:  \nWhen this is selected the chart will only display the authorities that have been selected.  If this is unchecked the chart will display all authorities in the overall Comparator Group from the Upper section.\n"]
[]
[null,"D) Copying Charts to produce your own reports"]
[]
[null,"Our Benchmarking reports contain a lot of information, and members may sometimes find it"]
[null,"useful to summarise key aspects, or incorporate some of this information into their own reports."]
[]
[null,"Charts produced in the Interactive Report can be used in member's own reports.  There are many"]
[null,"ways in which the charts can be copied, however some produce lower quality charts, here we give"]
[null,"two options."]
[]
[null,"In either case, the member may wish to change the format of the graph (colours/backgrounds/shading etc…)"]
[null,"to suit their requirements."]
[]
[null,"The Simpler method - however quality of charts may be reduced"]
[]
[null,"I) Highlight the chart:"]
[]
[null,null,"Hold down shift and left click on the chart.  The chart will be selected."]
[]
[null,"II) Copy the chart:"]
[]
[null,null,"Hold down shift and using the menus select Edit --> Copy Picture"]
[null,null,"Select the options \"As shown on screen\" and \"Picture\" and press Okay"]
[]
[null,"III) You can now paste the chart into a Word, Powerpoint or new Excel document."]
[]
[null,null,"(Edit --> Paste)"]
[]
[null,"A slightly longer method which produces full quality charts"]
[]
[null,"This method produces higher quality charts, but the 'size' (in kb) of the picture produced will also be"]
[null,"much bigger."]
[]
[null,"I) Remove the textured background for the view."]
[]
[null,null,"View --> \"Page Break Preview\""]
[]
[null,null,"You may need to refresh the screen.  This can been done by pressing \"Page Down\" "]
[null,null,"and then \"Page Up\". You may also wish to change the colour of the background."]
[]
[null,"II) Copy the whole Screen."]
[]
[null,null,"Press the \"Print Screen\" key."]
[]
[null,null,"You will need to make sure that the cursor and active cell are not in near the chart"]
[null,null,"to prevent them disrupting the picture."]
[]
[null,"III) Paste into a new Excel Worksheet (or word/powerpoint etc…)"]
[]
[null,null,"Edit --> Paste"]
[]
[null,"IV) Activate the \"Picture\" Toolbar."]
[]
[null,null,"View --> Toolbars --> Picture"]
[]
[null,"V) Crop the picture to leave only the chart."]
[]
[]
[]
[]
[]
[null,null,"Left click on the picture to activate it."]
[null,null,"Select the crop tool from the toolbar (circled above)."]
[null,null,"At the corners and centre of the sides short, thick black bars will appear."]
[null,null,"Move these bars to crop the picture to leave only the chart."]
[]
[null,"VI) The cropped picture can now be copied and pasted into your report."]
[]
[]
[null,"E) Please Note"]
[]
[null,"We hope that you find this reasonably intuitive to use after a little practice and that it provides "]
[null,{"$f":"\"some interesting comparisons.  If you have any queries please e-mail \"&[1]Coding!AV7","v":"some interesting comparisons.  If you have any queries please e-mail benchmarking@cipfa.org"}]

{"sheet":"Interactive Report","index":1,"n_rows":46,"n_cols":13,"rows_kept":46,"cut":false,"hidden":false,"merged":[[23,3,23,4],[28,1,28,11],[1,1,1,9]]}
[]
[null,{"$f":"\"CIPFA Planning Service Interactive Tool\"","v":"CIPFA Planning Service Interactive Tool"}]
[]
[null,null,null,null,null,null,null,null,null,null,null,{"$f":"IF(ISERROR(Coding!Z7),\"\",Coding!Z7)","v":"h"},{"$f":"IF(L4=\"\",\"\",OFFSET($C$35,MATCH(L4,OFFSET($D$35,0,0,Coding!$J$4,1),FALSE)-1,0,,))","v":"St Peters"}]
[null,null,null,null,null,null,null,null,null,null,null,{"$f":"IF(ISERROR(Coding!Z8),\"\",Coding!Z8)","v":"m"},{"$f":"IF(L5=\"\",\"\",OFFSET($C$35,MATCH(L5,OFFSET($D$35,0,0,Coding!$J$4,1),FALSE)-1,0,,))","v":"Christchapel"}]
[null,null,null,null,null,null,null,null,null,null,null,{"$f":"IF(ISERROR(Coding!Z9),\"\",Coding!Z9)","v":"d"},{"$f":"IF(L6=\"\",\"\",OFFSET($C$35,MATCH(L6,OFFSET($D$35,0,0,Coding!$J$4,1),FALSE)-1,0,,))","v":"Easthampton"}]
[null,null,null,null,null,null,null,null,null,null,null,{"$f":"IF(ISERROR(Coding!Z10),\"\",Coding!Z10)","v":"a"},{"$f":"IF(L7=\"\",\"\",OFFSET($C$35,MATCH(L7,OFFSET($D$35,0,0,Coding!$J$4,1),FALSE)-1,0,,))","v":"Meltrum"}]
[null,null,null,null,null,null,null,null,null,null,null,{"$f":"IF(ISERROR(Coding!Z11),\"\",Coding!Z11)","v":"x"},{"$f":"IF(L8=\"\",\"\",OFFSET($C$35,MATCH(L8,OFFSET($D$35,0,0,Coding!$J$4,1),FALSE)-1,0,,))","v":"Dimble"}]
[null,null,null,null,null,null,null,null,null,null,null,{"$f":"IF(ISERROR(Coding!Z12),\"\",Coding!Z12)","v":"k"},{"$f":"IF(L9=\"\",\"\",OFFSET($C$35,MATCH(L9,OFFSET($D$35,0,0,Coding!$J$4,1),FALSE)-1,0,,))","v":"Plout"}]
[null,null,null,null,null,null,null,null,null,null,null,{"$f":"IF(ISERROR(Coding!Z13),\"\",Coding!Z13)","v":"s"},{"$f":"IF(L10=\"\",\"\",OFFSET($C$35,MATCH(L10,OFFSET($D$35,0,0,Coding!$J$4,1),FALSE)-1,0,,))","v":"Kinbride"}]
[null,null,null,null,null,null,null,null,null,null,null,{"$f":"IF(ISERROR(Coding!Z14),\"\",Coding!Z14)","v":"f"},{"$f":"IF(L11=\"\",\"\",OFFSET($C$35,MATCH(L11,OFFSET($D$35,0,0,Coding!$J$4,1),FALSE)-1,0,,))","v":"Wroughton"}]
[null,null,null,null,null,null,null,null,null,null,null,{"$f":"IF(ISERROR(Coding!Z15),\"\",Coding!Z15)","v":"r"},{"$f":"IF(L12=\"\",\"\",OFFSET($C$35,MATCH(L12,OFFSET($D$35,0,0,Coding!$J$4,1),FALSE)-1,0,,))","v":"Galbraith"}]
[null,null,null,null,null,null,null,null,null,null,null,{"$f":"IF(ISERROR(Coding!Z16),\"\",Coding!Z16)","v":"z"},{"$f":"IF(L13=\"\",\"\",OFFSET($C$35,MATCH(L13,OFFSET($D$35,0,0,Coding!$J$4,1),FALSE)-1,0,,))","v":"Slockton"}]
[null,null,null,null,null,null,null,null,null,null,null,{"$f":"IF(ISERROR(Coding!Z17),\"\",Coding!Z17)","v":"e"},{"$f":"IF(L14=\"\",\"\",OFFSET($C$35,MATCH(L14,OFFSET($D$35,0,0,Coding!$J$4,1),FALSE)-1,0,,))","v":"Needham"}]
[null,null,null,null,null,null,null,null,null,null,null,{"$f":"IF(ISERROR(Coding!Z18),\"\",Coding!Z18)","v":"t"},{"$f":"IF(L15=\"\",\"\",OFFSET($C$35,MATCH(L15,OFFSET($D$35,0,0,Coding!$J$4,1),FALSE)-1,0,,))","v":"Mallender"}]
[]
[null,null,5]
[]
[]
[]
[]
[]
[]
[null,null,"Black Bar:   ",{"$f":"TEXT(Coding!AB2,OFFSET(Coding!$IU$2,MAX(Coding!$G$38-2,0),0))","v":""},null,null,null,"Average:   ",{"$f":"TEXT(IF(ISERROR(Coding!AB3),\"na\",Coding!AB3),OFFSET(Coding!$IU$2,MAX(Coding!$G$38-2,0),0))","v":"0.0%"}]
[]
[]
[]
[]
[null,"Confidential - Please remember that club information is confidential and named data must not be passed beyond club members."]
[]
[null,{"$f":"IF(Coding!J9=0,\"   These two tickboxes are currently inactive as no authorities are selected in the table below.\",\"   Use tickboxes to display selected authorities on graph or bring selected authorities to the top of the data table.\")","v":"   These two tickboxes are currently inactive as no authorities are selected in the table below."}]
[null,"         Bring selected authorities to top of data table",null,null,null,null,null,"Display selected authorities on chart"]
[null,"DATA TABLE",null,null,null,null,null,null,null,null,null,"Use radio buttons (next to Shortname, Data and Tier) to sort table."]
[null,"Select","    Authority:"," Letter:",null,"       Data:","       Tier:","Full Name:"]
[null,null,{"$f":"IF(ROW()-34>AuthNo,\"na\",Coding!AR7)","v":"St Peters"},{"$f":"IF(C35=\"\",\"\",VLOOKUP(C35,OFFSET(Coding!$L$7,0,0,AuthorityCounter,11),11,FALSE))","v":"h"},null,{"$f":"IF(C35=\"\",\"\",TEXT(VLOOKUP(C35,OFFSET(Coding!$L$7,0,0,AuthorityCounter,4),4,FALSE),OFFSET(Coding!$IU$2,MAX(Coding!$G$38-2,0),0)))","v":"0.0%"},{"$f":"IF(C35=\"\",\"\",VLOOKUP(C35,OFFSET(Coding!$L$7,0,0,AuthorityCounter,2),2,FALSE))","v":1},{"$f":"IF(C35=\"\",\"\",VLOOKUP(C35,NameRange,2,FALSE))","v":"St Peters"}]
[null,null,{"$f":"IF(ROW()-34>AuthNo,\"na\",Coding!AR8)","v":"Christchapel"},{"$f":"IF(C36=\"\",\"\",VLOOKUP(C36,OFFSET(Coding!$L$7,0,0,AuthorityCounter,11),11,FALSE))","v":"m"},null,{"$f":"IF(C36=\"\",\"\",TEXT(VLOOKUP(C36,OFFSET(Coding!$L$7,0,0,AuthorityCounter,4),4,FALSE),OFFSET(Coding!$IU$2,MAX(Coding!$G$38-2,0),0)))","v":"0.0%"},{"$f":"IF(C36=\"\",\"\",VLOOKUP(C36,OFFSET(Coding!$L$7,0,0,AuthorityCounter,2),2,FALSE))","v":3},{"$f":"IF(C36=\"\",\"\",VLOOKUP(C36,NameRange,2,FALSE))","v":"Christchapel"}]
[null,null,{"$f":"IF(ROW()-34>AuthNo,\"na\",Coding!AR9)","v":"Easthampton"},{"$f":"IF(C37=\"\",\"\",VLOOKUP(C37,OFFSET(Coding!$L$7,0,0,AuthorityCounter,11),11,FALSE))","v":"d"},null,{"$f":"IF(C37=\"\",\"\",TEXT(VLOOKUP(C37,OFFSET(Coding!$L$7,0,0,AuthorityCounter,4),4,FALSE),OFFSET(Coding!$IU$2,MAX(Coding!$G$38-2,0),0)))","v":"0.0%"},{"$f":"IF(C37=\"\",\"\",VLOOKUP(C37,OFFSET(Coding!$L$7,0,0,AuthorityCounter,2),2,FALSE))","v":1},"Easthampton"]
[null,null,{"$f":"IF(ROW()-34>AuthNo,\"na\",Coding!AR10)","v":"Meltrum"},{"$f":"IF(C38=\"\",\"\",VLOOKUP(C38,OFFSET(Coding!$L$7,0,0,AuthorityCounter,11),11,FALSE))","v":"a"},null,{"$f":"IF(C38=\"\",\"\",TEXT(VLOOKUP(C38,OFFSET(Coding!$L$7,0,0,AuthorityCounter,4),4,FALSE),OFFSET(Coding!$IU$2,MAX(Coding!$G$38-2,0),0)))","v":"0.0%"},{"$f":"IF(C38=\"\",\"\",VLOOKUP(C38,OFFSET(Coding!$L$7,0,0,AuthorityCounter,2),2,FALSE))","v":4},"Meltrum"]
[null,null,{"$f":"IF(ROW()-34>AuthNo,\"na\",Coding!AR11)","v":"Dimble"},{"$f":"IF(C39=\"\",\"\",VLOOKUP(C39,OFFSET(Coding!$L$7,0,0,AuthorityCounter,11),11,FALSE))","v":"x"},null,{"$f":"IF(C39=\"\",\"\",TEXT(VLOOKUP(C39,OFFSET(Coding!$L$7,0,0,AuthorityCounter,4),4,FALSE),OFFSET(Coding!$IU$2,MAX(Coding!$G$38-2,0),0)))","v":"0.0%"},{"$f":"IF(C39=\"\",\"\",VLOOKUP(C39,OFFSET(Coding!$L$7,0,0,AuthorityCounter,2),2,FALSE))","v":1},"Dimble"]
[null,null,{"$f":"IF(ROW()-34>AuthNo,\"na\",Coding!AR12)","v":"Plout"},{"$f":"IF(C40=\"\",\"\",VLOOKUP(C40,OFFSET(Coding!$L$7,0,0,AuthorityCounter,11),11,FALSE))","v":"k"},null,{"$f":"IF(C40=\"\",\"\",TEXT(VLOOKUP(C40,OFFSET(Coding!$L$7,0,0,AuthorityCounter,4),4,FALSE),OFFSET(Coding!$IU$2,MAX(Coding!$G$38-2,0),0)))","v":"0.0%"},{"$f":"IF(C40=\"\",\"\",VLOOKUP(C40,OFFSET(Coding!$L$7,0,0,AuthorityCounter,2),2,FALSE))","v":4},"Plout"]
[null,null,{"$f":"IF(ROW()-34>AuthNo,\"na\",Coding!AR13)","v":"Kinbride"},{"$f":"IF(C41=\"\",\"\",VLOOKUP(C41,OFFSET(Coding!$L$7,0,0,AuthorityCounter,11),11,FALSE))","v":"s"},null,{"$f":"IF(C41=\"\",\"\",TEXT(VLOOKUP(C41,OFFSET(Coding!$L$7,0,0,AuthorityCounter,4),4,FALSE),OFFSET(Coding!$IU$2,MAX(Coding!$G$38-2,0),0)))","v":"0.0%"},{"$f":"IF(C41=\"\",\"\",VLOOKUP(C41,OFFSET(Coding!$L$7,0,0,AuthorityCounter,2),2,FALSE))","v":2},"Kinbride"]
[null,null,{"$f":"IF(ROW()-34>AuthNo,\"na\",Coding!AR14)","v":"Wroughton"},{"$f":"IF(C42=\"\",\"\",VLOOKUP(C42,OFFSET(Coding!$L$7,0,0,AuthorityCounter,11),11,FALSE))","v":"f"},null,{"$f":"IF(C42=\"\",\"\",TEXT(VLOOKUP(C42,OFFSET(Coding!$L$7,0,0,AuthorityCounter,4),4,FALSE),OFFSET(Coding!$IU$2,MAX(Coding!$G$38-2,0),0)))","v":"0.0%"},{"$f":"IF(C42=\"\",\"\",VLOOKUP(C42,OFFSET(Coding!$L$7,0,0,AuthorityCounter,2),2,FALSE))","v":4},"Wroughton"]
[null,null,{"$f":"IF(ROW()-34>AuthNo,\"na\",Coding!AR15)","v":"Galbraith"},{"$f":"IF(C43=\"\",\"\",VLOOKUP(C43,OFFSET(Coding!$L$7,0,0,AuthorityCounter,11),11,FALSE))","v":"r"},null,{"$f":"IF(C43=\"\",\"\",TEXT(VLOOKUP(C43,OFFSET(Coding!$L$7,0,0,AuthorityCounter,4),4,FALSE),OFFSET(Coding!$IU$2,MAX(Coding!$G$38-2,0),0)))","v":"0.0%"},{"$f":"IF(C43=\"\",\"\",VLOOKUP(C43,OFFSET(Coding!$L$7,0,0,AuthorityCounter,2),2,FALSE))","v":1},"Galbraith"]
[null,null,{"$f":"IF(ROW()-34>AuthNo,\"na\",Coding!AR16)","v":"Slockton"},{"$f":"IF(C44=\"\",\"\",VLOOKUP(C44,OFFSET(Coding!$L$7,0,0,AuthorityCounter,11),11,FALSE))","v":"z"},null,{"$f":"IF(C44=\"\",\"\",TEXT(VLOOKUP(C44,OFFSET(Coding!$L$7,0,0,AuthorityCounter,4),4,FALSE),OFFSET(Coding!$IU$2,MAX(Coding!$G$38-2,0),0)))","v":"0.0%"},{"$f":"IF(C44=\"\",\"\",VLOOKUP(C44,OFFSET(Coding!$L$7,0,0,AuthorityCounter,2),2,FALSE))","v":2},"Slockton"]
[null,null,{"$f":"IF(ROW()-34>AuthNo,\"na\",Coding!AR17)","v":"Needham"},{"$f":"IF(C45=\"\",\"\",VLOOKUP(C45,OFFSET(Coding!$L$7,0,0,AuthorityCounter,11),11,FALSE))","v":"e"},null,{"$f":"IF(C45=\"\",\"\",TEXT(VLOOKUP(C45,OFFSET(Coding!$L$7,0,0,AuthorityCounter,4),4,FALSE),OFFSET(Coding!$IU$2,MAX(Coding!$G$38-2,0),0)))","v":"0.0%"},{"$f":"IF(C45=\"\",\"\",VLOOKUP(C45,OFFSET(Coding!$L$7,0,0,AuthorityCounter,2),2,FALSE))","v":1},"Needham"]
[null,null,{"$f":"IF(ROW()-34>AuthNo,\"na\",Coding!AR18)","v":"Mallender"},{"$f":"IF(C46=\"\",\"\",VLOOKUP(C46,OFFSET(Coding!$L$7,0,0,AuthorityCounter,11),11,FALSE))","v":"t"},null,{"$f":"IF(C46=\"\",\"\",TEXT(VLOOKUP(C46,OFFSET(Coding!$L$7,0,0,AuthorityCounter,4),4,FALSE),OFFSET(Coding!$IU$2,MAX(Coding!$G$38-2,0),0)))","v":"0.0%"},{"$f":"IF(C46=\"\",\"\",VLOOKUP(C46,OFFSET(Coding!$L$7,0,0,AuthorityCounter,2),2,FALSE))","v":2},"Mallender"]

{"sheet":"Coding","index":2,"n_rows":548,"n_cols":256,"rows_kept":548,"cut":false,"hidden":true,"merged":[[3,27,3,28]]}
["ChartTinfo",-1,-1,"Page Number","--- Please Select ---",null,null,null,null,null,null,null,null,null,null,null,null,null,null,null,null,null,null,null,"Check against current chartforms & test - black bars tend to be on wrong side.",null,null,null,null,null,null,null,null,null,null,null,null,null,null,null,null,null,null,null,null,null,null,null,null,null,null,null,null,null,null,null,null,null,null,null,null,null,null,null,null,null,null,null,null,null,null,null,null,null,null,null,null,null,null,null,null,null,null,null,null,null,null,null,null,null,null,null,null,null,null,null,null,null,null,null,null,null,null,null,null,null,null,null,null,null,null,null,null,null,null,null,null,null,null,null,null,null,null,null,null,null,null,null,null,null,null,null,null,null,null,null,null,null,null,null,null,null,null,null,null,null,null,null,null,null,null,null,null,null,null,null,null,null,null,null,null,null,null,null,null,null,null,null,null,null,null,null,null,null,null,null,null,null,null,null,null,null,null,null,null,null,null,null,null,null,null,null,null,null,null,null,null,null,null,null,null,null,null,null,null,null,null,null,null,null,null,null,null,null,null,null,null,null,null,null,null,null,null,null,null,null,null,null,null,null,null,null,null,null,null,null,null,null,null,null,null,null,null,null,null,null,null,null,null,null,null,null,null,"--- Please Select ---","TABLE","CHARTS"]
["(P.01)[01]Application income % handling cost",0,0,4,{"$f":"\"Page \"&D2&\": \" &RIGHT(A2,LEN(A2)-10)","v":"Page 4: Application income % handling cost"},null,null,null,"Authority Counter:  ",{"$f":"G405","v":12},null,"DATA PROCESSING BLOCK FOR CHARTS",null,null,null,null,null,null,null,null,null,null,null,null,null,null,"Black Bar: ",{"$f":"IF(Coding!G74=1,\"\",INDEX(OFFSET($O$6,0,0,AuthorityCounter2+1,6),Coding!G74,6))","v":""},"Letter",null,"SORTER PROCESSING FOR TABLE UNDER DATABASE",null,null,null,null,null,null,null,null,null,null,null,null,null,null,null,null,null,null,null,null,null,null,null,null,null,null,null,null,null,null,null,null,null,null,null,null,null,null,null,null,null,null,null,null,null,null,null,null,null,null,null,null,null,null,null,null,null,null,null,null,null,null,null,null,null,null,null,null,null,null,null,null,null,null,null,null,null,null,null,null,null,null,null,null,null,null,null,null,null,null,null,null,null,null,null,null,null,null,null,null,null,null,null,null,null,null,null,null,null,null,null,null,null,null,null,null,null,null,null,null,null,null,null,null,null,null,null,null,null,null,null,null,null,null,null,null,null,null,null,null,null,null,null,null,null,null,null,null,null,null,null,null,null,null,null,null,null,null,null,null,null,null,null,null,null,null,null,null,null,null,null,null,null,null,null,null,null,null,null,null,null,null,null,null,null,null,null,null,null,null,null,null,null,null,null,null,null,null,null,null,null,null,null,null,null,null,null,null,null,null,null,null,null,null,null,null,null,null,null,null,null,null,"Page 1: Application income % handling cost","0.0%",{"$f":"AB7","v":0}]
["(P.01)[02] Cost per productive hour of handling applications ",0,1,{"$f":"D2--OR(B3<>B2,LEFT(A3,5)<>LEFT(A2,5))","v":4},{"$f":"\"Page \"&D3&\": \" &RIGHT(A3,LEN(A3)-10)","v":"Page 4:  Cost per productive hour of handling applications "},null,null,null,"Charts counter:  ",{"$f":"G404","v":115},null,null,null,null,null,null,null,null,null,null,null,null,null,null,null,null,"Average: ",{"$f":"AVERAGE(OFFSET(Y7,0,0,Coding!J6,1))","v":0},{"$f":"INDEX(V6:V192,Coding!G74)","v":"Letters"},null,null,null,null,null,null,null,null,null,null,null,null,null,null,null,null,null,null,null,null,null,null,null,null,null,null,null,null,null,null,null,null,null,null,null,null,null,null,null,null,null,null,null,null,null,null,null,null,null,null,null,null,null,null,null,null,null,null,null,null,null,null,null,null,null,null,null,null,null,null,null,null,null,null,null,null,null,null,null,null,null,null,null,null,null,null,null,null,null,null,null,null,null,null,null,null,null,null,null,null,null,null,null,null,null,null,null,null,null,null,null,null,null,null,null,null,null,null,null,null,null,null,null,null,null,null,null,null,null,null,null,null,null,null,null,null,null,null,null,null,null,null,null,null,null,null,null,null,null,null,null,null,null,null,null,null,null,null,null,null,null,null,null,null,null,null,null,null,null,null,null,null,null,null,null,null,null,null,null,null,null,null,null,null,null,null,null,null,null,null,null,null,null,null,null,null,null,null,null,null,null,null,null,null,null,null,null,null,null,null,null,null,null,null,null,null,null,null,null,null,null,null,null,null,"Page 1:  Cost per productive hour of handling applications ","£#,##0",{"$f":"AB7","v":0}]
["(P.01)[03]Cost per productive hour of planning applications (indirect) ",0,2,{"$f":"D3--OR(B4<>B3,LEFT(A4,5)<>LEFT(A3,5))","v":4},{"$f":"\"Page \"&D4&\": \" &RIGHT(A4,LEN(A4)-10)","v":"Page 4: Cost per productive hour of planning applications (indirect) "},null,null,null,"Authorities in Group:  ",{"$f":"IF($H$75=\"OC\",COUNTIF(OFFSET($R$7,0,0,AuthorityCounter2,1),1),COUNTIF(OFFSET($P$7,0,0,AuthorityCounter2,1),1))","v":12},null,"Authority Details:",null,null,"Data Selection:",null,null,null,null,null,null,"Letters:",null,null,"Chart Data:",null,"Title: ",{"$f":"IF($G$38=1,\"Please use drop down list below to select graph\",RIGHT(OFFSET(A1,G38-1,0),LEN(OFFSET(A1,G38-1,0))-10))","v":"Please use drop down list below to select graph"},null,null,"1 = Auth, 2 = Tier, 3 = Data",null,null,null,null,null,null,null,null,null,null,null,null,null,null,null,null,null,null,null,null,null,null,null,null,null,null,null,null,null,null,null,null,null,null,null,null,null,null,null,null,null,null,null,null,null,null,null,null,null,null,null,null,null,null,null,null,null,null,null,null,null,null,null,null,null,null,null,null,null,null,null,null,null,null,null,null,null,null,null,null,null,null,null,null,null,null,null,null,null,null,null,null,null,null,null,null,null,null,null,null,null,null,null,null,null,null,null,null,null,null,null,null,null,null,null,null,null,null,null,null,null,null,null,null,null,null,null,null,null,null,null,null,null,null,null,null,null,null,null,null,null,null,null,null,null,null,null,null,null,null,null,null,null,null,null,null,null,null,null,null,null,null,null,null,null,null,null,null,null,null,null,null,null,null,null,null,null,null,null,null,null,null,null,null,null,null,null,null,null,null,null,null,null,null,null,null,null,null,null,null,null,null,null,null,null,null,null,null,null,null,null,null,null,null,null,null,null,null,null,null,null,null,"Page 1: Cost per productive hour of planning applications (indirect) ","£#,##0",{"$f":"AB7","v":0}]
["(P.01)[04]Cost per productive hour of planning policy",0,3,4,"Page 4: Cost per productive hour of planning policy",null,null,null,null,null,null,null,null,null,null,null,null,null,null,null,null,null,null,null,null,null,null,null,null,null,null,null,null,null,null,null,null,null,null,null,null,false,{"$f":"300-COUNTIF(AQ7:AQ306,\"\")-COUNTIF(AQ7:AQ306,\"0\")","v":12},null,null,null,"UPDATE THESE IF DIFFERENT:",null,null,null,null,null,null,null,null,null,null,null,null,null,null,null,null,null,null,null,null,null,null,null,null,null,null,null,null,null,null,null,null,null,null,null,null,null,null,null,null,null,null,null,null,null,null,null,null,null,null,null,null,null,null,null,null,null,null,null,null,null,null,null,null,null,null,null,null,null,null,null,null,null,null,null,null,null,null,null,null,null,null,null,null,null,null,null,null,null,null,null,null,null,null,null,null,null,null,null,null,null,null,null,null,null,null,null,null,null,null,null,null,null,null,null,null,null,null,null,null,null,null,null,null,null,null,null,null,null,null,null,null,null,null,null,null,null,null,null,null,null,null,null,null,null,null,null,null,null,null,null,null,null,null,null,null,null,null,null,null,null,null,null,null,null,null,null,null,null,null,null,null,null,null,null,null,null,null,null,null,null,null,null,null,null,null,null,null,null,null,null,null,null,null,null,null,null,null,null,null,null,null,null,null,null,null,"Page 1: Cost per productive hour of planning policy","£#,##0",{"$f":"AB7","v":0}]
["(P.01)[05]Cost per productive hour of compliance & delivery ",0,4,4,"Page 4: Cost per productive hour of compliance & delivery ",null,null,null,"Authorities on Graph:  ",{"$f":"SUMIF(OFFSET(Coding!$S$7,0,0,AuthorityCounter2,1),\"<>0\",OFFSET($S$7,0,0,AuthorityCounter2,1))","v":12},null,"--- Please Select ---","Tier",null,"Initial Data","Group","Manual","OC","Criteria","Chart Data",null,"Letters",null,null,"Ordered","Letter","Average","Black","Bars",null,1,null,null,null,"U(prev col)",null,null,null,0,"Group Selected",null,null,"Auth for table","U(prev col)",null,null,"Year:",2018,null,null,null,null,null,null,null,null,null,null,null,null,null,null,null,null,null,null,null,null,null,null,null,null,null,null,null,null,null,null,null,null,null,null,null,null,null,null,null,null,null,null,null,null,null,null,null,null,null,null,null,null,null,null,null,null,null,null,null,null,null,null,null,null,null,null,null,null,null,null,null,null,null,null,null,null,null,null,null,null,null,null,null,null,null,null,null,null,null,null,null,null,null,null,null,null,null,null,null,null,null,null,null,null,null,null,null,null,null,null,null,null,null,null,null,null,null,null,null,null,null,null,null,null,null,null,null,null,null,null,null,null,null,null,null,null,null,null,null,null,null,null,null,null,null,null,null,null,null,null,null,null,null,null,null,null,null,null,null,null,null,null,null,null,null,null,null,null,null,null,null,null,null,null,null,null,null,null,null,null,null,null,null,null,null,null,null,null,null,null,null,null,null,null,null,null,null,null,null,null,null,null,null,null,null,"Page 1: Cost per productive hour of compliance & delivery ","£#,##0",{"$f":"AB7","v":0}]
["(P.01)[01]Major non-residential: Total cost per application",22,0,6,"Page 6: Major non-residential: Total cost per application",null,null,null,"Show only selected Authorities tickbox:  ",false,null,{"$f":"IF((ROW()-6)<=AuthorityCounter,OFFSET($D$409,ROW()-6,0),\"\")","v":"St Peters"},{"$f":"IF((ROW()-6)<=AuthorityCounter,OFFSET($F$409,ROW()-6,0),\"\")","v":1},null,{"$f":"IF(ISNUMBER(--OFFSET($D$409,(ROW()-6)+$G$39+AuthorityCounter+5,$G$40)),OFFSET($D$409,(ROW()-6)+$G$39+AuthorityCounter+5,$G$40),\"na\")","v":0},{"$f":"IF((ROW()-5=$G$36),1,IF((M7=Coding!$H$75)+(Coding!$H$75=\"ALL\")+(Coding!$H$75=\"U\")*OR(M7=\"wu\",M7=\"su\",M7=\"ul\",M7=\"um\",M7=\"uu\")+(Coding!$H$75=\"na\")*AND(M7<>\"wu\",M7<>\"su\",M7<>\"ul\",M7<>\"um\",M7<>\"uu\",M7<>\"c\",M7<>\"d\",M7<>\"p\"),1,0))","v":1},false,{"$f":"IF(OR(NOT(ISERROR(MATCH(L7,OFFSET($H$410,$G$36-2,0,1,18),FALSE))),$G$75=L7),1,0+(($G$36=1)*($H$75=\"OC\")))","v":0},{"$f":"IF((ROW()-5=$G$36),1,IF($H$75=\"OC\",IF(NOT($J$10)+Q7,R7,0),IF(NOT($J$10)+Q7,P7,0)))","v":1},{"$f":"IF(S7=1,O7,\"not selected\")","v":0},null,{"$f":"IF((S7=1)*($J$6<22),INDEX($J$13:$J$33,SUM($S$7:S7),1),\"\")","v":"h"},{"$f":"COUNTIF($T$7:T7,T7)","v":1},null,{"$f":"IF((ROW()-6-$J$8)<1,\"na\",LARGE(OFFSET($T$7,0,0,AuthorityCounter2,1),ROW()-6-$J$8))","v":0},{"$f":"INDEX(V:V,SUMPRODUCT((OFFSET($T$7,0,0,AuthorityCounter2,1)=Y7)*1,(OFFSET($W$7,0,0,AuthorityCounter2,1)=COUNTIF($Y$7:Y7,Y7))*1,ROW(OFFSET($W$7,0,0,AuthorityCounter2,1))))","v":"h"},{"$f":"AB$3","v":0},{"$f":"IF((Y7=AB$2)*(Z7=AC$3)*(SUM($AB$6:AB6)=0),+Y7,0)","v":0},{"$f":"IF(ISNUMBER(AA7),Y7-AB7,\"na\")","v":0},null,{"$f":"IF($AE$6=3,O7,SUM((CODE(MID(CONCATENATE(UPPER(M7),\"aaaaaaaaaa\"),{1;2},1))-30)*{1;0.01}))","v":19.670000000000002},{"$f":"COUNTIF($AE$7:$AE7,AE7)","v":1},null,{"$f":"IF($AE$6=3,LARGE(OFFSET($AE$7,0,0,AuthorityCounter2,1),ROW()-6),SMALL(OFFSET($AE$7,0,0,AuthorityCounter2,1),ROW()-6))","v":19.670000000000002},{"$f":"IF(ISERROR(AH7),\"na\",AH7)","v":19.670000000000002},{"$f":"COUNTIF($AI$7:$AI7,AI7)","v":1},{"$f":"IF($AE$6=1,L7,OFFSET($L$1,SUMPRODUCT(--(OFFSET($AE$7,0,0,AuthorityCounter,1)=AI7),--(OFFSET($AF$7,0,0,AuthorityCounter,1)=COUNTIF($AI$7:AI7,AI7)),ROW(OFFSET($AF$7,0,0,AuthorityCounter,1)))-1,0))","v":"St Peters"},null,{"$f":"IF(VLOOKUP(AK7,colAM,IF($H$75=\"OC\",8,5),FALSE)=1,MAX(AM6:$AM$6)+1,0)","v":1},{"$f":"OFFSET($AK$1,ABS(SUMPRODUCT(--(colAN=(ROW()-6)),ROW(colAN))-1),0)","v":"St Peters"},{"$f":"IF(AN7=0,0,VLOOKUP(AN7,colAO,6,FALSE))","v":false},{"$f":"IF($AP$5,SUM(SUMPRODUCT(--AO$7:$AO7)*AO7,(SUMPRODUCT(--(AO$7:$AO7=FALSE))+SUMPRODUCT(--colAP))*(1-AO7)),ROW()-6)","v":1},{"$f":"OFFSET($AN$6,MATCH(ROW()-6,colAQ,FALSE),0)","v":"St Peters"},{"$f":"IF(ISERROR(AQ7),\"na\",AQ7)","v":"St Peters"},null,null,"E-mail:","benchmarking@cipfa.org",null,null,null,null,null,null,null,null,null,null,null,null,null,null,null,null,null,null,null,null,null,null,null,null,null,null,null,null,null,null,null,null,null,null,null,null,null,null,null,null,null,null,null,null,null,null,null,null,null,null,null,null,null,null,null,null,null,null,null,null,null,null,null,null,null,null,null,null,null,null,null,null,null,null,null,null,null,null,null,null,null,null,null,null,null,null,null,null,null,null,null,null,null,null,null,null,null,null,null,null,null,null,null,null,null,null,null,null,null,null,null,null,null,null,null,null,null,null,null,null,null,null,null,null,null,null,null,null,null,null,null,null,null,null,null,null,null,null,null,null,null,null,null,null,null,null,null,null,null,null,null,null,null,null,null,null,null,null,null,null,null,null,null,null,null,null,null,null,null,null,null,null,null,null,null,null,null,null,null,null,null,null,null,null,null,null,null,null,null,null,null,null,null,null,null,null,null,null,null,null,null,null,null,null,null,"Page 2: Major non-residential: Total cost per application","£#,##0",{"$f":"AB7","v":0}]
["(P.01)[02]Major non-residential: Receipt and validation costs per application",22,1,6,"Page 6: Major non-residential: Receipt and validation costs per application",null,null,null,"\"na\"s at start of Graph:  ",{"$f":"SUMPRODUCT(ISTEXT(OFFSET(T7,0,0,AuthorityCounter2,1))*1)-SUMPRODUCT((OFFSET(T7,0,0,AuthorityCounter2,1)=\"not selected\")*1)","v":0},null,"Christchapel",3,null,0,{"$f":"IF((ROW()-5=$G$36),1,IF((M8=Coding!$H$75)+(Coding!$H$75=\"ALL\")+(Coding!$H$75=\"U\")*OR(M8=\"wu\",M8=\"su\",M8=\"ul\",M8=\"um\",M8=\"uu\")+(Coding!$H$75=\"na\")*AND(M8<>\"wu\",M8<>\"su\",M8<>\"ul\",M8<>\"um\",M8<>\"uu\",M8<>\"c\",M8<>\"d\",M8<>\"p\"),1,0))","v":1},false,0,{"$f":"IF((ROW()-5=$G$36),1,IF($H$75=\"OC\",IF(NOT($J$10)+Q8,R8,0),IF(NOT($J$10)+Q8,P8,0)))","v":1},0,null,{"$f":"IF((S8=1)*($J$6<22),INDEX($J$13:$J$33,SUM($S$7:S8),1),\"\")","v":"m"},{"$f":"COUNTIF($T$7:T8,T8)","v":2},null,{"$f":"IF((ROW()-6-$J$8)<1,\"na\",LARGE(OFFSET($T$7,0,0,AuthorityCounter2,1),ROW()-6-$J$8))","v":0},{"$f":"INDEX(V:V,SUMPRODUCT((OFFSET($T$7,0,0,AuthorityCounter2,1)=Y8)*1,(OFFSET($W$7,0,0,AuthorityCounter2,1)=COUNTIF($Y$7:Y8,Y8))*1,ROW(OFFSET($W$7,0,0,AuthorityCounter2,1))))","v":"m"},0,{"$f":"IF((Y8=AB$2)*(Z8=AC$3)*(SUM($AB$6:AB7)=0),+Y8,0)","v":0},0,null,{"$f":"IF($AE$6=3,O8,SUM((CODE(MID(CONCATENATE(UPPER(M8),\"aaaaaaaaaa\"),{1;2},1))-30)*{1;0.01}))","v":21.67},{"$f":"COUNTIF($AE$7:$AE8,AE8)","v":1},null,19.670000000000002,19.670000000000002,{"$f":"COUNTIF($AI$7:$AI8,AI8)","v":2},{"$f":"IF($AE$6=1,L8,OFFSET($L$1,SUMPRODUCT(--(OFFSET($AE$7,0,0,AuthorityCounter,1)=AI8),--(OFFSET($AF$7,0,0,AuthorityCounter,1)=COUNTIF($AI$7:AI8,AI8)),ROW(OFFSET($AF$7,0,0,AuthorityCounter,1)))-1,0))","v":"Christchapel"},null,{"$f":"IF(VLOOKUP(AK8,colAM,IF($H$75=\"OC\",8,5),FALSE)=1,MAX(AM$6:$AM7)+1,0)","v":2},"Christchapel",false,{"$f":"IF($AP$5,SUM(SUMPRODUCT(--AO$7:$AO8)*AO8,(SUMPRODUCT(--(AO$7:$AO8=FALSE))+SUMPRODUCT(--colAP))*(1-AO8)),ROW()-6)","v":2},"Christchapel","Christchapel",null,null,null,null,null,null,null,null,null,null,null,null,null,null,null,null,null,null,null,null,null,null,null,null,null,null,null,null,null,null,null,null,null,null,null,null,null,null,null,null,null,null,null,null,null,null,null,null,null,null,null,null,null,null,null,null,null,null,null,null,null,null,null,null,null,null,null,null,null,null,null,null,null,null,null,null,null,null,null,null,null,null,null,null,null,null,null,null,null,null,null,null,null,null,null,null,null,null,null,null,null,null,null,null,null,null,null,null,null,null,null,null,null,null,null,null,null,null,null,null,null,null,null,null,null,null,null,null,null,null,null,null,null,null,null,null,null,null,null,null,null,null,null,null,null,null,null,null,null,null,null,null,null,null,null,null,null,null,null,null,null,null,null,null,null,null,null,null,null,null,null,null,null,null,null,null,null,null,null,null,null,null,null,null,null,null,null,null,null,null,null,null,null,null,null,null,null,null,null,null,null,null,null,null,null,null,null,null,null,"Page 2: Major non-residential: Receipt and validation costs per application","£#,##0",{"$f":"AB7","v":0}]
["(P.01)[03]Major non-residential: Consultation costs per application",22,2,6,"Page 6: Major non-residential: Consultation costs per application",null,null,null,"Number of Authorities Selected:  ",{"$f":"SUMPRODUCT((Q7:Q306=TRUE)*1,(P7:P306=1)*1)","v":0},null,"Easthampton",1,null,0,{"$f":"IF((ROW()-5=$G$36),1,IF((M9=Coding!$H$75)+(Coding!$H$75=\"ALL\")+(Coding!$H$75=\"U\")*OR(M9=\"wu\",M9=\"su\",M9=\"ul\",M9=\"um\",M9=\"uu\")+(Coding!$H$75=\"na\")*AND(M9<>\"wu\",M9<>\"su\",M9<>\"ul\",M9<>\"um\",M9<>\"uu\",M9<>\"c\",M9<>\"d\",M9<>\"p\"),1,0))","v":1},false,0,1,0,null,{"$f":"IF((S9=1)*($J$6<22),INDEX($J$13:$J$33,SUM($S$7:S9),1),\"\")","v":"d"},{"$f":"COUNTIF($T$7:T9,T9)","v":3},null,0,{"$f":"INDEX(V:V,SUMPRODUCT((OFFSET($T$7,0,0,AuthorityCounter2,1)=Y9)*1,(OFFSET($W$7,0,0,AuthorityCounter2,1)=COUNTIF($Y$7:Y9,Y9))*1,ROW(OFFSET($W$7,0,0,AuthorityCounter2,1))))","v":"d"},0,{"$f":"IF((Y9=AB$2)*(Z9=AC$3)*(SUM($AB$6:AB8)=0),+Y9,0)","v":0},0,null,{"$f":"IF($AE$6=3,O9,SUM((CODE(MID(CONCATENATE(UPPER(M9),\"aaaaaaaaaa\"),{1;2},1))-30)*{1;0.01}))","v":19.670000000000002},{"$f":"COUNTIF($AE$7:$AE9,AE9)","v":2},null,19.670000000000002,19.670000000000002,{"$f":"COUNTIF($AI$7:$AI9,AI9)","v":3},{"$f":"IF($AE$6=1,L9,OFFSET($L$1,SUMPRODUCT(--(OFFSET($AE$7,0,0,AuthorityCounter,1)=AI9),--(OFFSET($AF$7,0,0,AuthorityCounter,1)=COUNTIF($AI$7:AI9,AI9)),ROW(OFFSET($AF$7,0,0,AuthorityCounter,1)))-1,0))","v":"Easthampton"},null,{"$f":"IF(VLOOKUP(AK9,colAM,IF($H$75=\"OC\",8,5),FALSE)=1,MAX(AM$6:$AM8)+1,0)","v":3},"Easthampton",false,{"$f":"IF($AP$5,SUM(SUMPRODUCT(--AO$7:$AO9)*AO9,(SUMPRODUCT(--(AO$7:$AO9=FALSE))+SUMPRODUCT(--colAP))*(1-AO9)),ROW()-6)","v":3},"Easthampton","Easthampton",null,null,null,null,null,null,null,null,null,null,null,null,null,null,null,null,null,null,null,null,null,null,null,null,null,null,null,null,null,null,null,null,null,null,null,null,null,null,null,null,null,null,null,null,null,null,null,null,null,null,null,null,null,null,null,null,null,null,null,null,null,null,null,null,null,null,null,null,null,null,null,null,null,null,null,null,null,null,null,null,null,null,null,null,null,null,null,null,null,null,null,null,null,null,null,null,null,null,null,null,null,null,null,null,null,null,null,null,null,null,null,null,null,null,null,null,null,null,null,null,null,null,null,null,null,null,null,null,null,null,null,null,null,null,null,null,null,null,null,null,null,null,null,null,null,null,null,null,null,null,null,null,null,null,null,null,null,null,null,null,null,null,null,null,null,null,null,null,null,null,null,null,null,null,null,null,null,null,null,null,null,null,null,null,null,null,null,null,null,null,null,null,null,null,null,null,null,null,null,null,null,null,null,null,null,null,null,null,null,"Page 2: Major non-residential: Consultation costs per application","£#,##0",{"$f":"AB7","v":0}]
["(P.01)[04]Major non-residential: Evaluation and negotiation costs per application",22,3,6,"Page 6: Major non-residential: Evaluation and negotiation costs per application",null,null,null,"Show only selected Authorities Actual?:  ",{"$f":"IF(J9=0,FALSE,J7)","v":false},null,"Meltrum",4,null,0,{"$f":"IF((ROW()-5=$G$36),1,IF((M10=Coding!$H$75)+(Coding!$H$75=\"ALL\")+(Coding!$H$75=\"U\")*OR(M10=\"wu\",M10=\"su\",M10=\"ul\",M10=\"um\",M10=\"uu\")+(Coding!$H$75=\"na\")*AND(M10<>\"wu\",M10<>\"su\",M10<>\"ul\",M10<>\"um\",M10<>\"uu\",M10<>\"c\",M10<>\"d\",M10<>\"p\"),1,0))","v":1},false,0,1,0,null,{"$f":"IF((S10=1)*($J$6<22),INDEX($J$13:$J$33,SUM($S$7:S10),1),\"\")","v":"a"},{"$f":"COUNTIF($T$7:T10,T10)","v":4},null,0,{"$f":"INDEX(V:V,SUMPRODUCT((OFFSET($T$7,0,0,AuthorityCounter2,1)=Y10)*1,(OFFSET($W$7,0,0,AuthorityCounter2,1)=COUNTIF($Y$7:Y10,Y10))*1,ROW(OFFSET($W$7,0,0,AuthorityCounter2,1))))","v":"a"},0,{"$f":"IF((Y10=AB$2)*(Z10=AC$3)*(SUM($AB$6:AB9)=0),+Y10,0)","v":0},0,null,{"$f":"IF($AE$6=3,O10,SUM((CODE(MID(CONCATENATE(UPPER(M10),\"aaaaaaaaaa\"),{1;2},1))-30)*{1;0.01}))","v":22.67},{"$f":"COUNTIF($AE$7:$AE10,AE10)","v":1},null,19.670000000000002,19.670000000000002,{"$f":"COUNTIF($AI$7:$AI10,AI10)","v":4},{"$f":"IF($AE$6=1,L10,OFFSET($L$1,SUMPRODUCT(--(OFFSET($AE$7,0,0,AuthorityCounter,1)=AI10),--(OFFSET($AF$7,0,0,AuthorityCounter,1)=COUNTIF($AI$7:AI10,AI10)),ROW(OFFSET($AF$7,0,0,AuthorityCounter,1)))-1,0))","v":"Meltrum"},null,{"$f":"IF(VLOOKUP(AK10,colAM,IF($H$75=\"OC\",8,5),FALSE)=1,MAX(AM$6:$AM9)+1,0)","v":4},"Meltrum",false,{"$f":"IF($AP$5,SUM(SUMPRODUCT(--AO$7:$AO10)*AO10,(SUMPRODUCT(--(AO$7:$AO10=FALSE))+SUMPRODUCT(--colAP))*(1-AO10)),ROW()-6)","v":4},"Meltrum","Meltrum",null,null,null,null,null,null,null,null,null,null,null,null,null,null,null,null,null,null,null,null,null,null,null,null,null,null,null,null,null,null,null,null,null,null,null,null,null,null,null,null,null,null,null,null,null,null,null,null,null,null,null,null,null,null,null,null,null,null,null,null,null,null,null,null,null,null,null,null,null,null,null,null,null,null,null,null,null,null,null,null,null,null,null,null,null,null,null,null,null,null,null,null,null,null,null,null,null,null,null,null,null,null,null,null,null,null,null,null,null,null,null,null,null,null,null,null,null,null,null,null,null,null,null,null,null,null,null,null,null,null,null,null,null,null,null,null,null,null,null,null,null,null,null,null,null,null,null,null,null,null,null,null,null,null,null,null,null,null,null,null,null,null,null,null,null,null,null,null,null,null,null,null,null,null,null,null,null,null,null,null,null,null,null,null,null,null,null,null,null,null,null,null,null,null,null,null,null,null,null,null,null,null,null,null,null,null,null,null,null,"Page 2: Major non-residential: Evaluation and negotiation costs per application","£#,##0",{"$f":"AB7","v":0}]
["(P.01)[05]Major non-residential: Delegated reports and decisions costs per application\n",22,4,6,"Page 6: Major non-residential: Delegated reports and decisions costs per application\n",null,null,null,"Cell for greying out tickboxes:  ",{"$error":"#N/A"},null,"Dimble",1,null,0,{"$f":"IF((ROW()-5=$G$36),1,IF((M11=Coding!$H$75)+(Coding!$H$75=\"ALL\")+(Coding!$H$75=\"U\")*OR(M11=\"wu\",M11=\"su\",M11=\"ul\",M11=\"um\",M11=\"uu\")+(Coding!$H$75=\"na\")*AND(M11<>\"wu\",M11<>\"su\",M11<>\"ul\",M11<>\"um\",M11<>\"uu\",M11<>\"c\",M11<>\"d\",M11<>\"p\"),1,0))","v":1},false,0,1,0,null,{"$f":"IF((S11=1)*($J$6<22),INDEX($J$13:$J$33,SUM($S$7:S11),1),\"\")","v":"x"},{"$f":"COUNTIF($T$7:T11,T11)","v":5},null,0,{"$f":"INDEX(V:V,SUMPRODUCT((OFFSET($T$7,0,0,AuthorityCounter2,1)=Y11)*1,(OFFSET($W$7,0,0,AuthorityCounter2,1)=COUNTIF($Y$7:Y11,Y11))*1,ROW(OFFSET($W$7,0,0,AuthorityCounter2,1))))","v":"x"},0,{"$f":"IF((Y11=AB$2)*(Z11=AC$3)*(SUM($AB$6:AB10)=0),+Y11,0)","v":0},0,null,{"$f":"IF($AE$6=3,O11,SUM((CODE(MID(CONCATENATE(UPPER(M11),\"aaaaaaaaaa\"),{1;2},1))-30)*{1;0.01}))","v":19.670000000000002},{"$f":"COUNTIF($AE$7:$AE11,AE11)","v":3},null,19.670000000000002,19.670000000000002,{"$f":"COUNTIF($AI$7:$AI11,AI11)","v":5},{"$f":"IF($AE$6=1,L11,OFFSET($L$1,SUMPRODUCT(--(OFFSET($AE$7,0,0,AuthorityCounter,1)=AI11),--(OFFSET($AF$7,0,0,AuthorityCounter,1)=COUNTIF($AI$7:AI11,AI11)),ROW(OFFSET($AF$7,0,0,AuthorityCounter,1)))-1,0))","v":"Dimble"},null,{"$f":"IF(VLOOKUP(AK11,colAM,IF($H$75=\"OC\",8,5),FALSE)=1,MAX(AM$6:$AM10)+1,0)","v":5},"Dimble",false,{"$f":"IF($AP$5,SUM(SUMPRODUCT(--AO$7:$AO11)*AO11,(SUMPRODUCT(--(AO$7:$AO11=FALSE))+SUMPRODUCT(--colAP))*(1-AO11)),ROW()-6)","v":5},"Dimble","Dimble",null,null,null,null,null,null,null,null,null,null,null,null,null,null,null,null,null,null,null,null,null,null,null,null,null,null,null,null,null,null,null,null,null,null,null,null,null,null,null,null,null,null,null,null,null,null,null,null,null,null,null,null,null,null,null,null,null,null,null,null,null,null,null,null,null,null,null,null,null,null,null,null,null,null,null,null,null,null,null,null,null,null,null,null,null,null,null,null,null,null,null,null,null,null,null,null,null,null,null,null,null,null,null,null,null,null,null,null,null,null,null,null,null,null,null,null,null,null,null,null,null,null,null,null,null,null,null,null,null,null,null,null,null,null,null,null,null,null,null,null,null,null,null,null,null,null,null,null,null,null,null,null,null,null,null,null,null,null,null,null,null,null,null,null,null,null,null,null,null,null,null,null,null,null,null,null,null,null,null,null,null,null,null,null,null,null,null,null,null,null,null,null,null,null,null,null,null,null,null,null,null,null,null,null,null,null,null,null,null,"Page 2: Major non-residential: Delegated reports and decisions costs per application\n","£#,##0",{"$f":"AB7","v":0}]
["(P.01)[06]Major non-residential: Committee reports and decisions costs per application",22,5,6,"Page 6: Major non-residential: Committee reports and decisions costs per application",null,null,null,null,"Letters",null,"Plout",4,null,0,{"$f":"IF((ROW()-5=$G$36),1,IF((M12=Coding!$H$75)+(Coding!$H$75=\"ALL\")+(Coding!$H$75=\"U\")*OR(M12=\"wu\",M12=\"su\",M12=\"ul\",M12=\"um\",M12=\"uu\")+(Coding!$H$75=\"na\")*AND(M12<>\"wu\",M12<>\"su\",M12<>\"ul\",M12<>\"um\",M12<>\"uu\",M12<>\"c\",M12<>\"d\",M12<>\"p\"),1,0))","v":1},false,0,1,0,null,{"$f":"IF((S12=1)*($J$6<22),INDEX($J$13:$J$33,SUM($S$7:S12),1),\"\")","v":"k"},{"$f":"COUNTIF($T$7:T12,T12)","v":6},null,0,{"$f":"INDEX(V:V,SUMPRODUCT((OFFSET($T$7,0,0,AuthorityCounter2,1)=Y12)*1,(OFFSET($W$7,0,0,AuthorityCounter2,1)=COUNTIF($Y$7:Y12,Y12))*1,ROW(OFFSET($W$7,0,0,AuthorityCounter2,1))))","v":"k"},0,{"$f":"IF((Y12=AB$2)*(Z12=AC$3)*(SUM($AB$6:AB11)=0),+Y12,0)","v":0},0,null,{"$f":"IF($AE$6=3,O12,SUM((CODE(MID(CONCATENATE(UPPER(M12),\"aaaaaaaaaa\"),{1;2},1))-30)*{1;0.01}))","v":22.67},{"$f":"COUNTIF($AE$7:$AE12,AE12)","v":2},null,20.67,20.67,{"$f":"COUNTIF($AI$7:$AI12,AI12)","v":1},{"$f":"IF($AE$6=1,L12,OFFSET($L$1,SUMPRODUCT(--(OFFSET($AE$7,0,0,AuthorityCounter,1)=AI12),--(OFFSET($AF$7,0,0,AuthorityCounter,1)=COUNTIF($AI$7:AI12,AI12)),ROW(OFFSET($AF$7,0,0,AuthorityCounter,1)))-1,0))","v":"Plout"},null,{"$f":"IF(VLOOKUP(AK12,colAM,IF($H$75=\"OC\",8,5),FALSE)=1,MAX(AM$6:$AM11)+1,0)","v":6},"Plout",false,{"$f":"IF($AP$5,SUM(SUMPRODUCT(--AO$7:$AO12)*AO12,(SUMPRODUCT(--(AO$7:$AO12=FALSE))+SUMPRODUCT(--colAP))*(1-AO12)),ROW()-6)","v":6},"Plout","Plout",null,null,null,null,null,null,null,null,null,null,null,null,null,null,null,null,null,null,null,null,null,null,null,null,null,null,null,null,null,null,null,null,null,null,null,null,null,null,null,null,null,null,null,null,null,null,null,null,null,null,null,null,null,null,null,null,null,null,null,null,null,null,null,null,null,null,null,null,null,null,null,null,null,null,null,null,null,null,null,null,null,null,null,null,null,null,null,null,null,null,null,null,null,null,null,null,null,null,null,null,null,null,null,null,null,null,null,null,null,null,null,null,null,null,null,null,null,null,null,null,null,null,null,null,null,null,null,null,null,null,null,null,null,null,null,null,null,null,null,null,null,null,null,null,null,null,null,null,null,null,null,null,null,null,null,null,null,null,null,null,null,null,null,null,null,null,null,null,null,null,null,null,null,null,null,null,null,null,null,null,null,null,null,null,null,null,null,null,null,null,null,null,null,null,null,null,null,null,null,null,null,null,null,null,null,null,null,null,null,"Page 2: Major non-residential: Committee reports and decisions costs per application","£#,##0",{"$f":"AB7","v":0}]
["(P.01)[07]Major non-residential: Decision notice and agreements costs per application",22,6,6,"Page 6: Major non-residential: Decision notice and agreements costs per application",null,null,null,null,"h",null,"Kinbride",2,null,0,{"$f":"IF((ROW()-5=$G$36),1,IF((M13=Coding!$H$75)+(Coding!$H$75=\"ALL\")+(Coding!$H$75=\"U\")*OR(M13=\"wu\",M13=\"su\",M13=\"ul\",M13=\"um\",M13=\"uu\")+(Coding!$H$75=\"na\")*AND(M13<>\"wu\",M13<>\"su\",M13<>\"ul\",M13<>\"um\",M13<>\"uu\",M13<>\"c\",M13<>\"d\",M13<>\"p\"),1,0))","v":1},false,0,1,0,null,{"$f":"IF((S13=1)*($J$6<22),INDEX($J$13:$J$33,SUM($S$7:S13),1),\"\")","v":"s"},{"$f":"COUNTIF($T$7:T13,T13)","v":7},null,0,{"$f":"INDEX(V:V,SUMPRODUCT((OFFSET($T$7,0,0,AuthorityCounter2,1)=Y13)*1,(OFFSET($W$7,0,0,AuthorityCounter2,1)=COUNTIF($Y$7:Y13,Y13))*1,ROW(OFFSET($W$7,0,0,AuthorityCounter2,1))))","v":"s"},0,{"$f":"IF((Y13=AB$2)*(Z13=AC$3)*(SUM($AB$6:AB12)=0),+Y13,0)","v":0},0,null,{"$f":"IF($AE$6=3,O13,SUM((CODE(MID(CONCATENATE(UPPER(M13),\"aaaaaaaaaa\"),{1;2},1))-30)*{1;0.01}))","v":20.67},{"$f":"COUNTIF($AE$7:$AE13,AE13)","v":1},null,20.67,20.67,{"$f":"COUNTIF($AI$7:$AI13,AI13)","v":2},{"$f":"IF($AE$6=1,L13,OFFSET($L$1,SUMPRODUCT(--(OFFSET($AE$7,0,0,AuthorityCounter,1)=AI13),--(OFFSET($AF$7,0,0,AuthorityCounter,1)=COUNTIF($AI$7:AI13,AI13)),ROW(OFFSET($AF$7,0,0,AuthorityCounter,1)))-1,0))","v":"Kinbride"},null,{"$f":"IF(VLOOKUP(AK13,colAM,IF($H$75=\"OC\",8,5),FALSE)=1,MAX(AM$6:$AM12)+1,0)","v":7},"Kinbride",false,{"$f":"IF($AP$5,SUM(SUMPRODUCT(--AO$7:$AO13)*AO13,(SUMPRODUCT(--(AO$7:$AO13=FALSE))+SUMPRODUCT(--colAP))*(1-AO13)),ROW()-6)","v":7},"Kinbride","Kinbride",null,null,null,null,null,null,null,null,null,null,null,null,null,null,null,null,null,null,null,null,null,null,null,null,null,null,null,null,null,null,null,null,null,null,null,null,null,null,null,null,null,null,null,null,null,null,null,null,null,null,null,null,null,null,null,null,null,null,null,null,null,null,null,null,null,null,null,null,null,null,null,null,null,null,null,null,null,null,null,null,null,null,null,null,null,null,null,null,null,null,null,null,null,null,null,null,null,null,null,null,null,null,null,null,null,null,null,null,null,null,null,null,null,null,null,null,null,null,null,null,null,null,null,null,null,null,null,null,null,null,null,null,null,null,null,null,null,null,null,null,null,null,null,null,null,null,null,null,null,null,null,null,null,null,null,null,null,null,null,null,null,null,null,null,null,null,null,null,null,null,null,null,null,null,null,null,null,null,null,null,null,null,null,null,null,null,null,null,null,null,null,null,null,null,null,null,null,null,null,null,null,null,null,null,null,null,null,null,null,"Page 2: Major non-residential: Decision notice and agreements costs per application","£#,##0",{"$f":"AB7","v":0}]
["(P.01)[08]Major non-residential: Planning appeals costs per application",22,7,6,"Page 6: Major non-residential: Planning appeals costs per application",null,null,null,null,"m",null,"Wroughton",4,null,0,{"$f":"IF((ROW()-5=$G$36),1,IF((M14=Coding!$H$75)+(Coding!$H$75=\"ALL\")+(Coding!$H$75=\"U\")*OR(M14=\"wu\",M14=\"su\",M14=\"ul\",M14=\"um\",M14=\"uu\")+(Coding!$H$75=\"na\")*AND(M14<>\"wu\",M14<>\"su\",M14<>\"ul\",M14<>\"um\",M14<>\"uu\",M14<>\"c\",M14<>\"d\",M14<>\"p\"),1,0))","v":1},false,0,1,0,null,{"$f":"IF((S14=1)*($J$6<22),INDEX($J$13:$J$33,SUM($S$7:S14),1),\"\")","v":"f"},{"$f":"COUNTIF($T$7:T14,T14)","v":8},null,0,{"$f":"INDEX(V:V,SUMPRODUCT((OFFSET($T$7,0,0,AuthorityCounter2,1)=Y14)*1,(OFFSET($W$7,0,0,AuthorityCounter2,1)=COUNTIF($Y$7:Y14,Y14))*1,ROW(OFFSET($W$7,0,0,AuthorityCounter2,1))))","v":"f"},0,{"$f":"IF((Y14=AB$2)*(Z14=AC$3)*(SUM($AB$6:AB13)=0),+Y14,0)","v":0},0,null,{"$f":"IF($AE$6=3,O14,SUM((CODE(MID(CONCATENATE(UPPER(M14),\"aaaaaaaaaa\"),{1;2},1))-30)*{1;0.01}))","v":22.67},{"$f":"COUNTIF($AE$7:$AE14,AE14)","v":3},null,20.67,20.67,{"$f":"COUNTIF($AI$7:$AI14,AI14)","v":3},{"$f":"IF($AE$6=1,L14,OFFSET($L$1,SUMPRODUCT(--(OFFSET($AE$7,0,0,AuthorityCounter,1)=AI14),--(OFFSET($AF$7,0,0,AuthorityCounter,1)=COUNTIF($AI$7:AI14,AI14)),ROW(OFFSET($AF$7,0,0,AuthorityCounter,1)))-1,0))","v":"Wroughton"},null,{"$f":"IF(VLOOKUP(AK14,colAM,IF($H$75=\"OC\",8,5),FALSE)=1,MAX(AM$6:$AM13)+1,0)","v":8},"Wroughton",false,{"$f":"IF($AP$5,SUM(SUMPRODUCT(--AO$7:$AO14)*AO14,(SUMPRODUCT(--(AO$7:$AO14=FALSE))+SUMPRODUCT(--colAP))*(1-AO14)),ROW()-6)","v":8},"Wroughton","Wroughton",null,null,null,null,null,null,null,null,null,null,null,null,null,null,null,null,null,null,null,null,null,null,null,null,null,null,null,null,null,null,null,null,null,null,null,null,null,null,null,null,null,null,null,null,null,null,null,null,null,null,null,null,null,null,null,null,null,null,null,null,null,null,null,null,null,null,null,null,null,null,null,null,null,null,null,null,null,null,null,null,null,null,null,null,null,null,null,null,null,null,null,null,null,null,null,null,null,null,null,null,null,null,null,null,null,null,null,null,null,null,null,null,null,null,null,null,null,null,null,null,null,null,null,null,null,null,null,null,null,null,null,null,null,null,null,null,null,null,null,null,null,null,null,null,null,null,null,null,null,null,null,null,null,null,null,null,null,null,null,null,null,null,null,null,null,null,null,null,null,null,null,null,null,null,null,null,null,null,null,null,null,null,null,null,null,null,null,null,null,null,null,null,null,null,null,null,null,null,null,null,null,null,null,null,null,null,null,null,null,"Page 2: Major non-residential: Planning appeals costs per application","£#,##0",{"$f":"AB7","v":0}]
["(P.02)[01]All dwellings: Total cost per application\n\n",22,8,7,"Page 7: All dwellings: Total cost per application\n\n",null,null,null,null,"d",null,"Galbraith",1,null,0,{"$f":"IF((ROW()-5=$G$36),1,IF((M15=Coding!$H$75)+(Coding!$H$75=\"ALL\")+(Coding!$H$75=\"U\")*OR(M15=\"wu\",M15=\"su\",M15=\"ul\",M15=\"um\",M15=\"uu\")+(Coding!$H$75=\"na\")*AND(M15<>\"wu\",M15<>\"su\",M15<>\"ul\",M15<>\"um\",M15<>\"uu\",M15<>\"c\",M15<>\"d\",M15<>\"p\"),1,0))","v":1},false,0,1,0,null,{"$f":"IF((S15=1)*($J$6<22),INDEX($J$13:$J$33,SUM($S$7:S15),1),\"\")","v":"r"},{"$f":"COUNTIF($T$7:T15,T15)","v":9},null,0,{"$f":"INDEX(V:V,SUMPRODUCT((OFFSET($T$7,0,0,AuthorityCounter2,1)=Y15)*1,(OFFSET($W$7,0,0,AuthorityCounter2,1)=COUNTIF($Y$7:Y15,Y15))*1,ROW(OFFSET($W$7,0,0,AuthorityCounter2,1))))","v":"r"},0,{"$f":"IF((Y15=AB$2)*(Z15=AC$3)*(SUM($AB$6:AB14)=0),+Y15,0)","v":0},0,null,{"$f":"IF($AE$6=3,O15,SUM((CODE(MID(CONCATENATE(UPPER(M15),\"aaaaaaaaaa\"),{1;2},1))-30)*{1;0.01}))","v":19.670000000000002},{"$f":"COUNTIF($AE$7:$AE15,AE15)","v":4},null,21.67,21.67,{"$f":"COUNTIF($AI$7:$AI15,AI15)","v":1},{"$f":"IF($AE$6=1,L15,OFFSET($L$1,SUMPRODUCT(--(OFFSET($AE$7,0,0,AuthorityCounter,1)=AI15),--(OFFSET($AF$7,0,0,AuthorityCounter,1)=COUNTIF($AI$7:AI15,AI15)),ROW(OFFSET($AF$7,0,0,AuthorityCounter,1)))-1,0))","v":"Galbraith"},null,{"$f":"IF(VLOOKUP(AK15,colAM,IF($H$75=\"OC\",8,5),FALSE)=1,MAX(AM$6:$AM14)+1,0)","v":9},"Galbraith",false,{"$f":"IF($AP$5,SUM(SUMPRODUCT(--AO$7:$AO15)*AO15,(SUMPRODUCT(--(AO$7:$AO15=FALSE))+SUMPRODUCT(--colAP))*(1-AO15)),ROW()-6)","v":9},"Galbraith","Galbraith",null,null,null,null,null,null,null,null,null,null,null,null,null,null,null,null,null,null,null,null,null,null,null,null,null,null,null,null,null,null,null,null,null,null,null,null,null,null,null,null,null,null,null,null,null,null,null,null,null,null,null,null,null,null,null,null,null,null,null,null,null,null,null,null,null,null,null,null,null,null,null,null,null,null,null,null,null,null,null,null,null,null,null,null,null,null,null,null,null,null,null,null,null,null,null,null,null,null,null,null,null,null,null,null,null,null,null,null,null,null,null,null,null,null,null,null,null,null,null,null,null,null,null,null,null,null,null,null,null,null,null,null,null,null,null,null,null,null,null,null,null,null,null,null,null,null,null,null,null,null,null,null,null,null,null,null,null,null,null,null,null,null,null,null,null,null,null,null,null,null,null,null,null,null,null,null,null,null,null,null,null,null,null,null,null,null,null,null,null,null,null,null,null,null,null,null,null,null,null,null,null,null,null,null,null,null,null,null,null,"Page 3: All dwellings: Total cost per application\n\n","£#,##0",{"$f":"AB7","v":0}]
["(P.02)[02]All dwellings: Receipt and validation costs per application",22,9,7,"Page 7: All dwellings: Receipt and validation costs per application",null,null,null,null,"a",null,"Slockton",2,null,0,{"$f":"IF((ROW()-5=$G$36),1,IF((M16=Coding!$H$75)+(Coding!$H$75=\"ALL\")+(Coding!$H$75=\"U\")*OR(M16=\"wu\",M16=\"su\",M16=\"ul\",M16=\"um\",M16=\"uu\")+(Coding!$H$75=\"na\")*AND(M16<>\"wu\",M16<>\"su\",M16<>\"ul\",M16<>\"um\",M16<>\"uu\",M16<>\"c\",M16<>\"d\",M16<>\"p\"),1,0))","v":1},false,0,1,0,null,{"$f":"IF((S16=1)*($J$6<22),INDEX($J$13:$J$33,SUM($S$7:S16),1),\"\")","v":"z"},{"$f":"COUNTIF($T$7:T16,T16)","v":10},null,0,{"$f":"INDEX(V:V,SUMPRODUCT((OFFSET($T$7,0,0,AuthorityCounter2,1)=Y16)*1,(OFFSET($W$7,0,0,AuthorityCounter2,1)=COUNTIF($Y$7:Y16,Y16))*1,ROW(OFFSET($W$7,0,0,AuthorityCounter2,1))))","v":"z"},0,{"$f":"IF((Y16=AB$2)*(Z16=AC$3)*(SUM($AB$6:AB15)=0),+Y16,0)","v":0},0,null,{"$f":"IF($AE$6=3,O16,SUM((CODE(MID(CONCATENATE(UPPER(M16),\"aaaaaaaaaa\"),{1;2},1))-30)*{1;0.01}))","v":20.67},{"$f":"COUNTIF($AE$7:$AE16,AE16)","v":2},null,22.67,22.67,{"$f":"COUNTIF($AI$7:$AI16,AI16)","v":1},{"$f":"IF($AE$6=1,L16,OFFSET($L$1,SUMPRODUCT(--(OFFSET($AE$7,0,0,AuthorityCounter,1)=AI16),--(OFFSET($AF$7,0,0,AuthorityCounter,1)=COUNTIF($AI$7:AI16,AI16)),ROW(OFFSET($AF$7,0,0,AuthorityCounter,1)))-1,0))","v":"Slockton"},null,{"$f":"IF(VLOOKUP(AK16,colAM,IF($H$75=\"OC\",8,5),FALSE)=1,MAX(AM$6:$AM15)+1,0)","v":10},"Slockton",false,{"$f":"IF($AP$5,SUM(SUMPRODUCT(--AO$7:$AO16)*AO16,(SUMPRODUCT(--(AO$7:$AO16=FALSE))+SUMPRODUCT(--colAP))*(1-AO16)),ROW()-6)","v":10},"Slockton","Slockton",null,null,null,null,null,null,null,null,null,null,null,null,null,null,null,null,null,null,null,null,null,null,null,null,null,null,null,null,null,null,null,null,null,null,null,null,null,null,null,null,null,null,null,null,null,null,null,null,null,null,null,null,null,null,null,null,null,null,null,null,null,null,null,null,null,null,null,null,null,null,null,null,null,null,null,null,null,null,null,null,null,null,null,null,null,null,null,null,null,null,null,null,null,null,null,null,null,null,null,null,null,null,null,null,null,null,null,null,null,null,null,null,null,null,null,null,null,null,null,null,null,null,null,null,null,null,null,null,null,null,null,null,null,null,null,null,null,null,null,null,null,null,null,null,null,null,null,null,null,null,null,null,null,null,null,null,null,null,null,null,null,null,null,null,null,null,null,null,null,null,null,null,null,null,null,null,null,null,null,null,null,null,null,null,null,null,null,null,null,null,null,null,null,null,null,null,null,null,null,null,null,null,null,null,null,null,null,null,null,"Page 3: \nAll dwellings: Receipt and validation costs per application","£#,##0",{"$f":"AB7","v":0}]
["(P.02)[03]All dwellings: Consultation costs per application",22,10,7,"Page 7: All dwellings: Consultation costs per application",null,null,null,null,"x",null,"Needham",1,null,0,{"$f":"IF((ROW()-5=$G$36),1,IF((M17=Coding!$H$75)+(Coding!$H$75=\"ALL\")+(Coding!$H$75=\"U\")*OR(M17=\"wu\",M17=\"su\",M17=\"ul\",M17=\"um\",M17=\"uu\")+(Coding!$H$75=\"na\")*AND(M17<>\"wu\",M17<>\"su\",M17<>\"ul\",M17<>\"um\",M17<>\"uu\",M17<>\"c\",M17<>\"d\",M17<>\"p\"),1,0))","v":1},false,0,1,0,null,{"$f":"IF((S17=1)*($J$6<22),INDEX($J$13:$J$33,SUM($S$7:S17),1),\"\")","v":"e"},{"$f":"COUNTIF($T$7:T17,T17)","v":11},null,0,{"$f":"INDEX(V:V,SUMPRODUCT((OFFSET($T$7,0,0,AuthorityCounter2,1)=Y17)*1,(OFFSET($W$7,0,0,AuthorityCounter2,1)=COUNTIF($Y$7:Y17,Y17))*1,ROW(OFFSET($W$7,0,0,AuthorityCounter2,1))))","v":"e"},0,{"$f":"IF((Y17=AB$2)*(Z17=AC$3)*(SUM($AB$6:AB16)=0),+Y17,0)","v":0},0,null,{"$f":"IF($AE$6=3,O17,SUM((CODE(MID(CONCATENATE(UPPER(M17),\"aaaaaaaaaa\"),{1;2},1))-30)*{1;0.01}))","v":19.670000000000002},{"$f":"COUNTIF($AE$7:$AE17,AE17)","v":5},null,22.67,22.67,{"$f":"COUNTIF($AI$7:$AI17,AI17)","v":2},{"$f":"IF($AE$6=1,L17,OFFSET($L$1,SUMPRODUCT(--(OFFSET($AE$7,0,0,AuthorityCounter,1)=AI17),--(OFFSET($AF$7,0,0,AuthorityCounter,1)=COUNTIF($AI$7:AI17,AI17)),ROW(OFFSET($AF$7,0,0,AuthorityCounter,1)))-1,0))","v":"Needham"},null,{"$f":"IF(VLOOKUP(AK17,colAM,IF($H$75=\"OC\",8,5),FALSE)=1,MAX(AM$6:$AM16)+1,0)","v":11},"Needham",false,{"$f":"IF($AP$5,SUM(SUMPRODUCT(--AO$7:$AO17)*AO17,(SUMPRODUCT(--(AO$7:$AO17=FALSE))+SUMPRODUCT(--colAP))*(1-AO17)),ROW()-6)","v":11},"Needham","Needham",null,null,null,null,null,null,null,null,null,null,null,null,null,null,null,null,null,null,null,null,null,null,null,null,null,null,null,null,null,null,null,null,null,null,null,null,null,null,null,null,null,null,null,null,null,null,null,null,null,null,null,null,null,null,null,null,null,null,null,null,null,null,null,null,null,null,null,null,null,null,null,null,null,null,null,null,null,null,null,null,null,null,null,null,null,null,null,null,null,null,null,null,null,null,null,null,null,null,null,null,null,null,null,null,null,null,null,null,null,null,null,null,null,null,null,null,null,null,null,null,null,null,null,null,null,null,null,null,null,null,null,null,null,null,null,null,null,null,null,null,null,null,null,null,null,null,null,null,null,null,null,null,null,null,null,null,null,null,null,null,null,null,null,null,null,null,null,null,null,null,null,null,null,null,null,null,null,null,null,null,null,null,null,null,null,null,null,null,null,null,null,null,null,null,null,null,null,null,null,null,null,null,null,null,null,null,null,null,null,"Page 3: \nAll dwellings: Consultation costs per application","£#,##0",{"$f":"AB7","v":0}]
["(P.02)[04]All dwellings: Evaluation and negotiation costs per application",22,11,7,"Page 7: All dwellings: Evaluation and negotiation costs per application",null,null,null,null,"k",null,"Mallender",2,null,0,{"$f":"IF((ROW()-5=$G$36),1,IF((M18=Coding!$H$75)+(Coding!$H$75=\"ALL\")+(Coding!$H$75=\"U\")*OR(M18=\"wu\",M18=\"su\",M18=\"ul\",M18=\"um\",M18=\"uu\")+(Coding!$H$75=\"na\")*AND(M18<>\"wu\",M18<>\"su\",M18<>\"ul\",M18<>\"um\",M18<>\"uu\",M18<>\"c\",M18<>\"d\",M18<>\"p\"),1,0))","v":1},false,0,1,0,null,{"$f":"IF((S18=1)*($J$6<22),INDEX($J$13:$J$33,SUM($S$7:S18),1),\"\")","v":"t"},{"$f":"COUNTIF($T$7:T18,T18)","v":12},null,0,{"$f":"INDEX(V:V,SUMPRODUCT((OFFSET($T$7,0,0,AuthorityCounter2,1)=Y18)*1,(OFFSET($W$7,0,0,AuthorityCounter2,1)=COUNTIF($Y$7:Y18,Y18))*1,ROW(OFFSET($W$7,0,0,AuthorityCounter2,1))))","v":"t"},0,{"$f":"IF((Y18=AB$2)*(Z18=AC$3)*(SUM($AB$6:AB17)=0),+Y18,0)","v":0},0,null,{"$f":"IF($AE$6=3,O18,SUM((CODE(MID(CONCATENATE(UPPER(M18),\"aaaaaaaaaa\"),{1;2},1))-30)*{1;0.01}))","v":20.67},{"$f":"COUNTIF($AE$7:$AE18,AE18)","v":3},null,22.67,{"$f":"IF(ISERROR(AH18),\"na\",AH18)","v":22.67},{"$f":"COUNTIF($AI$7:$AI18,AI18)","v":3},{"$f":"IF($AE$6=1,L18,OFFSET($L$1,SUMPRODUCT(--(OFFSET($AE$7,0,0,AuthorityCounter,1)=AI18),--(OFFSET($AF$7,0,0,AuthorityCounter,1)=COUNTIF($AI$7:AI18,AI18)),ROW(OFFSET($AF$7,0,0,AuthorityCounter,1)))-1,0))","v":"Mallender"},null,{"$f":"IF(VLOOKUP(AK18,colAM,IF($H$75=\"OC\",8,5),FALSE)=1,MAX(AM$6:$AM17)+1,0)","v":12},"Mallender",false,{"$f":"IF($AP$5,SUM(SUMPRODUCT(--AO$7:$AO18)*AO18,(SUMPRODUCT(--(AO$7:$AO18=FALSE))+SUMPRODUCT(--colAP))*(1-AO18)),ROW()-6)","v":12},"Mallender","Mallender",null,null,null,null,null,null,null,null,null,null,null,null,null,null,null,null,null,null,null,null,null,null,null,null,null,null,null,null,null,null,null,null,null,null,null,null,null,null,null,null,null,null,null,null,null,null,null,null,null,null,null,null,null,null,null,null,null,null,null,null,null,null,null,null,null,null,null,null,null,null,null,null,null,null,null,null,null,null,null,null,null,null,null,null,null,null,null,null,null,null,null,null,null,null,null,null,null,null,null,null,null,null,null,null,null,null,null,null,null,null,null,null,null,null,null,null,null,null,null,null,null,null,null,null,null,null,null,null,null,null,null,null,null,null,null,null,null,null,null,null,null,null,null,null,null,null,null,null,null,null,null,null,null,null,null,null,null,null,null,null,null,null,null,null,null,null,null,null,null,null,null,null,null,null,null,null,null,null,null,null,null,null,null,null,null,null,null,null,null,null,null,null,null,null,null,null,null,null,null,null,null,null,null,null,null,null,null,null,null,"Page 3: All dwellings: Evaluation and negotiation costs per application","£#,##0",{"$f":"AB7","v":0}]
["(P.02)[05]All dwellings: Delegated reports and decisions costs per application",22,12,7,"Page 7: All dwellings: Delegated reports and decisions costs per application",null,null,null,null,"s",null,null,null,null,null,null,null,null,null,null,null,null,null,null,null,null,null,null,null,null,null,null,null,null,null,null,null,null,null,null,null,null,null,null,null,null,null,null,null,null,null,null,null,null,null,null,null,null,null,null,null,null,null,null,null,null,null,null,null,null,null,null,null,null,null,null,null,null,null,null,null,null,null,null,null,null,null,null,null,null,null,null,null,null,null,null,null,null,null,null,null,null,null,null,null,null,null,null,null,null,null,null,null,null,null,null,null,null,null,null,null,null,null,null,null,null,null,null,null,null,null,null,null,null,null,null,null,null,null,null,null,null,null,null,null,null,null,null,null,null,null,null,null,null,null,null,null,null,null,null,null,null,null,null,null,null,null,null,null,null,null,null,null,null,null,null,null,null,null,null,null,null,null,null,null,null,null,null,null,null,null,null,null,null,null,null,null,null,null,null,null,null,null,null,null,null,null,null,null,null,null,null,null,null,null,null,null,null,null,null,null,null,null,null,null,null,null,null,null,null,null,null,null,null,null,null,null,null,null,null,null,null,null,null,null,null,null,null,null,null,null,null,null,"Page 3: All dwellings: Delegated reports and decisions costs per application","£#,##0",{"$f":"AB7","v":0}]
["(P.02)[06]All dwellings: Committee reports and decisions costs per application",22,13,7,"Page 7: All dwellings: Committee reports and decisions costs per application",null,null,null,null,"f",null,null,null,null,null,null,null,null,null,null,null,null,null,null,null,null,null,null,null,null,null,null,null,null,null,null,null,null,null,null,null,null,null,null,null,null,null,null,null,null,null,null,null,null,null,null,null,null,null,null,null,null,null,null,null,null,null,null,null,null,null,null,null,null,null,null,null,null,null,null,null,null,null,null,null,null,null,null,null,null,null,null,null,null,null,null,null,null,null,null,null,null,null,null,null,null,null,null,null,null,null,null,null,null,null,null,null,null,null,null,null,null,null,null,null,null,null,null,null,null,null,null,null,null,null,null,null,null,null,null,null,null,null,null,null,null,null,null,null,null,null,null,null,null,null,null,null,null,null,null,null,null,null,null,null,null,null,null,null,null,null,null,null,null,null,null,null,null,null,null,null,null,null,null,null,null,null,null,null,null,null,null,null,null,null,null,null,null,null,null,null,null,null,null,null,null,null,null,null,null,null,null,null,null,null,null,null,null,null,null,null,null,null,null,null,null,null,null,null,null,null,null,null,null,null,null,null,null,null,null,null,null,null,null,null,null,null,null,null,null,null,null,null,"Page 3: All dwellings: Committee reports and decisions costs per application","£#,##0",{"$f":"AB7","v":0}]
["(P.02)[07]All dwellings: Decision notice and agreements costs per application",22,14,7,"Page 7: All dwellings: Decision notice and agreements costs per application",null,null,null,null,"r",null,null,null,null,null,null,null,null,null,null,null,null,null,null,null,null,null,null,null,null,null,null,null,null,null,null,null,null,null,null,null,null,null,null,null,null,null,null,null,null,null,null,null,null,null,null,null,null,null,null,null,null,null,null,null,null,null,null,null,null,null,null,null,null,null,null,null,null,null,null,null,null,null,null,null,null,null,null,null,null,null,null,null,null,null,null,null,null,null,null,null,null,null,null,null,null,null,null,null,null,null,null,null,null,null,null,null,null,null,null,null,null,null,null,null,null,null,null,null,null,null,null,null,null,null,null,null,null,null,null,null,null,null,null,null,null,null,null,null,null,null,null,null,null,null,null,null,null,null,null,null,null,null,null,null,null,null,null,null,null,null,null,null,null,null,null,null,null,null,null,null,null,null,null,null,null,null,null,null,null,null,null,null,null,null,null,null,null,null,null,null,null,null,null,null,null,null,null,null,null,null,null,null,null,null,null,null,null,null,null,null,null,null,null,null,null,null,null,null,null,null,null,null,null,null,null,null,null,null,null,null,null,null,null,null,null,null,null,null,null,null,null,null,"Page 3: All dwellings: Decision notice and agreements costs per application","£#,##0",{"$f":"AB7","v":0}]
["(P.02)[08]All dwellings: Planning appeals costs per application",22,15,7,"Page 7: All dwellings: Planning appeals costs per application",null,null,null,null,"z",null,null,null,null,null,null,null,null,null,null,null,null,null,null,null,null,null,null,null,null,null,null,null,null,null,null,null,null,null,null,null,null,null,null,null,null,null,null,null,null,null,null,null,null,null,null,null,null,null,null,null,null,null,null,null,null,null,null,null,null,null,null,null,null,null,null,null,null,null,null,null,null,null,null,null,null,null,null,null,null,null,null,null,null,null,null,null,null,null,null,null,null,null,null,null,null,null,null,null,null,null,null,null,null,null,null,null,null,null,null,null,null,null,null,null,null,null,null,null,null,null,null,null,null,null,null,null,null,null,null,null,null,null,null,null,null,null,null,null,null,null,null,null,null,null,null,null,null,null,null,null,null,null,null,null,null,null,null,null,null,null,null,null,null,null,null,null,null,null,null,null,null,null,null,null,null,null,null,null,null,null,null,null,null,null,null,null,null,null,null,null,null,null,null,null,null,null,null,null,null,null,null,null,null,null,null,null,null,null,null,null,null,null,null,null,null,null,null,null,null,null,null,null,null,null,null,null,null,null,null,null,null,null,null,null,null,null,null,null,null,null,null,null,"Page 3: \nAll dwellings: Planning appeals costs per application","£#,##0",{"$f":"AB7","v":0}]
["(P.03)[01]Local non-residential: Total cost per application",22,16,8,"Page 8: Local non-residential: Total cost per application",null,null,null,null,"e",null,null,null,null,null,null,null,null,null,null,null,null,null,null,null,null,null,null,null,null,null,null,null,null,null,null,null,null,null,null,null,null,null,null,null,null,null,null,null,null,null,null,null,null,null,null,null,null,null,null,null,null,null,null,null,null,null,null,null,null,null,null,null,null,null,null,null,null,null,null,null,null,null,null,null,null,null,null,null,null,null,null,null,null,null,null,null,null,null,null,null,null,null,null,null,null,null,null,null,null,null,null,null,null,null,null,null,null,null,null,null,null,null,null,null,null,null,null,null,null,null,null,null,null,null,null,null,null,null,null,null,null,null,null,null,null,null,null,null,null,null,null,null,null,null,null,null,null,null,null,null,null,null,null,null,null,null,null,null,null,null,null,null,null,null,null,null,null,null,null,null,null,null,null,null,null,null,null,null,null,null,null,null,null,null,null,null,null,null,null,null,null,null,null,null,null,null,null,null,null,null,null,null,null,null,null,null,null,null,null,null,null,null,null,null,null,null,null,null,null,null,null,null,null,null,null,null,null,null,null,null,null,null,null,null,null,null,null,null,null,null,null,null,"Page 4: \nLocal non-residential: Total cost per application","£#,##0",{"$f":"AB7","v":0}]
["(P.03)[02]Local non-residential: Receipt and validation costs per application",22,17,8,"Page 8: Local non-residential: Receipt and validation costs per application",null,null,null,null,"t",null,null,null,null,null,null,null,null,null,null,null,null,null,null,null,null,null,null,null,null,null,null,null,null,null,null,null,null,null,null,null,null,null,null,null,null,null,null,null,null,null,null,null,null,null,null,null,null,null,null,null,null,null,null,null,null,null,null,null,null,null,null,null,null,null,null,null,null,null,null,null,null,null,null,null,null,null,null,null,null,null,null,null,null,null,null,null,null,null,null,null,null,null,null,null,null,null,null,null,null,null,null,null,null,null,null,null,null,null,null,null,null,null,null,null,null,null,null,null,null,null,null,null,null,null,null,null,null,null,null,null,null,null,null,null,null,null,null,null,null,null,null,null,null,null,null,null,null,null,null,null,null,null,null,null,null,null,null,null,null,null,null,null,null,null,null,null,null,null,null,null,null,null,null,null,null,null,null,null,null,null,null,null,null,null,null,null,null,null,null,null,null,null,null,null,null,null,null,null,null,null,null,null,null,null,null,null,null,null,null,null,null,null,null,null,null,null,null,null,null,null,null,null,null,null,null,null,null,null,null,null,null,null,null,null,null,null,null,null,null,null,null,null,"Page 4: Local non-residential: Receipt and validation costs per application","£#,##0",{"$f":"AB7","v":0}]
["(P.03)[03]Local non-residential: Consultation costs per application",22,18,8,"Page 8: Local non-residential: Consultation costs per application",null,null,null,null,"w",null,null,null,null,null,null,null,null,null,null,null,null,null,null,null,null,null,null,null,null,null,null,null,null,null,null,null,null,null,null,null,null,null,null,null,null,null,null,null,null,null,null,null,null,null,null,null,null,null,null,null,null,null,null,null,null,null,null,null,null,null,null,null,null,null,null,null,null,null,null,null,null,null,null,null,null,null,null,null,null,null,null,null,null,null,null,null,null,null,null,null,null,null,null,null,null,null,null,null,null,null,null,null,null,null,null,null,null,null,null,null,null,null,null,null,null,null,null,null,null,null,null,null,null,null,null,null,null,null,null,null,null,null,null,null,null,null,null,null,null,null,null,null,null,null,null,null,null,null,null,null,null,null,null,null,null,null,null,null,null,null,null,null,null,null,null,null,null,null,null,null,null,null,null,null,null,null,null,null,null,null,null,null,null,null,null,null,null,null,null,null,null,null,null,null,null,null,null,null,null,null,null,null,null,null,null,null,null,null,null,null,null,null,null,null,null,null,null,null,null,null,null,null,null,null,null,null,null,null,null,null,null,null,null,null,null,null,null,null,null,null,null,null,"Page 4: Local non-residential: Consultation costs per application","£#,##0",{"$f":"AB7","v":0}]
["(P.03)[04]Local non-residential: Evaluation and negotiation costs per application",22,19,8,"Page 8: Local non-residential: Evaluation and negotiation costs per application",null,null,null,null,"n",null,null,null,null,null,null,null,null,null,null,null,null,null,null,null,null,null,null,null,null,null,null,null,null,null,null,null,null,null,null,null,null,null,null,null,null,null,null,null,null,null,null,null,null,null,null,null,null,null,null,null,null,null,null,null,null,null,null,null,null,null,null,null,null,null,null,null,null,null,null,null,null,null,null,null,null,null,null,null,null,null,null,null,null,null,null,null,null,null,null,null,null,null,null,null,null,null,null,null,null,null,null,null,null,null,null,null,null,null,null,null,null,null,null,null,null,null,null,null,null,null,null,null,null,null,null,null,null,null,null,null,null,null,null,null,null,null,null,null,null,null,null,null,null,null,null,null,null,null,null,null,null,null,null,null,null,null,null,null,null,null,null,null,null,null,null,null,null,null,null,null,null,null,null,null,null,null,null,null,null,null,null,null,null,null,null,null,null,null,null,null,null,null,null,null,null,null,null,null,null,null,null,null,null,null,null,null,null,null,null,null,null,null,null,null,null,null,null,null,null,null,null,null,null,null,null,null,null,null,null,null,null,null,null,null,null,null,null,null,null,null,null,null,"Page 4: Local non-residential: Evaluation and negotiation costs per application","£#,##0",{"$f":"AB7","v":0}]
["(P.03)[05]Local non-residential: Delegated reports and decisions costs per application",22,20,8,"Page 8: Local non-residential: Delegated reports and decisions costs per application",null,null,null,null,"u",null,null,null,null,null,null,null,null,null,null,null,null,null,null,null,null,null,null,null,null,null,null,null,null,null,null,null,null,null,null,null,null,null,null,null,null,null,null,null,null,null,null,null,null,null,null,null,null,null,null,null,null,null,null,null,null,null,null,null,null,null,null,null,null,null,null,null,null,null,null,null,null,null,null,null,null,null,null,null,null,null,null,null,null,null,null,null,null,null,null,null,null,null,null,null,null,null,null,null,null,null,null,null,null,null,null,null,null,null,null,null,null,null,null,null,null,null,null,null,null,null,null,null,null,null,null,null,null,null,null,null,null,null,null,null,null,null,null,null,null,null,null,null,null,null,null,null,null,null,null,null,null,null,null,null,null,null,null,null,null,null,null,null,null,null,null,null,null,null,null,null,null,null,null,null,null,null,null,null,null,null,null,null,null,null,null,null,null,null,null,null,null,null,null,null,null,null,null,null,null,null,null,null,null,null,null,null,null,null,null,null,null,null,null,null,null,null,null,null,null,null,null,null,null,null,null,null,null,null,null,null,null,null,null,null,null,null,null,null,null,null,null,null,"Page 4: \nLocal non-residential: Delegated reports and decisions costs per application","£#,##0",{"$f":"AB7","v":0}]
["(P.03)[06]Local non-residential: Committee reports and decisions costs per application",22,21,8,"Page 8: Local non-residential: Committee reports and decisions costs per application",null,null,null,null,"g",null,null,null,null,null,null,null,null,null,null,null,null,null,null,null,null,null,null,null,null,null,null,null,null,null,null,null,null,null,null,null,null,null,null,null,null,null,null,null,null,null,null,null,null,null,null,null,null,null,null,null,null,null,null,null,null,null,null,null,null,null,null,null,null,null,null,null,null,null,null,null,null,null,null,null,null,null,null,null,null,null,null,null,null,null,null,null,null,null,null,null,null,null,null,null,null,null,null,null,null,null,null,null,null,null,null,null,null,null,null,null,null,null,null,null,null,null,null,null,null,null,null,null,null,null,null,null,null,null,null,null,null,null,null,null,null,null,null,null,null,null,null,null,null,null,null,null,null,null,null,null,null,null,null,null,null,null,null,null,null,null,null,null,null,null,null,null,null,null,null,null,null,null,null,null,null,null,null,null,null,null,null,null,null,null,null,null,null,null,null,null,null,null,null,null,null,null,null,null,null,null,null,null,null,null,null,null,null,null,null,null,null,null,null,null,null,null,null,null,null,null,null,null,null,null,null,null,null,null,null,null,null,null,null,null,null,null,null,null,null,null,null,null,"Page 4: Local non-residential: Committee reports and decisions costs per application","£#,##0",{"$f":"AB7","v":0}]
["(P.03)[07]Local non-residential: Decision notice and agreements costs per application",22,22,8,"Page 8: Local non-residential: Decision notice and agreements costs per application",null,null,null,null,"o",null,null,null,null,null,null,null,null,null,null,null,null,null,null,null,null,null,null,null,null,null,null,null,null,null,null,null,null,null,null,null,null,null,null,null,null,null,null,null,null,null,null,null,null,null,null,null,null,null,null,null,null,null,null,null,null,null,null,null,null,null,null,null,null,null,null,null,null,null,null,null,null,null,null,null,null,null,null,null,null,null,null,null,null,null,null,null,null,null,null,null,null,null,null,null,null,null,null,null,null,null,null,null,null,null,null,null,null,null,null,null,null,null,null,null,null,null,null,null,null,null,null,null,null,null,null,null,null,null,null,null,null,null,null,null,null,null,null,null,null,null,null,null,null,null,null,null,null,null,null,null,null,null,null,null,null,null,null,null,null,null,null,null,null,null,null,null,null,null,null,null,null,null,null,null,null,null,null,null,null,null,null,null,null,null,null,null,null,null,null,null,null,null,null,null,null,null,null,null,null,null,null,null,null,null,null,null,null,null,null,null,null,null,null,null,null,null,null,null,null,null,null,null,null,null,null,null,null,null,null,null,null,null,null,null,null,null,null,null,null,null,null,null,"Page 4: Local non-residential: Decision notice and agreements costs per application","£#,##0",{"$f":"AB7","v":0}]
["(P.03)[08]Local non-residential: Planning appeals costs per application",22,23,8,"Page 8: Local non-residential: Planning appeals costs per application",null,null,null,null,"b",null,null,null,null,null,null,null,null,null,null,null,null,null,null,null,null,null,null,null,null,null,null,null,null,null,null,null,null,null,null,null,null,null,null,null,null,null,null,null,null,null,null,null,null,null,null,null,null,null,null,null,null,null,null,null,null,null,null,null,null,null,null,null,null,null,null,null,null,null,null,null,null,null,null,null,null,null,null,null,null,null,null,null,null,null,null,null,null,null,null,null,null,null,null,null,null,null,null,null,null,null,null,null,null,null,null,null,null,null,null,null,null,null,null,null,null,null,null,null,null,null,null,null,null,null,null,null,null,null,null,null,null,null,null,null,null,null,null,null,null,null,null,null,null,null,null,null,null,null,null,null,null,null,null,null,null,null,null,null,null,null,null,null,null,null,null,null,null,null,null,null,null,null,null,null,null,null,null,null,null,null,null,null,null,null,null,null,null,null,null,null,null,null,null,null,null,null,null,null,null,null,null,null,null,null,null,null,null,null,null,null,null,null,null,null,null,null,null,null,null,null,null,null,null,null,null,null,null,null,null,null,null,null,null,null,null,null,null,null,null,null,null,null,"Page 4: Local non-residential: Planning appeals costs per application","£#,##0",{"$f":"AB7","v":0}]
["(P.04)[01]All Others: Total cost per application",22,24,9,"Page 9: All Others: Total cost per application",null,null,null,null,"j",null,null,null,null,null,null,null,null,null,null,null,null,null,null,null,null,null,null,null,null,null,null,null,null,null,null,null,null,null,null,null,null,null,null,null,null,null,null,null,null,null,null,null,null,null,null,null,null,null,null,null,null,null,null,null,null,null,null,null,null,null,null,null,null,null,null,null,null,null,null,null,null,null,null,null,null,null,null,null,null,null,null,null,null,null,null,null,null,null,null,null,null,null,null,null,null,null,null,null,null,null,null,null,null,null,null,null,null,null,null,null,null,null,null,null,null,null,null,null,null,null,null,null,null,null,null,null,null,null,null,null,null,null,null,null,null,null,null,null,null,null,null,null,null,null,null,null,null,null,null,null,null,null,null,null,null,null,null,null,null,null,null,null,null,null,null,null,null,null,null,null,null,null,null,null,null,null,null,null,null,null,null,null,null,null,null,null,null,null,null,null,null,null,null,null,null,null,null,null,null,null,null,null,null,null,null,null,null,null,null,null,null,null,null,null,null,null,null,null,null,null,null,null,null,null,null,null,null,null,null,null,null,null,null,null,null,null,null,null,null,null,null,null,"Page 5: All Others: Total cost per application","£#,##0",{"$f":"AB7","v":0}]
["(P.04)[02]All Others: Receipt and validation costs per application",22,25,9,"Page 9: All Others: Receipt and validation costs per application",null,null,null,null,"q",null,null,null,null,null,null,null,null,null,null,null,null,null,null,null,null,null,null,null,null,null,null,null,null,null,null,null,null,null,null,null,null,null,null,null,null,null,null,null,null,null,null,null,null,null,null,null,null,null,null,null,null,null,null,null,null,null,null,null,null,null,null,null,null,null,null,null,null,null,null,null,null,null,null,null,null,null,null,null,null,null,null,null,null,null,null,null,null,null,null,null,null,null,null,null,null,null,null,null,null,null,null,null,null,null,null,null,null,null,null,null,null,null,null,null,null,null,null,null,null,null,null,null,null,null,null,null,null,null,null,null,null,null,null,null,null,null,null,null,null,null,null,null,null,null,null,null,null,null,null,null,null,null,null,null,null,null,null,null,null,null,null,null,null,null,null,null,null,null,null,null,null,null,null,null,null,null,null,null,null,null,null,null,null,null,null,null,null,null,null,null,null,null,null,null,null,null,null,null,null,null,null,null,null,null,null,null,null,null,null,null,null,null,null,null,null,null,null,null,null,null,null,null,null,null,null,null,null,null,null,null,null,null,null,null,null,null,null,null,null,null,null,null,"Page 5: All Others: Receipt and validation costs per application","£#,##0",{"$f":"AB7","v":0}]
["(P.04)[03]All Others: Consultation costs per application",22,26,9,"Page 9: All Others: Consultation costs per application",null,null,null,null,"p",null,null,null,null,null,null,null,null,null,null,null,null,null,null,null,null,null,null,null,null,null,null,null,null,null,null,null,null,null,null,null,null,null,null,null,null,null,null,null,null,null,null,null,null,null,null,null,null,null,null,null,null,null,null,null,null,null,null,null,null,null,null,null,null,null,null,null,null,null,null,null,null,null,null,null,null,null,null,null,null,null,null,null,null,null,null,null,null,null,null,null,null,null,null,null,null,null,null,null,null,null,null,null,null,null,null,null,null,null,null,null,null,null,null,null,null,null,null,null,null,null,null,null,null,null,null,null,null,null,null,null,null,null,null,null,null,null,null,null,null,null,null,null,null,null,null,null,null,null,null,null,null,null,null,null,null,null,null,null,null,null,null,null,null,null,null,null,null,null,null,null,null,null,null,null,null,null,null,null,null,null,null,null,null,null,null,null,null,null,null,null,null,null,null,null,null,null,null,null,null,null,null,null,null,null,null,null,null,null,null,null,null,null,null,null,null,null,null,null,null,null,null,null,null,null,null,null,null,null,null,null,null,null,null,null,null,null,null,null,null,null,null,null,"Page 5: All Others: Consultation costs per application","£#,##0",{"$f":"AB7","v":0}]
["(P.04)[04]All Others: Evaluation and negotiation costs per application",22,27,9,"Page 9: All Others: Evaluation and negotiation costs per application",null,null,null,null,null,null,null,null,null,null,null,null,null,null,null,null,null,null,null,null,null,null,null,null,null,null,null,null,null,null,null,null,null,null,null,null,null,null,null,null,null,null,null,null,null,null,null,null,null,null,null,null,null,null,null,null,null,null,null,null,null,null,null,null,null,null,null,null,null,null,null,null,null,null,null,null,null,null,null,null,null,null,null,null,null,null,null,null,null,null,null,null,null,null,null,null,null,null,null,null,null,null,null,null,null,null,null,null,null,null,null,null,null,null,null,null,null,null,null,null,null,null,null,null,null,null,null,null,null,null,null,null,null,null,null,null,null,null,null,null,null,null,null,null,null,null,null,null,null,null,null,null,null,null,null,null,null,null,null,null,null,null,null,null,null,null,null,null,null,null,null,null,null,null,null,null,null,null,null,null,null,null,null,null,null,null,null,null,null,null,null,null,null,null,null,null,null,null,null,null,null,null,null,null,null,null,null,null,null,null,null,null,null,null,null,null,null,null,null,null,null,null,null,null,null,null,null,null,null,null,null,null,null,null,null,null,null,null,null,null,null,null,null,null,null,null,null,null,"Page 5: \nAll Others: Evaluation and negotiation costs per applicatio","£#,##0",{"$f":"AB7","v":0}]
["(P.04)[05]All Others: Delegated reports and decisions costs per application",22,28,9,"Page 9: All Others: Delegated reports and decisions costs per application",null,null,null,null,null,null,null,null,null,null,null,null,null,null,null,null,null,null,null,null,null,null,null,null,null,null,null,null,null,null,null,null,null,null,null,null,null,null,null,null,null,null,null,null,null,null,null,null,null,null,null,null,null,null,null,null,null,null,null,null,null,null,null,null,null,null,null,null,null,null,null,null,null,null,null,null,null,null,null,null,null,null,null,null,null,null,null,null,null,null,null,null,null,null,null,null,null,null,null,null,null,null,null,null,null,null,null,null,null,null,null,null,null,null,null,null,null,null,null,null,null,null,null,null,null,null,null,null,null,null,null,null,null,null,null,null,null,null,null,null,null,null,null,null,null,null,null,null,null,null,null,null,null,null,null,null,null,null,null,null,null,null,null,null,null,null,null,null,null,null,null,null,null,null,null,null,null,null,null,null,null,null,null,null,null,null,null,null,null,null,null,null,null,null,null,null,null,null,null,null,null,null,null,null,null,null,null,null,null,null,null,null,null,null,null,null,null,null,null,null,null,null,null,null,null,null,null,null,null,null,null,null,null,null,null,null,null,null,null,null,null,null,null,null,null,null,null,null,"Page 5: All Others: Delegated reports and decisions costs per application","£#,##0",{"$f":"AB7","v":0}]
["(P.04)[06]All Others: Committee reports and decisions costs per application",22,29,9,"Page 9: All Others: Committee reports and decisions costs per application",null,1,"  Cell Link for Authorities",null,"(Max 300)",null,null,null,null,null,null,null,null,null,null,null,null,null,null,null,null,null,null,null,null,null,null,null,null,null,null,null,null,null,null,null,null,null,null,null,null,null,null,null,null,null,null,null,null,null,null,null,null,null,null,null,null,null,null,null,null,null,null,null,null,null,null,null,null,null,null,null,null,null,null,null,null,null,null,null,null,null,null,null,null,null,null,null,null,null,null,null,null,null,null,null,null,null,null,null,null,null,null,null,null,null,null,null,null,null,null,null,null,null,null,null,null,null,null,null,null,null,null,null,null,null,null,null,null,null,null,null,null,null,null,null,null,null,null,null,null,null,null,null,null,null,null,null,null,null,null,null,null,null,null,null,null,null,null,null,null,null,null,null,null,null,null,null,null,null,null,null,null,null,null,null,null,null,null,null,null,null,null,null,null,null,null,null,null,null,null,null,null,null,null,null,null,null,null,null,null,null,null,null,null,null,null,null,null,null,null,null,null,null,null,null,null,null,null,null,null,null,null,null,null,null,null,null,null,null,null,null,null,null,null,null,null,null,null,null,null,null,null,null,null,null,null,null,"Page 5: All Others: Committee reports and decisions costs per application","£#,##0",{"$f":"AB7","v":0}]
["(P.04)[07]All Others: Decision notice and agreements costs per application",22,30,9,"Page 9: All Others: Decision notice and agreements costs per application",null,null,null,null,null,null,null,null,null,null,null,null,null,null,null,null,null,null,null,null,null,null,null,null,null,null,null,null,null,null,null,null,null,null,null,null,null,null,null,null,null,null,null,null,null,null,null,null,null,null,null,null,null,null,null,null,null,null,null,null,null,null,null,null,null,null,null,null,null,null,null,null,null,null,null,null,null,null,null,null,null,null,null,null,null,null,null,null,null,null,null,null,null,null,null,null,null,null,null,null,null,null,null,null,null,null,null,null,null,null,null,null,null,null,null,null,null,null,null,null,null,null,null,null,null,null,null,null,null,null,null,null,null,null,null,null,null,null,null,null,null,null,null,null,null,null,null,null,null,null,null,null,null,null,null,null,null,null,null,null,null,null,null,null,null,null,null,null,null,null,null,null,null,null,null,null,null,null,null,null,null,null,null,null,null,null,null,null,null,null,null,null,null,null,null,null,null,null,null,null,null,null,null,null,null,null,null,null,null,null,null,null,null,null,null,null,null,null,null,null,null,null,null,null,null,null,null,null,null,null,null,null,null,null,null,null,null,null,null,null,null,null,null,null,null,null,null,null,"Page 5: All Others: Decision notice and agreements costs per application","£#,##0",{"$f":"AB7","v":0}]
["(P.04)[08]All Others: Planning appeals costs per application",22,31,9,"Page 9: All Others: Planning appeals costs per application",null,1,"  Cell Link for Chart Names",null,"(Max 200)",null,null,null,null,null,null,null,null,null,null,null,null,null,null,null,null,null,null,null,null,null,null,null,null,null,null,null,null,null,null,null,null,null,null,null,null,null,null,null,null,null,null,null,null,null,null,null,null,null,null,null,null,null,null,null,null,null,null,null,null,null,null,null,null,null,null,null,null,null,null,null,null,null,null,null,null,null,null,null,null,null,null,null,null,null,null,null,null,null,null,null,null,null,null,null,null,null,null,null,null,null,null,null,null,null,null,null,null,null,null,null,null,null,null,null,null,null,null,null,null,null,null,null,null,null,null,null,null,null,null,null,null,null,null,null,null,null,null,null,null,null,null,null,null,null,null,null,null,null,null,null,null,null,null,null,null,null,null,null,null,null,null,null,null,null,null,null,null,null,null,null,null,null,null,null,null,null,null,null,null,null,null,null,null,null,null,null,null,null,null,null,null,null,null,null,null,null,null,null,null,null,null,null,null,null,null,null,null,null,null,null,null,null,null,null,null,null,null,null,null,null,null,null,null,null,null,null,null,null,null,null,null,null,null,null,null,null,null,null,null,null,null,null,"Page 5: \nAll Others: Planning appeals costs per application","£#,##0",{"$f":"AB7","v":0}]
["(P.05)[01]Householders: Total cost per application",22,32,10,"Page 10: Householders: Total cost per application",null,{"$f":"OFFSET($B$1,G38-1,0)","v":-1},"  Offset Value 1",null,null,null,null,null,null,null,null,null,null,null,null,null,null,null,null,null,null,null,null,null,null,null,null,null,null,null,null,null,null,null,null,null,null,null,null,null,null,null,null,null,null,null,null,null,null,null,null,null,null,null,null,null,null,null,null,null,null,null,null,null,null,null,null,null,null,null,null,null,null,null,null,null,null,null,null,null,null,null,null,null,null,null,null,null,null,null,null,null,null,null,null,null,null,null,null,null,null,null,null,null,null,null,null,null,null,null,null,null,null,null,null,null,null,null,null,null,null,null,null,null,null,null,null,null,null,null,null,null,null,null,null,null,null,null,null,null,null,null,null,null,null,null,null,null,null,null,null,null,null,null,null,null,null,null,null,null,null,null,null,null,null,null,null,null,null,null,null,null,null,null,null,null,null,null,null,null,null,null,null,null,null,null,null,null,null,null,null,null,null,null,null,null,null,null,null,null,null,null,null,null,null,null,null,null,null,null,null,null,null,null,null,null,null,null,null,null,null,null,null,null,null,null,null,null,null,null,null,null,null,null,null,null,null,null,null,null,null,null,null,null,null,null,null,null,"Page 6: \nHouseholders: Total cost per application","£#,##0",{"$f":"AB7","v":0}]
["(P.05)[02]Householders: Receipt and validation costs per application",22,33,10,"Page 10: Householders: Receipt and validation costs per application",null,{"$f":"OFFSET($C$1,G38-1,0)","v":-1},"  Offset Value 2",null,null,null,null,null,null,null,null,null,null,null,null,null,null,null,null,null,null,null,null,null,null,null,null,null,null,null,null,null,null,null,null,null,null,null,null,null,null,null,null,null,null,null,null,null,null,null,null,null,null,null,null,null,null,null,null,null,null,null,null,null,null,null,null,null,null,null,null,null,null,null,null,null,null,null,null,null,null,null,null,null,null,null,null,null,null,null,null,null,null,null,null,null,null,null,null,null,null,null,null,null,null,null,null,null,null,null,null,null,null,null,null,null,null,null,null,null,null,null,null,null,null,null,null,null,null,null,null,null,null,null,null,null,null,null,null,null,null,null,null,null,null,null,null,null,null,null,null,null,null,null,null,null,null,null,null,null,null,null,null,null,null,null,null,null,null,null,null,null,null,null,null,null,null,null,null,null,null,null,null,null,null,null,null,null,null,null,null,null,null,null,null,null,null,null,null,null,null,null,null,null,null,null,null,null,null,null,null,null,null,null,null,null,null,null,null,null,null,null,null,null,null,null,null,null,null,null,null,null,null,null,null,null,null,null,null,null,null,null,null,null,null,null,null,null,"Page 6: \nHouseholders: Receipt and validation costs per application","£#,##0",{"$f":"AB7","v":0}]
["(P.05)[03]Householders: Consultation costs per application",22,34,10,"Page 10: Householders: Consultation costs per application",null,null,null,null,null,null,null,null,null,null,null,null,null,null,null,null,null,null,null,null,null,null,null,null,null,null,null,null,null,null,null,null,null,null,null,null,null,null,null,null,null,null,null,null,null,null,null,null,null,null,null,null,null,null,null,null,null,null,null,null,null,null,null,null,null,null,null,null,null,null,null,null,null,null,null,null,null,null,null,null,null,null,null,null,null,null,null,null,null,null,null,null,null,null,null,null,null,null,null,null,null,null,null,null,null,null,null,null,null,null,null,null,null,null,null,null,null,null,null,null,null,null,null,null,null,null,null,null,null,null,null,null,null,null,null,null,null,null,null,null,null,null,null,null,null,null,null,null,null,null,null,null,null,null,null,null,null,null,null,null,null,null,null,null,null,null,null,null,null,null,null,null,null,null,null,null,null,null,null,null,null,null,null,null,null,null,null,null,null,null,null,null,null,null,null,null,null,null,null,null,null,null,null,null,null,null,null,null,null,null,null,null,null,null,null,null,null,null,null,null,null,null,null,null,null,null,null,null,null,null,null,null,null,null,null,null,null,null,null,null,null,null,null,null,null,null,null,null,"Page 6: Householders: Consultation costs per application","£#,##0",{"$f":"AB7","v":0}]
["(P.05)[04]Householders: Evaluation and negotiation costs per application",22,35,10,"Page 10: Householders: Evaluation and negotiation costs per application",null,"Heads of Planning Scotland","  Club (for Text, or Club)",null,null,null,null,null,null,null,null,null,null,null,null,null,null,null,null,null,null,null,null,null,null,null,null,null,null,null,null,null,null,null,null,null,null,null,null,null,null,null,null,null,null,null,null,null,null,null,null,null,null,null,null,null,null,null,null,null,null,null,null,null,null,null,null,null,null,null,null,null,null,null,null,null,null,null,null,null,null,null,null,null,null,null,null,null,null,null,null,null,null,null,null,null,null,null,null,null,null,null,null,null,null,null,null,null,null,null,null,null,null,null,null,null,null,null,null,null,null,null,null,null,null,null,null,null,null,null,null,null,null,null,null,null,null,null,null,null,null,null,null,null,null,null,null,null,null,null,null,null,null,null,null,null,null,null,null,null,null,null,null,null,null,null,null,null,null,null,null,null,null,null,null,null,null,null,null,null,null,null,null,null,null,null,null,null,null,null,null,null,null,null,null,null,null,null,null,null,null,null,null,null,null,null,null,null,null,null,null,null,null,null,null,null,null,null,null,null,null,null,null,null,null,null,null,null,null,null,null,null,null,null,null,null,null,null,null,null,null,null,null,null,null,null,null,null,"Page 6: Householders: Evaluation and negotiation costs per application","£#,##0",{"$f":"AB7","v":0}]
["(P.05)[05]Householders: Delegated reports and decisions costs per application",22,36,10,"Page 10: Householders: Delegated reports and decisions costs per application",null,null,null,null,null,null,null,null,null,null,null,null,null,null,null,null,null,null,null,null,null,null,null,null,null,null,null,null,null,null,null,null,null,null,null,null,null,null,null,null,null,null,null,null,null,null,null,null,null,null,null,null,null,null,null,null,null,null,null,null,null,null,null,null,null,null,null,null,null,null,null,null,null,null,null,null,null,null,null,null,null,null,null,null,null,null,null,null,null,null,null,null,null,null,null,null,null,null,null,null,null,null,null,null,null,null,null,null,null,null,null,null,null,null,null,null,null,null,null,null,null,null,null,null,null,null,null,null,null,null,null,null,null,null,null,null,null,null,null,null,null,null,null,null,null,null,null,null,null,null,null,null,null,null,null,null,null,null,null,null,null,null,null,null,null,null,null,null,null,null,null,null,null,null,null,null,null,null,null,null,null,null,null,null,null,null,null,null,null,null,null,null,null,null,null,null,null,null,null,null,null,null,null,null,null,null,null,null,null,null,null,null,null,null,null,null,null,null,null,null,null,null,null,null,null,null,null,null,null,null,null,null,null,null,null,null,null,null,null,null,null,null,null,null,null,null,null,null,"Page 6: Householders: Delegated reports and decisions costs per application","£#,##0",{"$f":"AB7","v":0}]
["(P.05)[06]Householders: Committee reports and decisions costs per application",22,37,10,"Page 10: Householders: Committee reports and decisions costs per application",null,{"$f":"MATCH(I89,I95:I106,FALSE)","v":2},null,null,null,null,null,null,null,null,null,null,null,null,null,null,null,null,null,null,null,null,null,null,null,null,null,null,null,null,null,null,null,null,null,null,null,null,null,null,null,null,null,null,null,null,null,null,null,null,null,null,null,null,null,null,null,null,null,null,null,null,null,null,null,null,null,null,null,null,null,null,null,null,null,null,null,null,null,null,null,null,null,null,null,null,null,null,null,null,null,null,null,null,null,null,null,null,null,null,null,null,null,null,null,null,null,null,null,null,null,null,null,null,null,null,null,null,null,null,null,null,null,null,null,null,null,null,null,null,null,null,null,null,null,null,null,null,null,null,null,null,null,null,null,null,null,null,null,null,null,null,null,null,null,null,null,null,null,null,null,null,null,null,null,null,null,null,null,null,null,null,null,null,null,null,null,null,null,null,null,null,null,null,null,null,null,null,null,null,null,null,null,null,null,null,null,null,null,null,null,null,null,null,null,null,null,null,null,null,null,null,null,null,null,null,null,null,null,null,null,null,null,null,null,null,null,null,null,null,null,null,null,null,null,null,null,null,null,null,null,null,null,null,null,null,null,null,"Page 6: \nHouseholders: Committee reports and decisions costs per application","£#,##0",{"$f":"AB7","v":0}]
["(P.06)[01]Heritage: Total cost per application",22,38,11,"Page 11: Heritage: Total cost per application",null,null,null,null,null,null,null,null,null,null,null,null,null,null,null,null,null,null,null,null,null,null,null,null,null,null,null,null,null,null,null,null,null,null,null,null,null,null,null,null,null,null,null,null,null,null,null,null,null,null,null,null,null,null,null,null,null,null,null,null,null,null,null,null,null,null,null,null,null,null,null,null,null,null,null,null,null,null,null,null,null,null,null,null,null,null,null,null,null,null,null,null,null,null,null,null,null,null,null,null,null,null,null,null,null,null,null,null,null,null,null,null,null,null,null,null,null,null,null,null,null,null,null,null,null,null,null,null,null,null,null,null,null,null,null,null,null,null,null,null,null,null,null,null,null,null,null,null,null,null,null,null,null,null,null,null,null,null,null,null,null,null,null,null,null,null,null,null,null,null,null,null,null,null,null,null,null,null,null,null,null,null,null,null,null,null,null,null,null,null,null,null,null,null,null,null,null,null,null,null,null,null,null,null,null,null,null,null,null,null,null,null,null,null,null,null,null,null,null,null,null,null,null,null,null,null,null,null,null,null,null,null,null,null,null,null,null,null,null,null,null,null,null,null,null,null,null,null,"Page 7: Heritage: Total cost per application","£#,##0",{"$f":"AB7","v":0}]
["(P.06)[02]Heritage: Receipt and validation costs per application",22,39,11,"Page 11: Heritage: Receipt and validation costs per application",null,null,null,null,null,null,null,null,null,null,null,null,null,null,null,null,null,null,null,null,null,null,null,null,null,null,null,null,null,null,null,null,null,null,null,null,null,null,null,null,null,null,null,null,null,null,null,null,null,null,null,null,null,null,null,null,null,null,null,null,null,null,null,null,null,null,null,null,null,null,null,null,null,null,null,null,null,null,null,null,null,null,null,null,null,null,null,null,null,null,null,null,null,null,null,null,null,null,null,null,null,null,null,null,null,null,null,null,null,null,null,null,null,null,null,null,null,null,null,null,null,null,null,null,null,null,null,null,null,null,null,null,null,null,null,null,null,null,null,null,null,null,null,null,null,null,null,null,null,null,null,null,null,null,null,null,null,null,null,null,null,null,null,null,null,null,null,null,null,null,null,null,null,null,null,null,null,null,null,null,null,null,null,null,null,null,null,null,null,null,null,null,null,null,null,null,null,null,null,null,null,null,null,null,null,null,null,null,null,null,null,null,null,null,null,null,null,null,null,null,null,null,null,null,null,null,null,null,null,null,null,null,null,null,null,null,null,null,null,null,null,null,null,null,null,null,null,null,"Page 7: Heritage: Receipt and validation costs per application","£#,##0",{"$f":"AB7","v":0}]
["(P.06)[03]Heritage: Consultation costs per application",22,40,11,"Page 11: Heritage: Consultation costs per application",null,null,null,null,null,null,null,null,null,null,null,null,null,null,null,null,null,null,null,null,null,null,null,null,null,null,null,null,null,null,null,null,null,null,null,null,null,null,null,null,null,null,null,null,null,null,null,null,null,null,null,null,null,null,null,null,null,null,null,null,null,null,null,null,null,null,null,null,null,null,null,null,null,null,null,null,null,null,null,null,null,null,null,null,null,null,null,null,null,null,null,null,null,null,null,null,null,null,null,null,null,null,null,null,null,null,null,null,null,null,null,null,null,null,null,null,null,null,null,null,null,null,null,null,null,null,null,null,null,null,null,null,null,null,null,null,null,null,null,null,null,null,null,null,null,null,null,null,null,null,null,null,null,null,null,null,null,null,null,null,null,null,null,null,null,null,null,null,null,null,null,null,null,null,null,null,null,null,null,null,null,null,null,null,null,null,null,null,null,null,null,null,null,null,null,null,null,null,null,null,null,null,null,null,null,null,null,null,null,null,null,null,null,null,null,null,null,null,null,null,null,null,null,null,null,null,null,null,null,null,null,null,null,null,null,null,null,null,null,null,null,null,null,null,null,null,null,null,"Page 7: Heritage: Consultation costs per application","£#,##0",{"$f":"AB7","v":0}]
["(P.06)[04]Heritage: Evaluation and negotiation costs per application",22,41,11,"Page 11: Heritage: Evaluation and negotiation costs per application",null,null,null,null,null,null,null,null,null,null,null,null,null,null,null,null,null,null,null,null,null,null,null,null,null,null,null,null,null,null,null,null,null,null,null,null,null,null,null,null,null,null,null,null,null,null,null,null,null,null,null,null,null,null,null,null,null,null,null,null,null,null,null,null,null,null,null,null,null,null,null,null,null,null,null,null,null,null,null,null,null,null,null,null,null,null,null,null,null,null,null,null,null,null,null,null,null,null,null,null,null,null,null,null,null,null,null,null,null,null,null,null,null,null,null,null,null,null,null,null,null,null,null,null,null,null,null,null,null,null,null,null,null,null,null,null,null,null,null,null,null,null,null,null,null,null,null,null,null,null,null,null,null,null,null,null,null,null,null,null,null,null,null,null,null,null,null,null,null,null,null,null,null,null,null,null,null,null,null,null,null,null,null,null,null,null,null,null,null,null,null,null,null,null,null,null,null,null,null,null,null,null,null,null,null,null,null,null,null,null,null,null,null,null,null,null,null,null,null,null,null,null,null,null,null,null,null,null,null,null,null,null,null,null,null,null,null,null,null,null,null,null,null,null,null,null,null,null,"Page 7: Heritage: Evaluation and negotiation costs per application","£#,##0",{"$f":"AB7","v":0}]
["(P.06)[05]Heritage: Delegated reports and decisions costs per application",22,42,11,"Page 11: Heritage: Delegated reports and decisions costs per application",null,null,null,null,null,null,null,null,null,null,null,null,null,null,null,null,null,null,null,null,null,null,null,null,null,null,null,null,null,null,null,null,null,null,null,null,null,null,null,null,null,null,null,null,null,null,null,null,null,null,null,null,null,null,null,null,null,null,null,null,null,null,null,null,null,null,null,null,null,null,null,null,null,null,null,null,null,null,null,null,null,null,null,null,null,null,null,null,null,null,null,null,null,null,null,null,null,null,null,null,null,null,null,null,null,null,null,null,null,null,null,null,null,null,null,null,null,null,null,null,null,null,null,null,null,null,null,null,null,null,null,null,null,null,null,null,null,null,null,null,null,null,null,null,null,null,null,null,null,null,null,null,null,null,null,null,null,null,null,null,null,null,null,null,null,null,null,null,null,null,null,null,null,null,null,null,null,null,null,null,null,null,null,null,null,null,null,null,null,null,null,null,null,null,null,null,null,null,null,null,null,null,null,null,null,null,null,null,null,null,null,null,null,null,null,null,null,null,null,null,null,null,null,null,null,null,null,null,null,null,null,null,null,null,null,null,null,null,null,null,null,null,null,null,null,null,null,null,"Page 7: Heritage: Delegated reports and decisions costs per application","£#,##0",{"$f":"AB7","v":0}]
["(P.06)[06]Heritage: Committee reports and decisions costs per application",22,43,11,"Page 11: Heritage: Committee reports and decisions costs per application",null,null,null,null,null,null,null,null,null,null,null,null,null,null,null,null,null,null,null,null,null,null,null,null,null,null,null,null,null,null,null,null,null,null,null,null,null,null,null,null,null,null,null,null,null,null,null,null,null,null,null,null,null,null,null,null,null,null,null,null,null,null,null,null,null,null,null,null,null,null,null,null,null,null,null,null,null,null,null,null,null,null,null,null,null,null,null,null,null,null,null,null,null,null,null,null,null,null,null,null,null,null,null,null,null,null,null,null,null,null,null,null,null,null,null,null,null,null,null,null,null,null,null,null,null,null,null,null,null,null,null,null,null,null,null,null,null,null,null,null,null,null,null,null,null,null,null,null,null,null,null,null,null,null,null,null,null,null,null,null,null,null,null,null,null,null,null,null,null,null,null,null,null,null,null,null,null,null,null,null,null,null,null,null,null,null,null,null,null,null,null,null,null,null,null,null,null,null,null,null,null,null,null,null,null,null,null,null,null,null,null,null,null,null,null,null,null,null,null,null,null,null,null,null,null,null,null,null,null,null,null,null,null,null,null,null,null,null,null,null,null,null,null,null,null,null,null,null,"Page 7: Heritage: Committee reports and decisions costs per application","£#,##0",{"$f":"AB7","v":0}]
["(P.01)[01]Handling applications cost per hour",44,0,12,"Page 12: Handling applications cost per hour",null,null,null,null,null,null,null,null,null,null,null,null,null,null,null,null,null,null,null,null,null,null,null,null,null,null,null,null,null,null,null,null,null,null,null,null,null,null,null,null,null,null,null,null,null,null,null,null,null,null,null,null,null,null,null,null,null,null,null,null,null,null,null,null,null,null,null,null,null,null,null,null,null,null,null,null,null,null,null,null,null,null,null,null,null,null,null,null,null,null,null,null,null,null,null,null,null,null,null,null,null,null,null,null,null,null,null,null,null,null,null,null,null,null,null,null,null,null,null,null,null,null,null,null,null,null,null,null,null,null,null,null,null,null,null,null,null,null,null,null,null,null,null,null,null,null,null,null,null,null,null,null,null,null,null,null,null,null,null,null,null,null,null,null,null,null,null,null,null,null,null,null,null,null,null,null,null,null,null,null,null,null,null,null,null,null,null,null,null,null,null,null,null,null,null,null,null,null,null,null,null,null,null,null,null,null,null,null,null,null,null,null,null,null,null,null,null,null,null,null,null,null,null,null,null,null,null,null,null,null,null,null,null,null,null,null,null,null,null,null,null,null,null,null,null,null,null,null,"Page 8: Handling applications cost per hour","£#,##0",{"$f":"AB7","v":0}]
["(P.01)[02]Direct staff cost per hour",44,1,12,"Page 12: Direct staff cost per hour",null,null,null,null,null,null,null,null,null,null,null,null,null,null,null,null,null,null,null,null,null,null,null,null,null,null,null,null,null,null,null,null,null,null,null,null,null,null,null,null,null,null,null,null,null,null,null,null,null,null,null,null,null,null,null,null,null,null,null,null,null,null,null,null,null,null,null,null,null,null,null,null,null,null,null,null,null,null,null,null,null,null,null,null,null,null,null,null,null,null,null,null,null,null,null,null,null,null,null,null,null,null,null,null,null,null,null,null,null,null,null,null,null,null,null,null,null,null,null,null,null,null,null,null,null,null,null,null,null,null,null,null,null,null,null,null,null,null,null,null,null,null,null,null,null,null,null,null,null,null,null,null,null,null,null,null,null,null,null,null,null,null,null,null,null,null,null,null,null,null,null,null,null,null,null,null,null,null,null,null,null,null,null,null,null,null,null,null,null,null,null,null,null,null,null,null,null,null,null,null,null,null,null,null,null,null,null,null,null,null,null,null,null,null,null,null,null,null,null,null,null,null,null,null,null,null,null,null,null,null,null,null,null,null,null,null,null,null,null,null,null,null,null,null,null,null,null,null,"Page 8: Direct staff cost per hour","£#,##0",{"$f":"AB7","v":0}]
["(P.01)[03]Overhead charges cost per hour\n",44,2,12,"Page 12: Overhead charges cost per hour\n",null,null,null,null,null,null,null,null,null,null,null,null,null,null,null,null,null,null,null,null,null,null,null,null,null,null,null,null,null,null,null,null,null,null,null,null,null,null,null,null,null,null,null,null,null,null,null,null,null,null,null,null,null,null,null,null,null,null,null,null,null,null,null,null,null,null,null,null,null,null,null,null,null,null,null,null,null,null,null,null,null,null,null,null,null,null,null,null,null,null,null,null,null,null,null,null,null,null,null,null,null,null,null,null,null,null,null,null,null,null,null,null,null,null,null,null,null,null,null,null,null,null,null,null,null,null,null,null,null,null,null,null,null,null,null,null,null,null,null,null,null,null,null,null,null,null,null,null,null,null,null,null,null,null,null,null,null,null,null,null,null,null,null,null,null,null,null,null,null,null,null,null,null,null,null,null,null,null,null,null,null,null,null,null,null,null,null,null,null,null,null,null,null,null,null,null,null,null,null,null,null,null,null,null,null,null,null,null,null,null,null,null,null,null,null,null,null,null,null,null,null,null,null,null,null,null,null,null,null,null,null,null,null,null,null,null,null,null,null,null,null,null,null,null,null,null,null,null,"Page 8: Overhead charges cost per hour\n","£#,##0",{"$f":"AB7","v":0}]
["(P.01)[04]Other direct costs per hour\n",44,3,12,"Page 12: Other direct costs per hour\n",null,null,null,null,null,null,null,null,null,null,null,null,null,null,null,null,null,null,null,null,null,null,null,null,null,null,null,null,null,null,null,null,null,null,null,null,null,null,null,null,null,null,null,null,null,null,null,null,null,null,null,null,null,null,null,null,null,null,null,null,null,null,null,null,null,null,null,null,null,null,null,null,null,null,null,null,null,null,null,null,null,null,null,null,null,null,null,null,null,null,null,null,null,null,null,null,null,null,null,null,null,null,null,null,null,null,null,null,null,null,null,null,null,null,null,null,null,null,null,null,null,null,null,null,null,null,null,null,null,null,null,null,null,null,null,null,null,null,null,null,null,null,null,null,null,null,null,null,null,null,null,null,null,null,null,null,null,null,null,null,null,null,null,null,null,null,null,null,null,null,null,null,null,null,null,null,null,null,null,null,null,null,null,null,null,null,null,null,null,null,null,null,null,null,null,null,null,null,null,null,null,null,null,null,null,null,null,null,null,null,null,null,null,null,null,null,null,null,null,null,null,null,null,null,null,null,null,null,null,null,null,null,null,null,null,null,null,null,null,null,null,null,null,null,null,null,null,null,"Page 8: Other direct costs per hour\n","£#,##0",{"$f":"AB7","v":0}]
["(P.01)[05]Away from work Overhead charges (as % of staff costs)\n",44,4,12,"Page 12: Away from work Overhead charges (as % of staff costs)\n",null,null,null,null,null,null,null,null,null,null,null,null,null,null,null,null,null,null,null,null,null,null,null,null,null,null,null,null,null,null,null,null,null,null,null,null,null,null,null,null,null,null,null,null,null,null,null,null,null,null,null,null,null,null,null,null,null,null,null,null,null,null,null,null,null,null,null,null,null,null,null,null,null,null,null,null,null,null,null,null,null,null,null,null,null,null,null,null,null,null,null,null,null,null,null,null,null,null,null,null,null,null,null,null,null,null,null,null,null,null,null,null,null,null,null,null,null,null,null,null,null,null,null,null,null,null,null,null,null,null,null,null,null,null,null,null,null,null,null,null,null,null,null,null,null,null,null,null,null,null,null,null,null,null,null,null,null,null,null,null,null,null,null,null,null,null,null,null,null,null,null,null,null,null,null,null,null,null,null,null,null,null,null,null,null,null,null,null,null,null,null,null,null,null,null,null,null,null,null,null,null,null,null,null,null,null,null,null,null,null,null,null,null,null,null,null,null,null,null,null,null,null,null,null,null,null,null,null,null,null,null,null,null,null,null,null,null,null,null,null,null,null,null,null,null,null,null,null,"Page 8: Away from work Overhead charges (as % of staff costs)\n","0.0%",{"$f":"AB7","v":0}]
["(P.01)[06]Other Generic Overhead charges (as % of staff costs)\n",44,5,12,"Page 12: Other Generic Overhead charges (as % of staff costs)\n",null,null,null,null,null,null,null,null,null,null,null,null,null,null,null,null,null,null,null,null,null,null,null,null,null,null,null,null,null,null,null,null,null,null,null,null,null,null,null,null,null,null,null,null,null,null,null,null,null,null,null,null,null,null,null,null,null,null,null,null,null,null,null,null,null,null,null,null,null,null,null,null,null,null,null,null,null,null,null,null,null,null,null,null,null,null,null,null,null,null,null,null,null,null,null,null,null,null,null,null,null,null,null,null,null,null,null,null,null,null,null,null,null,null,null,null,null,null,null,null,null,null,null,null,null,null,null,null,null,null,null,null,null,null,null,null,null,null,null,null,null,null,null,null,null,null,null,null,null,null,null,null,null,null,null,null,null,null,null,null,null,null,null,null,null,null,null,null,null,null,null,null,null,null,null,null,null,null,null,null,null,null,null,null,null,null,null,null,null,null,null,null,null,null,null,null,null,null,null,null,null,null,null,null,null,null,null,null,null,null,null,null,null,null,null,null,null,null,null,null,null,null,null,null,null,null,null,null,null,null,null,null,null,null,null,null,null,null,null,null,null,null,null,null,null,null,null,null,"Page 8: Other Generic Overhead charges (as % of staff costs)\n","0.0%",{"$f":"AB7","v":0}]
["(P.01)[07]Management Overhead charges (as % of staff costs)\n",44,6,12,"Page 12: Management Overhead charges (as % of staff costs)\n",null,null,null,null,null,null,null,null,null,null,null,null,null,null,null,null,null,null,null,null,null,null,null,null,null,null,null,null,null,null,null,null,null,null,null,null,null,null,null,null,null,null,null,null,null,null,null,null,null,null,null,null,null,null,null,null,null,null,null,null,null,null,null,null,null,null,null,null,null,null,null,null,null,null,null,null,null,null,null,null,null,null,null,null,null,null,null,null,null,null,null,null,null,null,null,null,null,null,null,null,null,null,null,null,null,null,null,null,null,null,null,null,null,null,null,null,null,null,null,null,null,null,null,null,null,null,null,null,null,null,null,null,null,null,null,null,null,null,null,null,null,null,null,null,null,null,null,null,null,null,null,null,null,null,null,null,null,null,null,null,null,null,null,null,null,null,null,null,null,null,null,null,null,null,null,null,null,null,null,null,null,null,null,null,null,null,null,null,null,null,null,null,null,null,null,null,null,null,null,null,null,null,null,null,null,null,null,null,null,null,null,null,null,null,null,null,null,null,null,null,null,null,null,null,null,null,null,null,null,null,null,null,null,null,null,null,null,null,null,null,null,null,null,null,null,null,null,null,"Page 8: Management Overhead charges (as % of staff costs)\n","0.0%",{"$f":"AB7","v":0}]
["(P.01)[01]Total Cost of Basket\n",66,0,13,"Page 13: Total Cost of Basket\n",null,null,null,null,null,null,null,null,null,null,null,null,null,null,null,null,null,null,null,null,null,null,null,null,null,null,null,null,null,null,null,null,null,null,null,null,null,null,null,null,null,null,null,null,null,null,null,null,null,null,null,null,null,null,null,null,null,null,null,null,null,null,null,null,null,null,null,null,null,null,null,null,null,null,null,null,null,null,null,null,null,null,null,null,null,null,null,null,null,null,null,null,null,null,null,null,null,null,null,null,null,null,null,null,null,null,null,null,null,null,null,null,null,null,null,null,null,null,null,null,null,null,null,null,null,null,null,null,null,null,null,null,null,null,null,null,null,null,null,null,null,null,null,null,null,null,null,null,null,null,null,null,null,null,null,null,null,null,null,null,null,null,null,null,null,null,null,null,null,null,null,null,null,null,null,null,null,null,null,null,null,null,null,null,null,null,null,null,null,null,null,null,null,null,null,null,null,null,null,null,null,null,null,null,null,null,null,null,null,null,null,null,null,null,null,null,null,null,null,null,null,null,null,null,null,null,null,null,null,null,null,null,null,null,null,null,null,null,null,null,null,null,null,null,null,null,null,null,"Page 9: Total Cost of Basket\n","£#,##0.0\"m\"",{"$f":"AB7","v":0}]
["(P.01)[01]Applications valid on receipt: All dwellings",88,0,14,"Page 14: Applications valid on receipt: All dwellings",null,null,null,null,null,null,null,null,null,null,null,null,null,null,null,null,null,null,null,null,null,null,null,null,null,null,null,null,null,null,null,null,null,null,null,null,null,null,null,null,null,null,null,null,null,null,null,null,null,null,null,null,null,null,null,null,null,null,null,null,null,null,null,null,null,null,null,null,null,null,null,null,null,null,null,null,null,null,null,null,null,null,null,null,null,null,null,null,null,null,null,null,null,null,null,null,null,null,null,null,null,null,null,null,null,null,null,null,null,null,null,null,null,null,null,null,null,null,null,null,null,null,null,null,null,null,null,null,null,null,null,null,null,null,null,null,null,null,null,null,null,null,null,null,null,null,null,null,null,null,null,null,null,null,null,null,null,null,null,null,null,null,null,null,null,null,null,null,null,null,null,null,null,null,null,null,null,null,null,null,null,null,null,null,null,null,null,null,null,null,null,null,null,null,null,null,null,null,null,null,null,null,null,null,null,null,null,null,null,null,null,null,null,null,null,null,null,null,null,null,null,null,null,null,null,null,null,null,null,null,null,null,null,null,null,null,null,null,null,null,null,null,null,null,null,null,null,null,"Page 10: Applications valid on receipt: All dwellings","0.0%",{"$f":"AB7","v":0}]
["(P.01)[02]Applications valid on receipt: Local non-residential",88,1,14,"Page 14: Applications valid on receipt: Local non-residential",null,null,null,null,null,null,null,null,null,null,null,null,null,null,null,null,null,null,null,null,null,null,null,null,null,null,null,null,null,null,null,null,null,null,null,null,null,null,null,null,null,null,null,null,null,null,null,null,null,null,null,null,null,null,null,null,null,null,null,null,null,null,null,null,null,null,null,null,null,null,null,null,null,null,null,null,null,null,null,null,null,null,null,null,null,null,null,null,null,null,null,null,null,null,null,null,null,null,null,null,null,null,null,null,null,null,null,null,null,null,null,null,null,null,null,null,null,null,null,null,null,null,null,null,null,null,null,null,null,null,null,null,null,null,null,null,null,null,null,null,null,null,null,null,null,null,null,null,null,null,null,null,null,null,null,null,null,null,null,null,null,null,null,null,null,null,null,null,null,null,null,null,null,null,null,null,null,null,null,null,null,null,null,null,null,null,null,null,null,null,null,null,null,null,null,null,null,null,null,null,null,null,null,null,null,null,null,null,null,null,null,null,null,null,null,null,null,null,null,null,null,null,null,null,null,null,null,null,null,null,null,null,null,null,null,null,null,null,null,null,null,null,null,null,null,null,null,null,"Page 10: Applications valid on receipt: Local non-residential","0.0%",{"$f":"AB7","v":0}]
["(P.01)[03]Applications valid on receipt: Householders",88,2,14,"Page 14: Applications valid on receipt: Householders",null,null,null,null,null,null,null,null,null,null,null,null,null,null,null,null,null,null,null,null,null,null,null,null,null,null,null,null,null,null,null,null,null,null,null,null,null,null,null,null,null,null,null,null,null,null,null,null,null,null,null,null,null,null,null,null,null,null,null,null,null,null,null,null,null,null,null,null,null,null,null,null,null,null,null,null,null,null,null,null,null,null,null,null,null,null,null,null,null,null,null,null,null,null,null,null,null,null,null,null,null,null,null,null,null,null,null,null,null,null,null,null,null,null,null,null,null,null,null,null,null,null,null,null,null,null,null,null,null,null,null,null,null,null,null,null,null,null,null,null,null,null,null,null,null,null,null,null,null,null,null,null,null,null,null,null,null,null,null,null,null,null,null,null,null,null,null,null,null,null,null,null,null,null,null,null,null,null,null,null,null,null,null,null,null,null,null,null,null,null,null,null,null,null,null,null,null,null,null,null,null,null,null,null,null,null,null,null,null,null,null,null,null,null,null,null,null,null,null,null,null,null,null,null,null,null,null,null,null,null,null,null,null,null,null,null,null,null,null,null,null,null,null,null,null,null,null,null,"Page 10: Applications valid on receipt: Householders","0.0%",{"$f":"AB7","v":0}]
["(P.01)[04]Applications valid on receipt: Electricity",88,3,14,"Page 14: Applications valid on receipt: Electricity",null,null,null,null,null,null,null,null,null,null,null,null,null,null,null,null,null,null,null,null,null,null,null,null,null,null,null,null,null,null,null,null,null,null,null,null,null,null,null,null,null,null,null,null,null,null,null,null,null,null,null,null,null,null,null,null,null,null,null,null,null,null,null,null,null,null,null,null,null,null,null,null,null,null,null,null,null,null,null,null,null,null,null,null,null,null,null,null,null,null,null,null,null,null,null,null,null,null,null,null,null,null,null,null,null,null,null,null,null,null,null,null,null,null,null,null,null,null,null,null,null,null,null,null,null,null,null,null,null,null,null,null,null,null,null,null,null,null,null,null,null,null,null,null,null,null,null,null,null,null,null,null,null,null,null,null,null,null,null,null,null,null,null,null,null,null,null,null,null,null,null,null,null,null,null,null,null,null,null,null,null,null,null,null,null,null,null,null,null,null,null,null,null,null,null,null,null,null,null,null,null,null,null,null,null,null,null,null,null,null,null,null,null,null,null,null,null,null,null,null,null,null,null,null,null,null,null,null,null,null,null,null,null,null,null,null,null,null,null,null,null,null,null,null,null,null,null,null,"Page 10: Applications valid on receipt: Electricity","0.0%",{"$f":"AB7","v":0}]
["(P.01)[05]Applications valid on receipt: All others",88,4,14,"Page 14: Applications valid on receipt: All others",null,null,null,null,null,null,null,null,null,null,null,null,null,null,null,null,null,null,null,null,null,null,null,null,null,null,null,null,null,null,null,null,null,null,null,null,null,null,null,null,null,null,null,null,null,null,null,null,null,null,null,null,null,null,null,null,null,null,null,null,null,null,null,null,null,null,null,null,null,null,null,null,null,null,null,null,null,null,null,null,null,null,null,null,null,null,null,null,null,null,null,null,null,null,null,null,null,null,null,null,null,null,null,null,null,null,null,null,null,null,null,null,null,null,null,null,null,null,null,null,null,null,null,null,null,null,null,null,null,null,null,null,null,null,null,null,null,null,null,null,null,null,null,null,null,null,null,null,null,null,null,null,null,null,null,null,null,null,null,null,null,null,null,null,null,null,null,null,null,null,null,null,null,null,null,null,null,null,null,null,null,null,null,null,null,null,null,null,null,null,null,null,null,null,null,null,null,null,null,null,null,null,null,null,null,null,null,null,null,null,null,null,null,null,null,null,null,null,null,null,null,null,null,null,null,null,null,null,null,null,null,null,null,null,null,null,null,null,null,null,null,null,null,null,null,null,null,null,"Page 10: Applications valid on receipt: All others","0.0%",{"$f":"AB7","v":0}]
["(P.02)[01]Applications withdrawn: All dwellings",88,5,15,"Page 15: Applications withdrawn: All dwellings",null,null,null,null,null,null,null,null,null,null,null,null,null,null,null,null,null,null,null,null,null,null,null,null,null,null,null,null,null,null,null,null,null,null,null,null,null,null,null,null,null,null,null,null,null,null,null,null,null,null,null,null,null,null,null,null,null,null,null,null,null,null,null,null,null,null,null,null,null,null,null,null,null,null,null,null,null,null,null,null,null,null,null,null,null,null,null,null,null,null,null,null,null,null,null,null,null,null,null,null,null,null,null,null,null,null,null,null,null,null,null,null,null,null,null,null,null,null,null,null,null,null,null,null,null,null,null,null,null,null,null,null,null,null,null,null,null,null,null,null,null,null,null,null,null,null,null,null,null,null,null,null,null,null,null,null,null,null,null,null,null,null,null,null,null,null,null,null,null,null,null,null,null,null,null,null,null,null,null,null,null,null,null,null,null,null,null,null,null,null,null,null,null,null,null,null,null,null,null,null,null,null,null,null,null,null,null,null,null,null,null,null,null,null,null,null,null,null,null,null,null,null,null,null,null,null,null,null,null,null,null,null,null,null,null,null,null,null,null,null,null,null,null,null,null,null,null,null,"Page 11: Applications withdrawn: All dwellings","0.0%",{"$f":"AB7","v":0}]
["(P.02)[02]Applications withdrawn: Local non-residential",88,6,15,"Page 15: Applications withdrawn: Local non-residential",null,null,null,null,null,null,null,null,null,null,null,null,null,null,null,null,null,null,null,null,null,null,null,null,null,null,null,null,null,null,null,null,null,null,null,null,null,null,null,null,null,null,null,null,null,null,null,null,null,null,null,null,null,null,null,null,null,null,null,null,null,null,null,null,null,null,null,null,null,null,null,null,null,null,null,null,null,null,null,null,null,null,null,null,null,null,null,null,null,null,null,null,null,null,null,null,null,null,null,null,null,null,null,null,null,null,null,null,null,null,null,null,null,null,null,null,null,null,null,null,null,null,null,null,null,null,null,null,null,null,null,null,null,null,null,null,null,null,null,null,null,null,null,null,null,null,null,null,null,null,null,null,null,null,null,null,null,null,null,null,null,null,null,null,null,null,null,null,null,null,null,null,null,null,null,null,null,null,null,null,null,null,null,null,null,null,null,null,null,null,null,null,null,null,null,null,null,null,null,null,null,null,null,null,null,null,null,null,null,null,null,null,null,null,null,null,null,null,null,null,null,null,null,null,null,null,null,null,null,null,null,null,null,null,null,null,null,null,null,null,null,null,null,null,null,null,null,null,"Page 11: Applications withdrawn: Local non-residential","0.0%",{"$f":"AB7","v":0}]
["(P.02)[03]Applications withdrawn: Householders",88,7,15,"Page 15: Applications withdrawn: Householders",null,null,null,null,null,null,null,null,null,null,null,null,null,null,null,null,null,null,null,null,null,null,null,null,null,null,null,null,null,null,null,null,null,null,null,null,null,null,null,null,null,null,null,null,null,null,null,null,null,null,null,null,null,null,null,null,null,null,null,null,null,null,null,null,null,null,null,null,null,null,null,null,null,null,null,null,null,null,null,null,null,null,null,null,null,null,null,null,null,null,null,null,null,null,null,null,null,null,null,null,null,null,null,null,null,null,null,null,null,null,null,null,null,null,null,null,null,null,null,null,null,null,null,null,null,null,null,null,null,null,null,null,null,null,null,null,null,null,null,null,null,null,null,null,null,null,null,null,null,null,null,null,null,null,null,null,null,null,null,null,null,null,null,null,null,null,null,null,null,null,null,null,null,null,null,null,null,null,null,null,null,null,null,null,null,null,null,null,null,null,null,null,null,null,null,null,null,null,null,null,null,null,null,null,null,null,null,null,null,null,null,null,null,null,null,null,null,null,null,null,null,null,null,null,null,null,null,null,null,null,null,null,null,null,null,null,null,null,null,null,null,null,null,null,null,null,null,null,"Page 11: Applications withdrawn: Householders","0.0%",{"$f":"AB7","v":0}]
["(P.02)[04]Applications withdrawn: Electricity",88,8,15,"Page 15: Applications withdrawn: Electricity",null,null,null,null,null,null,null,null,null,null,null,null,null,null,null,null,null,null,null,null,null,null,null,null,null,null,null,null,null,null,null,null,null,null,null,null,null,null,null,null,null,null,null,null,null,null,null,null,null,null,null,null,null,null,null,null,null,null,null,null,null,null,null,null,null,null,null,null,null,null,null,null,null,null,null,null,null,null,null,null,null,null,null,null,null,null,null,null,null,null,null,null,null,null,null,null,null,null,null,null,null,null,null,null,null,null,null,null,null,null,null,null,null,null,null,null,null,null,null,null,null,null,null,null,null,null,null,null,null,null,null,null,null,null,null,null,null,null,null,null,null,null,null,null,null,null,null,null,null,null,null,null,null,null,null,null,null,null,null,null,null,null,null,null,null,null,null,null,null,null,null,null,null,null,null,null,null,null,null,null,null,null,null,null,null,null,null,null,null,null,null,null,null,null,null,null,null,null,null,null,null,null,null,null,null,null,null,null,null,null,null,null,null,null,null,null,null,null,null,null,null,null,null,null,null,null,null,null,null,null,null,null,null,null,null,null,null,null,null,null,null,null,null,null,null,null,null,null,"Page 11: Applications withdrawn: Electricity","0.0%",{"$f":"AB7","v":0}]
["(P.02)[05]Applications withdrawn: All others",88,9,{"$f":"D67--OR(B68<>B67,LEFT(A68,5)<>LEFT(A67,5))","v":15},{"$f":"\"Page \"&D68&\": \" &RIGHT(A68,LEN(A68)-10)","v":"Page 15: Applications withdrawn: All others"},null,null,null,null,null,null,null,null,null,null,null,null,null,null,null,null,null,null,null,null,null,null,null,null,null,null,null,null,null,null,null,null,null,null,null,null,null,null,null,null,null,null,null,null,null,null,null,null,null,null,null,null,null,null,null,null,null,null,null,null,null,null,null,null,null,null,null,null,null,null,null,null,null,null,null,null,null,null,null,null,null,null,null,null,null,null,null,null,null,null,null,null,null,null,null,null,null,null,null,null,null,null,null,null,null,null,null,null,null,null,null,null,null,null,null,null,null,null,null,null,null,null,null,null,null,null,null,null,null,null,null,null,null,null,null,null,null,null,null,null,null,null,null,null,null,null,null,null,null,null,null,null,null,null,null,null,null,null,null,null,null,null,null,null,null,null,null,null,null,null,null,null,null,null,null,null,null,null,null,null,null,null,null,null,null,null,null,null,null,null,null,null,null,null,null,null,null,null,null,null,null,null,null,null,null,null,null,null,null,null,null,null,null,null,null,null,null,null,null,null,null,null,null,null,null,null,null,null,null,null,null,null,null,null,null,null,null,null,null,null,null,null,null,null,null,null,null,null,"Page 11: Applications withdrawn: All others","0.0%",{"$f":"AB7","v":0}]
["(P.03)[01]Zero fee applications: All dwellings",88,10,16,"Page 16: Zero fee applications: All dwellings",null,null,null,null,null,null,null,null,null,null,null,null,null,null,null,null,null,null,null,null,null,null,null,null,null,null,null,null,null,null,null,null,null,null,null,null,null,null,null,null,null,null,null,null,null,null,null,null,null,null,null,null,null,null,null,null,null,null,null,null,null,null,null,null,null,null,null,null,null,null,null,null,null,null,null,null,null,null,null,null,null,null,null,null,null,null,null,null,null,null,null,null,null,null,null,null,null,null,null,null,null,null,null,null,null,null,null,null,null,null,null,null,null,null,null,null,null,null,null,null,null,null,null,null,null,null,null,null,null,null,null,null,null,null,null,null,null,null,null,null,null,null,null,null,null,null,null,null,null,null,null,null,null,null,null,null,null,null,null,null,null,null,null,null,null,null,null,null,null,null,null,null,null,null,null,null,null,null,null,null,null,null,null,null,null,null,null,null,null,null,null,null,null,null,null,null,null,null,null,null,null,null,null,null,null,null,null,null,null,null,null,null,null,null,null,null,null,null,null,null,null,null,null,null,null,null,null,null,null,null,null,null,null,null,null,null,null,null,null,null,null,null,null,null,null,null,null,null,"Page 12: Zero fee applications: All dwellings","0.0%",{"$f":"AB7","v":0}]
["(P.03)[02]Zero fee applications: Local non-residential",88,11,16,"Page 16: Zero fee applications: Local non-residential",null,null,null,null,null,null,null,null,null,null,null,null,null,null,null,null,null,null,null,null,null,null,null,null,null,null,null,null,null,null,null,null,null,null,null,null,null,null,null,null,null,null,null,null,null,null,null,null,null,null,null,null,null,null,null,null,null,null,null,null,null,null,null,null,null,null,null,null,null,null,null,null,null,null,null,null,null,null,null,null,null,null,null,null,null,null,null,null,null,null,null,null,null,null,null,null,null,null,null,null,null,null,null,null,null,null,null,null,null,null,null,null,null,null,null,null,null,null,null,null,null,null,null,null,null,null,null,null,null,null,null,null,null,null,null,null,null,null,null,null,null,null,null,null,null,null,null,null,null,null,null,null,null,null,null,null,null,null,null,null,null,null,null,null,null,null,null,null,null,null,null,null,null,null,null,null,null,null,null,null,null,null,null,null,null,null,null,null,null,null,null,null,null,null,null,null,null,null,null,null,null,null,null,null,null,null,null,null,null,null,null,null,null,null,null,null,null,null,null,null,null,null,null,null,null,null,null,null,null,null,null,null,null,null,null,null,null,null,null,null,null,null,null,null,null,null,null,null,"Page 12: Zero fee applications: Local non-residential","0.0%",{"$f":"AB7","v":0}]
["(P.03)[03]Zero fee applications: Householders",88,12,16,"Page 16: Zero fee applications: Householders",null,null,null,null,null,null,null,null,null,null,null,null,null,null,null,null,null,null,null,null,null,null,null,null,null,null,null,null,null,null,null,null,null,null,null,null,null,null,null,null,null,null,null,null,null,null,null,null,null,null,null,null,null,null,null,null,null,null,null,null,null,null,null,null,null,null,null,null,null,null,null,null,null,null,null,null,null,null,null,null,null,null,null,null,null,null,null,null,null,null,null,null,null,null,null,null,null,null,null,null,null,null,null,null,null,null,null,null,null,null,null,null,null,null,null,null,null,null,null,null,null,null,null,null,null,null,null,null,null,null,null,null,null,null,null,null,null,null,null,null,null,null,null,null,null,null,null,null,null,null,null,null,null,null,null,null,null,null,null,null,null,null,null,null,null,null,null,null,null,null,null,null,null,null,null,null,null,null,null,null,null,null,null,null,null,null,null,null,null,null,null,null,null,null,null,null,null,null,null,null,null,null,null,null,null,null,null,null,null,null,null,null,null,null,null,null,null,null,null,null,null,null,null,null,null,null,null,null,null,null,null,null,null,null,null,null,null,null,null,null,null,null,null,null,null,null,null,null,"Page 12: Zero fee applications: Householders","0.0%",{"$f":"AB7","v":0}]
["(P.03)[04]Zero fee applications: Electricity",88,13,16,"Page 16: Zero fee applications: Electricity",null,null,null,null,null,null,null,null,null,null,null,null,null,null,null,null,null,null,null,null,null,null,null,null,null,null,null,null,null,null,null,null,null,null,null,null,null,null,null,null,null,null,null,null,null,null,null,null,null,null,null,null,null,null,null,null,null,null,null,null,null,null,null,null,null,null,null,null,null,null,null,null,null,null,null,null,null,null,null,null,null,null,null,null,null,null,null,null,null,null,null,null,null,null,null,null,null,null,null,null,null,null,null,null,null,null,null,null,null,null,null,null,null,null,null,null,null,null,null,null,null,null,null,null,null,null,null,null,null,null,null,null,null,null,null,null,null,null,null,null,null,null,null,null,null,null,null,null,null,null,null,null,null,null,null,null,null,null,null,null,null,null,null,null,null,null,null,null,null,null,null,null,null,null,null,null,null,null,null,null,null,null,null,null,null,null,null,null,null,null,null,null,null,null,null,null,null,null,null,null,null,null,null,null,null,null,null,null,null,null,null,null,null,null,null,null,null,null,null,null,null,null,null,null,null,null,null,null,null,null,null,null,null,null,null,null,null,null,null,null,null,null,null,null,null,null,null,null,"Page 12: Zero fee applications: Electricity","0.0%",{"$f":"AB7","v":0}]
["(P.03)[05]Zero fee applications: All others",88,14,16,"Page 16: Zero fee applications: All others",null,"Authority","Group","Question",null,null,null,null,null,null,null,null,null,null,null,null,null,null,null,null,null,null,null,null,null,null,null,null,null,null,null,null,null,null,null,null,null,null,null,null,null,null,null,null,null,null,null,null,null,null,null,null,null,null,null,null,null,null,null,null,null,null,null,null,null,null,null,null,null,null,null,null,null,null,null,null,null,null,null,null,null,null,null,null,null,null,null,null,null,null,null,null,null,null,null,null,null,null,null,null,null,null,null,null,null,null,null,null,null,null,null,null,null,null,null,null,null,null,null,null,null,null,null,null,null,null,null,null,null,null,null,null,null,null,null,null,null,null,null,null,null,null,null,null,null,null,null,null,null,null,null,null,null,null,null,null,null,null,null,null,null,null,null,null,null,null,null,null,null,null,null,null,null,null,null,null,null,null,null,null,null,null,null,null,null,null,null,null,null,null,null,null,null,null,null,null,null,null,null,null,null,null,null,null,null,null,null,null,null,null,null,null,null,null,null,null,null,null,null,null,null,null,null,null,null,null,null,null,null,null,null,null,null,null,null,null,null,null,null,null,null,null,null,null,null,null,null,null,"Page 12: Zero fee applications: All others","0.0%",{"$f":"AB7","v":0}]
["(P.04)[01]Pre-application advice: All dwellings",88,15,17,"Page 17: Pre-application advice: All dwellings",null,{"$f":"Coding!G36","v":1},2,{"$f":"Coding!G38","v":1},null,null,null,null,null,null,null,null,null,null,null,null,null,null,null,null,null,null,null,null,null,null,null,null,null,null,null,null,null,null,null,null,null,null,null,null,null,null,null,null,null,null,null,null,null,null,null,null,null,null,null,null,null,null,null,null,null,null,null,null,null,null,null,null,null,null,null,null,null,null,null,null,null,null,null,null,null,null,null,null,null,null,null,null,null,null,null,null,null,null,null,null,null,null,null,null,null,null,null,null,null,null,null,null,null,null,null,null,null,null,null,null,null,null,null,null,null,null,null,null,null,null,null,null,null,null,null,null,null,null,null,null,null,null,null,null,null,null,null,null,null,null,null,null,null,null,null,null,null,null,null,null,null,null,null,null,null,null,null,null,null,null,null,null,null,null,null,null,null,null,null,null,null,null,null,null,null,null,null,null,null,null,null,null,null,null,null,null,null,null,null,null,null,null,null,null,null,null,null,null,null,null,null,null,null,null,null,null,null,null,null,null,null,null,null,null,null,null,null,null,null,null,null,null,null,null,null,null,null,null,null,null,null,null,null,null,null,null,null,null,null,null,null,null,"Page 13: Pre-application advice: All dwellings","0.0%",{"$f":"AB7","v":0}]
["(P.04)[02]Pre-application advice: Local non-residential",88,16,17,"Page 17: Pre-application advice: Local non-residential",null,{"$f":"INDEX(Coding!L6:L192,G74)","v":"--- Please Select ---"},{"$f":"INDEX(Coding!H95:H106,H74,1)","v":"All"},null,null,null,null,null,null,null,null,null,null,null,null,null,null,null,null,null,null,null,null,null,null,null,null,null,null,null,null,null,null,null,null,null,null,null,null,null,null,null,null,null,null,null,null,null,null,null,null,null,null,null,null,null,null,null,null,null,null,null,null,null,null,null,null,null,null,null,null,null,null,null,null,null,null,null,null,null,null,null,null,null,null,null,null,null,null,null,null,null,null,null,null,null,null,null,null,null,null,null,null,null,null,null,null,null,null,null,null,null,null,null,null,null,null,null,null,null,null,null,null,null,null,null,null,null,null,null,null,null,null,null,null,null,null,null,null,null,null,null,null,null,null,null,null,null,null,null,null,null,null,null,null,null,null,null,null,null,null,null,null,null,null,null,null,null,null,null,null,null,null,null,null,null,null,null,null,null,null,null,null,null,null,null,null,null,null,null,null,null,null,null,null,null,null,null,null,null,null,null,null,null,null,null,null,null,null,null,null,null,null,null,null,null,null,null,null,null,null,null,null,null,null,null,null,null,null,null,null,null,null,null,null,null,null,null,null,null,null,null,null,null,null,null,null,null,"Page 13: Pre-application advice: Local non-residential","0.0%",{"$f":"AB7","v":0}]
["(P.04)[03]Pre-application advice: Householders",88,17,17,"Page 17: Pre-application advice: Householders",null,null,null,null,null,null,null,null,null,null,null,null,null,null,null,null,null,null,null,null,null,null,null,null,null,null,null,null,null,null,null,null,null,null,null,null,null,null,null,null,null,null,null,null,null,null,null,null,null,null,null,null,null,null,null,null,null,null,null,null,null,null,null,null,null,null,null,null,null,null,null,null,null,null,null,null,null,null,null,null,null,null,null,null,null,null,null,null,null,null,null,null,null,null,null,null,null,null,null,null,null,null,null,null,null,null,null,null,null,null,null,null,null,null,null,null,null,null,null,null,null,null,null,null,null,null,null,null,null,null,null,null,null,null,null,null,null,null,null,null,null,null,null,null,null,null,null,null,null,null,null,null,null,null,null,null,null,null,null,null,null,null,null,null,null,null,null,null,null,null,null,null,null,null,null,null,null,null,null,null,null,null,null,null,null,null,null,null,null,null,null,null,null,null,null,null,null,null,null,null,null,null,null,null,null,null,null,null,null,null,null,null,null,null,null,null,null,null,null,null,null,null,null,null,null,null,null,null,null,null,null,null,null,null,null,null,null,null,null,null,null,null,null,null,null,null,null,null,"Page 13: Pre-application advice: Householders","0.0%",{"$f":"AB7","v":0}]
["(P.04)[04]Pre-application advice: All others",88,18,17,"Page 17: Pre-application advice: All others",null,null,null,null,null,null,null,null,null,null,null,null,null,null,null,null,null,null,null,null,null,null,null,null,null,null,null,null,null,null,null,null,null,null,null,null,null,null,null,null,null,null,null,null,null,null,null,null,null,null,null,null,null,null,null,null,null,null,null,null,null,null,null,null,null,null,null,null,null,null,null,null,null,null,null,null,null,null,null,null,null,null,null,null,null,null,null,null,null,null,null,null,null,null,null,null,null,null,null,null,null,null,null,null,null,null,null,null,null,null,null,null,null,null,null,null,null,null,null,null,null,null,null,null,null,null,null,null,null,null,null,null,null,null,null,null,null,null,null,null,null,null,null,null,null,null,null,null,null,null,null,null,null,null,null,null,null,null,null,null,null,null,null,null,null,null,null,null,null,null,null,null,null,null,null,null,null,null,null,null,null,null,null,null,null,null,null,null,null,null,null,null,null,null,null,null,null,null,null,null,null,null,null,null,null,null,null,null,null,null,null,null,null,null,null,null,null,null,null,null,null,null,null,null,null,null,null,null,null,null,null,null,null,null,null,null,null,null,null,null,null,null,null,null,null,null,null,null,"Page 13: Pre-application advice: All others","0.0%",{"$f":"AB7","v":0}]
["(P.05)[01]Delegation rate: Major non-residential",88,19,18,"Page 18: Delegation rate: Major non-residential",null,null,"Comparator Group Table",null,null,null,null,null,null,null,null,null,null,null,null,null,null,null,null,null,null,null,null,null,null,null,null,null,null,null,null,null,null,null,null,null,null,null,null,null,null,null,null,null,null,null,null,null,null,null,null,null,null,null,null,null,null,null,null,null,null,null,null,null,null,null,null,null,null,null,null,null,null,null,null,null,null,null,null,null,null,null,null,null,null,null,null,null,null,null,null,null,null,null,null,null,null,null,null,null,null,null,null,null,null,null,null,null,null,null,null,null,null,null,null,null,null,null,null,null,null,null,null,null,null,null,null,null,null,null,null,null,null,null,null,null,null,null,null,null,null,null,null,null,null,null,null,null,null,null,null,null,null,null,null,null,null,null,null,null,null,null,null,null,null,null,null,null,null,null,null,null,null,null,null,null,null,null,null,null,null,null,null,null,null,null,null,null,null,null,null,null,null,null,null,null,null,null,null,null,null,null,null,null,null,null,null,null,null,null,null,null,null,null,null,null,null,null,null,null,null,null,null,null,null,null,null,null,null,null,null,null,null,null,null,null,null,null,null,null,null,null,null,null,null,null,null,null,"Page 14: Delegation rate: Major non-residential","0.0%",{"$f":"AB7","v":0}]
["(P.05)[02]Delegation rate: All dwellings",88,20,18,"Page 18: Delegation rate: All dwellings",null,{"$f":"G78+(J79>0)","v":0},"d","Districts",{"$f":"COUNTIF($M$7:$M$306,Coding!H79)","v":0},null,null,null,null,null,null,null,null,null,null,null,null,null,null,null,null,null,null,null,null,null,null,null,null,null,null,null,null,null,null,null,null,null,null,null,null,null,null,null,null,null,null,null,null,null,null,null,null,null,null,null,null,null,null,null,null,null,null,null,null,null,null,null,null,null,null,null,null,null,null,null,null,null,null,null,null,null,null,null,null,null,null,null,null,null,null,null,null,null,null,null,null,null,null,null,null,null,null,null,null,null,null,null,null,null,null,null,null,null,null,null,null,null,null,null,null,null,null,null,null,null,null,null,null,null,null,null,null,null,null,null,null,null,null,null,null,null,null,null,null,null,null,null,null,null,null,null,null,null,null,null,null,null,null,null,null,null,null,null,null,null,null,null,null,null,null,null,null,null,null,null,null,null,null,null,null,null,null,null,null,null,null,null,null,null,null,null,null,null,null,null,null,null,null,null,null,null,null,null,null,null,null,null,null,null,null,null,null,null,null,null,null,null,null,null,null,null,null,null,null,null,null,null,null,null,null,null,null,null,null,null,null,null,null,null,null,null,null,null,null,null,null,null,"Page 14: Delegation rate: All dwellings","0.0%",{"$f":"AB7","v":0}]
["(P.05)[03]Delegation rate: Local non-residential",88,21,18,"Page 18: Delegation rate: Local non-residential",null,{"$f":"G79+(J80>0)","v":0},"c","Counties",{"$f":"COUNTIF($M$7:$M$306,Coding!H80)","v":0},null,null,null,null,null,null,null,null,null,null,null,null,null,null,null,null,null,null,null,null,null,null,null,null,null,null,null,null,null,null,null,null,null,null,null,null,null,null,null,null,null,null,null,null,null,null,null,null,null,null,null,null,null,null,null,null,null,null,null,null,null,null,null,null,null,null,null,null,null,null,null,null,null,null,null,null,null,null,null,null,null,null,null,null,null,null,null,null,null,null,null,null,null,null,null,null,null,null,null,null,null,null,null,null,null,null,null,null,null,null,null,null,null,null,null,null,null,null,null,null,null,null,null,null,null,null,null,null,null,null,null,null,null,null,null,null,null,null,null,null,null,null,null,null,null,null,null,null,null,null,null,null,null,null,null,null,null,null,null,null,null,null,null,null,null,null,null,null,null,null,null,null,null,null,null,null,null,null,null,null,null,null,null,null,null,null,null,null,null,null,null,null,null,null,null,null,null,null,null,null,null,null,null,null,null,null,null,null,null,null,null,null,null,null,null,null,null,null,null,null,null,null,null,null,null,null,null,null,null,null,null,null,null,null,null,null,null,null,null,null,null,null,null,"Page 14: Delegation rate: Local non-residential","0.0%",{"$f":"AB7","v":0}]
["(P.05)[04]Delegation rate: Householders",88,22,18,"Page 18: Delegation rate: Householders",null,0,"U","All Unitaries",{"$f":"SUM(J82:J86)","v":0},null,null,null,null,null,null,null,null,null,null,null,null,null,null,null,null,null,null,null,null,null,null,null,null,null,null,null,null,null,null,null,null,null,null,null,null,null,null,null,null,null,null,null,null,null,null,null,null,null,null,null,null,null,null,null,null,null,null,null,null,null,null,null,null,null,null,null,null,null,null,null,null,null,null,null,null,null,null,null,null,null,null,null,null,null,null,null,null,null,null,null,null,null,null,null,null,null,null,null,null,null,null,null,null,null,null,null,null,null,null,null,null,null,null,null,null,null,null,null,null,null,null,null,null,null,null,null,null,null,null,null,null,null,null,null,null,null,null,null,null,null,null,null,null,null,null,null,null,null,null,null,null,null,null,null,null,null,null,null,null,null,null,null,null,null,null,null,null,null,null,null,null,null,null,null,null,null,null,null,null,null,null,null,null,null,null,null,null,null,null,null,null,null,null,null,null,null,null,null,null,null,null,null,null,null,null,null,null,null,null,null,null,null,null,null,null,null,null,null,null,null,null,null,null,null,null,null,null,null,null,null,null,null,null,null,null,null,null,null,null,null,null,null,"Page 14: Delegation rate: Householders","0.0%",{"$f":"AB7","v":0}]
["(P.06)[01]% Granted: Major non-residential",88,23,19,"Page 19: % Granted: Major non-residential",null,0,"wu","Welsh Unitaries",{"$f":"COUNTIF($M$7:$M$306,Coding!H82)","v":0},null,null,null,null,null,null,null,null,null,null,null,null,null,null,null,null,null,null,null,null,null,null,null,null,null,null,null,null,null,null,null,null,null,null,null,null,null,null,null,null,null,null,null,null,null,null,null,null,null,null,null,null,null,null,null,null,null,null,null,null,null,null,null,null,null,null,null,null,null,null,null,null,null,null,null,null,null,null,null,null,null,null,null,null,null,null,null,null,null,null,null,null,null,null,null,null,null,null,null,null,null,null,null,null,null,null,null,null,null,null,null,null,null,null,null,null,null,null,null,null,null,null,null,null,null,null,null,null,null,null,null,null,null,null,null,null,null,null,null,null,null,null,null,null,null,null,null,null,null,null,null,null,null,null,null,null,null,null,null,null,null,null,null,null,null,null,null,null,null,null,null,null,null,null,null,null,null,null,null,null,null,null,null,null,null,null,null,null,null,null,null,null,null,null,null,null,null,null,null,null,null,null,null,null,null,null,null,null,null,null,null,null,null,null,null,null,null,null,null,null,null,null,null,null,null,null,null,null,null,null,null,null,null,null,null,null,null,null,null,null,null,null,null,"Page 15: % Granted: Major non-residential","0.0%",{"$f":"AB7","v":0}]
["(P.06)[02]% Granted: All dwellings",88,24,19,"Page 19: % Granted: All dwellings",null,0,"su","Scottish",{"$f":"COUNTIF($M$7:$M$306,Coding!H83)","v":0},null,null,null,null,null,null,null,null,null,null,null,null,null,null,null,null,null,null,null,null,null,null,null,null,null,null,null,null,null,null,null,null,null,null,null,null,null,null,null,null,null,null,null,null,null,null,null,null,null,null,null,null,null,null,null,null,null,null,null,null,null,null,null,null,null,null,null,null,null,null,null,null,null,null,null,null,null,null,null,null,null,null,null,null,null,null,null,null,null,null,null,null,null,null,null,null,null,null,null,null,null,null,null,null,null,null,null,null,null,null,null,null,null,null,null,null,null,null,null,null,null,null,null,null,null,null,null,null,null,null,null,null,null,null,null,null,null,null,null,null,null,null,null,null,null,null,null,null,null,null,null,null,null,null,null,null,null,null,null,null,null,null,null,null,null,null,null,null,null,null,null,null,null,null,null,null,null,null,null,null,null,null,null,null,null,null,null,null,null,null,null,null,null,null,null,null,null,null,null,null,null,null,null,null,null,null,null,null,null,null,null,null,null,null,null,null,null,null,null,null,null,null,null,null,null,null,null,null,null,null,null,null,null,null,null,null,null,null,null,null,null,null,null,"Page 15: % Granted: All dwellings","0.0%",{"$f":"AB7","v":0}]
["(P.06)[03] % Granted: Local non-residential",88,25,19,"Page 19:  % Granted: Local non-residential",null,0,"ul","London Unitaries",{"$f":"COUNTIF($M$7:$M$306,Coding!H84)","v":0},null,null,null,null,null,null,null,null,null,null,null,null,null,null,null,null,null,null,null,null,null,null,null,null,null,null,null,null,null,null,null,null,null,null,null,null,null,null,null,null,null,null,null,null,null,null,null,null,null,null,null,null,null,null,null,null,null,null,null,null,null,null,null,null,null,null,null,null,null,null,null,null,null,null,null,null,null,null,null,null,null,null,null,null,null,null,null,null,null,null,null,null,null,null,null,null,null,null,null,null,null,null,null,null,null,null,null,null,null,null,null,null,null,null,null,null,null,null,null,null,null,null,null,null,null,null,null,null,null,null,null,null,null,null,null,null,null,null,null,null,null,null,null,null,null,null,null,null,null,null,null,null,null,null,null,null,null,null,null,null,null,null,null,null,null,null,null,null,null,null,null,null,null,null,null,null,null,null,null,null,null,null,null,null,null,null,null,null,null,null,null,null,null,null,null,null,null,null,null,null,null,null,null,null,null,null,null,null,null,null,null,null,null,null,null,null,null,null,null,null,null,null,null,null,null,null,null,null,null,null,null,null,null,null,null,null,null,null,null,null,null,null,null,"Page 15:  % Granted: Local non-residential","0.0%",{"$f":"AB7","v":0}]
["(P.06)[04]% Granted: Householders",88,26,19,"Page 19: % Granted: Householders",null,0,"um","Metropolitan Unitiaries",{"$f":"COUNTIF($M$7:$M$306,Coding!H85)","v":0},null,null,null,null,null,null,null,null,null,null,null,null,null,null,null,null,null,null,null,null,null,null,null,null,null,null,null,null,null,null,null,null,null,null,null,null,null,null,null,null,null,null,null,null,null,null,null,null,null,null,null,null,null,null,null,null,null,null,null,null,null,null,null,null,null,null,null,null,null,null,null,null,null,null,null,null,null,null,null,null,null,null,null,null,null,null,null,null,null,null,null,null,null,null,null,null,null,null,null,null,null,null,null,null,null,null,null,null,null,null,null,null,null,null,null,null,null,null,null,null,null,null,null,null,null,null,null,null,null,null,null,null,null,null,null,null,null,null,null,null,null,null,null,null,null,null,null,null,null,null,null,null,null,null,null,null,null,null,null,null,null,null,null,null,null,null,null,null,null,null,null,null,null,null,null,null,null,null,null,null,null,null,null,null,null,null,null,null,null,null,null,null,null,null,null,null,null,null,null,null,null,null,null,null,null,null,null,null,null,null,null,null,null,null,null,null,null,null,null,null,null,null,null,null,null,null,null,null,null,null,null,null,null,null,null,null,null,null,null,null,null,null,null,"Page 15: % Granted: Householders","0.0%",{"$f":"AB7","v":0}]
["(P.07)[01]Overturn rate: Major non-residential",88,27,20,"Page 20: Overturn rate: Major non-residential",null,0,"uu","Other Unitaries",{"$f":"COUNTIF($M$7:$M$306,Coding!H86)","v":0},null,null,null,null,null,null,null,null,null,null,null,null,null,null,null,null,null,null,null,null,null,null,null,null,null,null,null,null,null,null,null,null,null,null,null,null,null,null,null,null,null,null,null,null,null,null,null,null,null,null,null,null,null,null,null,null,null,null,null,null,null,null,null,null,null,null,null,null,null,null,null,null,null,null,null,null,null,null,null,null,null,null,null,null,null,null,null,null,null,null,null,null,null,null,null,null,null,null,null,null,null,null,null,null,null,null,null,null,null,null,null,null,null,null,null,null,null,null,null,null,null,null,null,null,null,null,null,null,null,null,null,null,null,null,null,null,null,null,null,null,null,null,null,null,null,null,null,null,null,null,null,null,null,null,null,null,null,null,null,null,null,null,null,null,null,null,null,null,null,null,null,null,null,null,null,null,null,null,null,null,null,null,null,null,null,null,null,null,null,null,null,null,null,null,null,null,null,null,null,null,null,null,null,null,null,null,null,null,null,null,null,null,null,null,null,null,null,null,null,null,null,null,null,null,null,null,null,null,null,null,null,null,null,null,null,null,null,null,null,null,null,null,null,"Page 16: Overturn rate: Major non-residential","0.0%",{"$f":"AB7","v":0}]
["(P.07)[02]Overturn rate: All dwellings",88,28,20,"Page 20: Overturn rate: All dwellings",null,0,"p","Police",{"$f":"COUNTIF($M$7:$M$306,Coding!H87)","v":0},null,null,null,null,null,null,null,null,null,null,null,null,null,null,null,null,null,null,null,null,null,null,null,null,null,null,null,null,null,null,null,null,null,null,null,null,null,null,null,null,null,null,null,null,null,null,null,null,null,null,null,null,null,null,null,null,null,null,null,null,null,null,null,null,null,null,null,null,null,null,null,null,null,null,null,null,null,null,null,null,null,null,null,null,null,null,null,null,null,null,null,null,null,null,null,null,null,null,null,null,null,null,null,null,null,null,null,null,null,null,null,null,null,null,null,null,null,null,null,null,null,null,null,null,null,null,null,null,null,null,null,null,null,null,null,null,null,null,null,null,null,null,null,null,null,null,null,null,null,null,null,null,null,null,null,null,null,null,null,null,null,null,null,null,null,null,null,null,null,null,null,null,null,null,null,null,null,null,null,null,null,null,null,null,null,null,null,null,null,null,null,null,null,null,null,null,null,null,null,null,null,null,null,null,null,null,null,null,null,null,null,null,null,null,null,null,null,null,null,null,null,null,null,null,null,null,null,null,null,null,null,null,null,null,null,null,null,null,null,null,null,null,null,"Page 16: Overturn rate: All dwellings","0.0%",{"$f":"AB7","v":0}]
["(P.07)[03]Overturn rate: Local non-residential",88,29,20,"Page 20: Overturn rate: Local non-residential",null,1,"na","Other Authorities",{"$f":"J89-SUM(J79:J81,J87)","v":12},null,null,null,null,null,null,null,null,null,null,null,null,null,null,null,null,null,null,null,null,null,null,null,null,null,null,null,null,null,null,null,null,null,null,null,null,null,null,null,null,null,null,null,null,null,null,null,null,null,null,null,null,null,null,null,null,null,null,null,null,null,null,null,null,null,null,null,null,null,null,null,null,null,null,null,null,null,null,null,null,null,null,null,null,null,null,null,null,null,null,null,null,null,null,null,null,null,null,null,null,null,null,null,null,null,null,null,null,null,null,null,null,null,null,null,null,null,null,null,null,null,null,null,null,null,null,null,null,null,null,null,null,null,null,null,null,null,null,null,null,null,null,null,null,null,null,null,null,null,null,null,null,null,null,null,null,null,null,null,null,null,null,null,null,null,null,null,null,null,null,null,null,null,null,null,null,null,null,null,null,null,null,null,null,null,null,null,null,null,null,null,null,null,null,null,null,null,null,null,null,null,null,null,null,null,null,null,null,null,null,null,null,null,null,null,null,null,null,null,null,null,null,null,null,null,null,null,null,null,null,null,null,null,null,null,null,null,null,null,null,null,null,null,"Page 16: Overturn rate: Local non-residential","0.0%",{"$f":"AB7","v":0}]
["(P.07)[04]Overturn rate: Householders",88,30,20,"Page 20: Overturn rate: Householders",null,2,"All","All Members",{"$f":"AuthorityCounter","v":12},null,null,null,null,null,null,null,null,null,null,null,null,null,null,null,null,null,null,null,null,null,null,null,null,null,null,null,null,null,null,null,null,null,null,null,null,null,null,null,null,null,null,null,null,null,null,null,null,null,null,null,null,null,null,null,null,null,null,null,null,null,null,null,null,null,null,null,null,null,null,null,null,null,null,null,null,null,null,null,null,null,null,null,null,null,null,null,null,null,null,null,null,null,null,null,null,null,null,null,null,null,null,null,null,null,null,null,null,null,null,null,null,null,null,null,null,null,null,null,null,null,null,null,null,null,null,null,null,null,null,null,null,null,null,null,null,null,null,null,null,null,null,null,null,null,null,null,null,null,null,null,null,null,null,null,null,null,null,null,null,null,null,null,null,null,null,null,null,null,null,null,null,null,null,null,null,null,null,null,null,null,null,null,null,null,null,null,null,null,null,null,null,null,null,null,null,null,null,null,null,null,null,null,null,null,null,null,null,null,null,null,null,null,null,null,null,null,null,null,null,null,null,null,null,null,null,null,null,null,null,null,null,null,null,null,null,null,null,null,null,null,null,null,"Page 16: Overturn rate: Householders","0.0%",{"$f":"AB7","v":0}]
["(P.08)[01]Appeal rate: Major non-residential",88,31,21,"Page 21: Appeal rate: Major non-residential",null,{"$f":"G89+(J90>0)","v":3},"OC","Original Comparators",1,null,null,null,null,null,null,null,null,null,null,null,null,null,null,null,null,null,null,null,null,null,null,null,null,null,null,null,null,null,null,null,null,null,null,null,null,null,null,null,null,null,null,null,null,null,null,null,null,null,null,null,null,null,null,null,null,null,null,null,null,null,null,null,null,null,null,null,null,null,null,null,null,null,null,null,null,null,null,null,null,null,null,null,null,null,null,null,null,null,null,null,null,null,null,null,null,null,null,null,null,null,null,null,null,null,null,null,null,null,null,null,null,null,null,null,null,null,null,null,null,null,null,null,null,null,null,null,null,null,null,null,null,null,null,null,null,null,null,null,null,null,null,null,null,null,null,null,null,null,null,null,null,null,null,null,null,null,null,null,null,null,null,null,null,null,null,null,null,null,null,null,null,null,null,null,null,null,null,null,null,null,null,null,null,null,null,null,null,null,null,null,null,null,null,null,null,null,null,null,null,null,null,null,null,null,null,null,null,null,null,null,null,null,null,null,null,null,null,null,null,null,null,null,null,null,null,null,null,null,null,null,null,null,null,null,null,null,null,null,null,null,null,null,"Page 17: Appeal rate: Major non-residential","0.0%",{"$f":"AB7","v":0}]
["(P.08)[02]Appeal rate: All dwellings",88,32,21,"Page 21: Appeal rate: All dwellings",null,null,null,null,null,null,null,null,null,null,null,null,null,null,null,null,null,null,null,null,null,null,null,null,null,null,null,null,null,null,null,null,null,null,null,null,null,null,null,null,null,null,null,null,null,null,null,null,null,null,null,null,null,null,null,null,null,null,null,null,null,null,null,null,null,null,null,null,null,null,null,null,null,null,null,null,null,null,null,null,null,null,null,null,null,null,null,null,null,null,null,null,null,null,null,null,null,null,null,null,null,null,null,null,null,null,null,null,null,null,null,null,null,null,null,null,null,null,null,null,null,null,null,null,null,null,null,null,null,null,null,null,null,null,null,null,null,null,null,null,null,null,null,null,null,null,null,null,null,null,null,null,null,null,null,null,null,null,null,null,null,null,null,null,null,null,null,null,null,null,null,null,null,null,null,null,null,null,null,null,null,null,null,null,null,null,null,null,null,null,null,null,null,null,null,null,null,null,null,null,null,null,null,null,null,null,null,null,null,null,null,null,null,null,null,null,null,null,null,null,null,null,null,null,null,null,null,null,null,null,null,null,null,null,null,null,null,null,null,null,null,null,null,null,null,null,null,null,"Page 17: Appeal rate: All dwellings","0.0%",{"$f":"AB7","v":0}]
["(P.08)[03]Appeal rate: Local non-residential",88,33,21,"Page 21: Appeal rate: Local non-residential",null,null,null,null,null,null,null,null,null,null,null,null,null,null,null,null,null,null,null,null,null,null,null,null,null,null,null,null,null,null,null,null,null,null,null,null,null,null,null,null,null,null,null,null,null,null,null,null,null,null,null,null,null,null,null,null,null,null,null,null,null,null,null,null,null,null,null,null,null,null,null,null,null,null,null,null,null,null,null,null,null,null,null,null,null,null,null,null,null,null,null,null,null,null,null,null,null,null,null,null,null,null,null,null,null,null,null,null,null,null,null,null,null,null,null,null,null,null,null,null,null,null,null,null,null,null,null,null,null,null,null,null,null,null,null,null,null,null,null,null,null,null,null,null,null,null,null,null,null,null,null,null,null,null,null,null,null,null,null,null,null,null,null,null,null,null,null,null,null,null,null,null,null,null,null,null,null,null,null,null,null,null,null,null,null,null,null,null,null,null,null,null,null,null,null,null,null,null,null,null,null,null,null,null,null,null,null,null,null,null,null,null,null,null,null,null,null,null,null,null,null,null,null,null,null,null,null,null,null,null,null,null,null,null,null,null,null,null,null,null,null,null,null,null,null,null,null,null,"Page 17: Appeal rate: Local non-residential","0.0%",{"$f":"AB7","v":0}]
["(P.08)[04]Appeal rate: Householders",88,34,21,"Page 21: Appeal rate: Householders",null,null,null,null,null,null,null,null,null,null,null,null,null,null,null,null,null,null,null,null,null,null,null,null,null,null,null,null,null,null,null,null,null,null,null,null,null,null,null,null,null,null,null,null,null,null,null,null,null,null,null,null,null,null,null,null,null,null,null,null,null,null,null,null,null,null,null,null,null,null,null,null,null,null,null,null,null,null,null,null,null,null,null,null,null,null,null,null,null,null,null,null,null,null,null,null,null,null,null,null,null,null,null,null,null,null,null,null,null,null,null,null,null,null,null,null,null,null,null,null,null,null,null,null,null,null,null,null,null,null,null,null,null,null,null,null,null,null,null,null,null,null,null,null,null,null,null,null,null,null,null,null,null,null,null,null,null,null,null,null,null,null,null,null,null,null,null,null,null,null,null,null,null,null,null,null,null,null,null,null,null,null,null,null,null,null,null,null,null,null,null,null,null,null,null,null,null,null,null,null,null,null,null,null,null,null,null,null,null,null,null,null,null,null,null,null,null,null,null,null,null,null,null,null,null,null,null,null,null,null,null,null,null,null,null,null,null,null,null,null,null,null,null,null,null,null,null,null,"Page 17: Appeal rate: Householders","0.0%",{"$f":"AB7","v":0}]
["(P.09)[01]Appeals allowed rate: Major non-residential",88,35,22,"Page 22: Appeals allowed rate: Major non-residential",null,null,"Comparator Group Table",null,null,null,null,null,null,null,null,null,null,null,null,null,null,null,null,null,null,null,null,null,null,null,null,null,null,null,null,null,null,null,null,null,null,null,null,null,null,null,null,null,null,null,null,null,null,null,null,null,null,null,null,null,null,null,null,null,null,null,null,null,null,null,null,null,null,null,null,null,null,null,null,null,null,null,null,null,null,null,null,null,null,null,null,null,null,null,null,null,null,null,null,null,null,null,null,null,null,null,null,null,null,null,null,null,null,null,null,null,null,null,null,null,null,null,null,null,null,null,null,null,null,null,null,null,null,null,null,null,null,null,null,null,null,null,null,null,null,null,null,null,null,null,null,null,null,null,null,null,null,null,null,null,null,null,null,null,null,null,null,null,null,null,null,null,null,null,null,null,null,null,null,null,null,null,null,null,null,null,null,null,null,null,null,null,null,null,null,null,null,null,null,null,null,null,null,null,null,null,null,null,null,null,null,null,null,null,null,null,null,null,null,null,null,null,null,null,null,null,null,null,null,null,null,null,null,null,null,null,null,null,null,null,null,null,null,null,null,null,null,null,null,null,null,null,"Page 18: Appeals allowed rate: Major non-residential","0.0%",{"$f":"AB7","v":0}]
["(P.09)[02]Appeals allowed rate: All dwellings",88,36,22,"Page 22: Appeals allowed rate: All dwellings",null,1,{"$f":"VLOOKUP(G95,G79:J89,2,FALSE)","v":"na"},{"$f":"VLOOKUP(G95,G79:J89,3,FALSE)","v":"Other Authorities"},null,null,null,null,null,null,null,null,null,null,null,null,null,null,null,null,null,null,null,null,null,null,null,null,null,null,null,null,null,null,null,null,null,null,null,null,null,null,null,null,null,null,null,null,null,null,null,null,null,null,null,null,null,null,null,null,null,null,null,null,null,null,null,null,null,null,null,null,null,null,null,null,null,null,null,null,null,null,null,null,null,null,null,null,null,null,null,null,null,null,null,null,null,null,null,null,null,null,null,null,null,null,null,null,null,null,null,null,null,null,null,null,null,null,null,null,null,null,null,null,null,null,null,null,null,null,null,null,null,null,null,null,null,null,null,null,null,null,null,null,null,null,null,null,null,null,null,null,null,null,null,null,null,null,null,null,null,null,null,null,null,null,null,null,null,null,null,null,null,null,null,null,null,null,null,null,null,null,null,null,null,null,null,null,null,null,null,null,null,null,null,null,null,null,null,null,null,null,null,null,null,null,null,null,null,null,null,null,null,null,null,null,null,null,null,null,null,null,null,null,null,null,null,null,null,null,null,null,null,null,null,null,null,null,null,null,null,null,null,null,null,null,null,null,"Page 18: Appeals allowed rate: All dwellings","0.0%",{"$f":"AB7","v":0}]
["(P.09)[03]Appeals allowed rate: Local non-residential",88,37,22,"Page 22: Appeals allowed rate: Local non-residential",null,2,{"$f":"VLOOKUP(G96,G80:J90,2,FALSE)","v":"All"},{"$f":"VLOOKUP(G96,G80:J90,3,FALSE)","v":"All Members"},null,null,null,null,null,null,null,null,null,null,null,null,null,null,null,null,null,null,null,null,null,null,null,null,null,null,null,null,null,null,null,null,null,null,null,null,null,null,null,null,null,null,null,null,null,null,null,null,null,null,null,null,null,null,null,null,null,null,null,null,null,null,null,null,null,null,null,null,null,null,null,null,null,null,null,null,null,null,null,null,null,null,null,null,null,null,null,null,null,null,null,null,null,null,null,null,null,null,null,null,null,null,null,null,null,null,null,null,null,null,null,null,null,null,null,null,null,null,null,null,null,null,null,null,null,null,null,null,null,null,null,null,null,null,null,null,null,null,null,null,null,null,null,null,null,null,null,null,null,null,null,null,null,null,null,null,null,null,null,null,null,null,null,null,null,null,null,null,null,null,null,null,null,null,null,null,null,null,null,null,null,null,null,null,null,null,null,null,null,null,null,null,null,null,null,null,null,null,null,null,null,null,null,null,null,null,null,null,null,null,null,null,null,null,null,null,null,null,null,null,null,null,null,null,null,null,null,null,null,null,null,null,null,null,null,null,null,null,null,null,null,null,null,null,"Page 18: Appeals allowed rate: Local non-residential","0.0%",{"$f":"AB7","v":0}]
["(P.09)[04]Appeals allowed rate: Householders",88,38,22,"Page 22: Appeals allowed rate: Householders",null,3,"OC","Original Comparators",null,null,null,null,null,null,null,null,null,null,null,null,null,null,null,null,null,null,null,null,null,null,null,null,null,null,null,null,null,null,null,null,null,null,null,null,null,null,null,null,null,null,null,null,null,null,null,null,null,null,null,null,null,null,null,null,null,null,null,null,null,null,null,null,null,null,null,null,null,null,null,null,null,null,null,null,null,null,null,null,null,null,null,null,null,null,null,null,null,null,null,null,null,null,null,null,null,null,null,null,null,null,null,null,null,null,null,null,null,null,null,null,null,null,null,null,null,null,null,null,null,null,null,null,null,null,null,null,null,null,null,null,null,null,null,null,null,null,null,null,null,null,null,null,null,null,null,null,null,null,null,null,null,null,null,null,null,null,null,null,null,null,null,null,null,null,null,null,null,null,null,null,null,null,null,null,null,null,null,null,null,null,null,null,null,null,null,null,null,null,null,null,null,null,null,null,null,null,null,null,null,null,null,null,null,null,null,null,null,null,null,null,null,null,null,null,null,null,null,null,null,null,null,null,null,null,null,null,null,null,null,null,null,null,null,null,null,null,null,null,null,null,null,null,"Page 18: Appeals allowed rate: Householders","0.0%",{"$f":"AB7","v":0}]
["(P.10)[01]Cost per appeal",88,39,23,"Page 23: Cost per appeal",null,4,{"$error":"#N/A"},{"$error":"#N/A"},null,null,null,null,null,null,null,null,null,null,null,null,null,null,null,null,null,null,null,null,null,null,null,null,null,null,null,null,null,null,null,null,null,null,null,null,null,null,null,null,null,null,null,null,null,null,null,null,null,null,null,null,null,null,null,null,null,null,null,null,null,null,null,null,null,null,null,null,null,null,null,null,null,null,null,null,null,null,null,null,null,null,null,null,null,null,null,null,null,null,null,null,null,null,null,null,null,null,null,null,null,null,null,null,null,null,null,null,null,null,null,null,null,null,null,null,null,null,null,null,null,null,null,null,null,null,null,null,null,null,null,null,null,null,null,null,null,null,null,null,null,null,null,null,null,null,null,null,null,null,null,null,null,null,null,null,null,null,null,null,null,null,null,null,null,null,null,null,null,null,null,null,null,null,null,null,null,null,null,null,null,null,null,null,null,null,null,null,null,null,null,null,null,null,null,null,null,null,null,null,null,null,null,null,null,null,null,null,null,null,null,null,null,null,null,null,null,null,null,null,null,null,null,null,null,null,null,null,null,null,null,null,null,null,null,null,null,null,null,null,null,null,null,null,"Page 19: Cost per appeal","£#,##0",{"$f":"AB7","v":0}]
["(P.11)[01]Average end-to-end weeks: Major non-residential",88,40,24,"Page 24: Average end-to-end weeks: Major non-residential",null,5,{"$error":"#N/A"},{"$error":"#N/A"},null,null,null,null,null,null,null,null,null,null,null,null,null,null,null,null,null,null,null,null,null,null,null,null,null,null,null,null,null,null,null,null,null,null,null,null,null,null,null,null,null,null,null,null,null,null,null,null,null,null,null,null,null,null,null,null,null,null,null,null,null,null,null,null,null,null,null,null,null,null,null,null,null,null,null,null,null,null,null,null,null,null,null,null,null,null,null,null,null,null,null,null,null,null,null,null,null,null,null,null,null,null,null,null,null,null,null,null,null,null,null,null,null,null,null,null,null,null,null,null,null,null,null,null,null,null,null,null,null,null,null,null,null,null,null,null,null,null,null,null,null,null,null,null,null,null,null,null,null,null,null,null,null,null,null,null,null,null,null,null,null,null,null,null,null,null,null,null,null,null,null,null,null,null,null,null,null,null,null,null,null,null,null,null,null,null,null,null,null,null,null,null,null,null,null,null,null,null,null,null,null,null,null,null,null,null,null,null,null,null,null,null,null,null,null,null,null,null,null,null,null,null,null,null,null,null,null,null,null,null,null,null,null,null,null,null,null,null,null,null,null,null,null,null,"Page 20: Average end-to-end weeks: Major non-residential","#,##0",{"$f":"AB7","v":0}]
["(P.11)[02]Average end-to-end weeks: All dwellings",88,41,24,"Page 24: Average end-to-end weeks: All dwellings",null,6,{"$error":"#N/A"},{"$error":"#N/A"},null,null,null,null,null,null,null,null,null,null,null,null,null,null,null,null,null,null,null,null,null,null,null,null,null,null,null,null,null,null,null,null,null,null,null,null,null,null,null,null,null,null,null,null,null,null,null,null,null,null,null,null,null,null,null,null,null,null,null,null,null,null,null,null,null,null,null,null,null,null,null,null,null,null,null,null,null,null,null,null,null,null,null,null,null,null,null,null,null,null,null,null,null,null,null,null,null,null,null,null,null,null,null,null,null,null,null,null,null,null,null,null,null,null,null,null,null,null,null,null,null,null,null,null,null,null,null,null,null,null,null,null,null,null,null,null,null,null,null,null,null,null,null,null,null,null,null,null,null,null,null,null,null,null,null,null,null,null,null,null,null,null,null,null,null,null,null,null,null,null,null,null,null,null,null,null,null,null,null,null,null,null,null,null,null,null,null,null,null,null,null,null,null,null,null,null,null,null,null,null,null,null,null,null,null,null,null,null,null,null,null,null,null,null,null,null,null,null,null,null,null,null,null,null,null,null,null,null,null,null,null,null,null,null,null,null,null,null,null,null,null,null,null,null,"Page 20: Average end-to-end weeks: All dwellings","#,##0",{"$f":"AB7","v":0}]
["(P.11)[03]Average end-to-end weeks: Local non-residential",88,42,24,"Page 24: Average end-to-end weeks: Local non-residential",null,7,{"$error":"#N/A"},{"$error":"#N/A"},null,null,null,null,null,null,null,null,null,null,null,null,null,null,null,null,null,null,null,null,null,null,null,null,null,null,null,null,null,null,null,null,null,null,null,null,null,null,null,null,null,null,null,null,null,null,null,null,null,null,null,null,null,null,null,null,null,null,null,null,null,null,null,null,null,null,null,null,null,null,null,null,null,null,null,null,null,null,null,null,null,null,null,null,null,null,null,null,null,null,null,null,null,null,null,null,null,null,null,null,null,null,null,null,null,null,null,null,null,null,null,null,null,null,null,null,null,null,null,null,null,null,null,null,null,null,null,null,null,null,null,null,null,null,null,null,null,null,null,null,null,null,null,null,null,null,null,null,null,null,null,null,null,null,null,null,null,null,null,null,null,null,null,null,null,null,null,null,null,null,null,null,null,null,null,null,null,null,null,null,null,null,null,null,null,null,null,null,null,null,null,null,null,null,null,null,null,null,null,null,null,null,null,null,null,null,null,null,null,null,null,null,null,null,null,null,null,null,null,null,null,null,null,null,null,null,null,null,null,null,null,null,null,null,null,null,null,null,null,null,null,null,null,null,"Page 20: Average end-to-end weeks: Local non-residential","#,##0",{"$f":"AB7","v":0}]
["(P.11)[04]Average end-to-end weeks: Householders",88,43,24,"Page 24: Average end-to-end weeks: Householders",null,8,{"$f":"VLOOKUP(G102,G86:J96,2,FALSE)","v":{"$error":"#N/A"}},{"$error":"#N/A"},null,null,null,null,null,null,null,null,null,null,null,null,null,null,null,null,null,null,null,null,null,null,null,null,null,null,null,null,null,null,null,null,null,null,null,null,null,null,null,null,null,null,null,null,null,null,null,null,null,null,null,null,null,null,null,null,null,null,null,null,null,null,null,null,null,null,null,null,null,null,null,null,null,null,null,null,null,null,null,null,null,null,null,null,null,null,null,null,null,null,null,null,null,null,null,null,null,null,null,null,null,null,null,null,null,null,null,null,null,null,null,null,null,null,null,null,null,null,null,null,null,null,null,null,null,null,null,null,null,null,null,null,null,null,null,null,null,null,null,null,null,null,null,null,null,null,null,null,null,null,null,null,null,null,null,null,null,null,null,null,null,null,null,null,null,null,null,null,null,null,null,null,null,null,null,null,null,null,null,null,null,null,null,null,null,null,null,null,null,null,null,null,null,null,null,null,null,null,null,null,null,null,null,null,null,null,null,null,null,null,null,null,null,null,null,null,null,null,null,null,null,null,null,null,null,null,null,null,null,null,null,null,null,null,null,null,null,null,null,null,null,null,null,null,"Page 20: Average end-to-end weeks: Householders","#,##0",{"$f":"AB7","v":0}]
["(P.11)[05]Average end-to-end weeks: All others",88,44,24,"Page 24: Average end-to-end weeks: All others",null,9,{"$f":"VLOOKUP(G103,G87:J97,2,FALSE)","v":{"$error":"#N/A"}},{"$error":"#N/A"},null,null,null,null,null,null,null,null,null,null,null,null,null,null,null,null,null,null,null,null,null,null,null,null,null,null,null,null,null,null,null,null,null,null,null,null,null,null,null,null,null,null,null,null,null,null,null,null,null,null,null,null,null,null,null,null,null,null,null,null,null,null,null,null,null,null,null,null,null,null,null,null,null,null,null,null,null,null,null,null,null,null,null,null,null,null,null,null,null,null,null,null,null,null,null,null,null,null,null,null,null,null,null,null,null,null,null,null,null,null,null,null,null,null,null,null,null,null,null,null,null,null,null,null,null,null,null,null,null,null,null,null,null,null,null,null,null,null,null,null,null,null,null,null,null,null,null,null,null,null,null,null,null,null,null,null,null,null,null,null,null,null,null,null,null,null,null,null,null,null,null,null,null,null,null,null,null,null,null,null,null,null,null,null,null,null,null,null,null,null,null,null,null,null,null,null,null,null,null,null,null,null,null,null,null,null,null,null,null,null,null,null,null,null,null,null,null,null,null,null,null,null,null,null,null,null,null,null,null,null,null,null,null,null,null,null,null,null,null,null,null,null,null,null,"Page 20: Average end-to-end weeks: All others","#,##0",{"$f":"AB7","v":0}]
["(P.12)[01]Enforcement action",88,45,25,"Page 25: Enforcement action",null,10,{"$f":"VLOOKUP(G104,G88:J98,2,FALSE)","v":{"$error":"#N/A"}},{"$error":"#N/A"},null,null,null,null,null,null,null,null,null,null,null,null,null,null,null,null,null,null,null,null,null,null,null,null,null,null,null,null,null,null,null,null,null,null,null,null,null,null,null,null,null,null,null,null,null,null,null,null,null,null,null,null,null,null,null,null,null,null,null,null,null,null,null,null,null,null,null,null,null,null,null,null,null,null,null,null,null,null,null,null,null,null,null,null,null,null,null,null,null,null,null,null,null,null,null,null,null,null,null,null,null,null,null,null,null,null,null,null,null,null,null,null,null,null,null,null,null,null,null,null,null,null,null,null,null,null,null,null,null,null,null,null,null,null,null,null,null,null,null,null,null,null,null,null,null,null,null,null,null,null,null,null,null,null,null,null,null,null,null,null,null,null,null,null,null,null,null,null,null,null,null,null,null,null,null,null,null,null,null,null,null,null,null,null,null,null,null,null,null,null,null,null,null,null,null,null,null,null,null,null,null,null,null,null,null,null,null,null,null,null,null,null,null,null,null,null,null,null,null,null,null,null,null,null,null,null,null,null,null,null,null,null,null,null,null,null,null,null,null,null,null,null,null,null,"Page 21: Enforcement action","0.0%",{"$f":"AB7","v":0}]
["(P.12)[02]Notices served",88,46,25,"Page 25: Notices served",null,11,{"$f":"VLOOKUP(G105,G89:J99,2,FALSE)","v":{"$error":"#N/A"}},{"$error":"#N/A"},null,null,null,null,null,null,null,null,null,null,null,null,null,null,null,null,null,null,null,null,null,null,null,null,null,null,null,null,null,null,null,null,null,null,null,null,null,null,null,null,null,null,null,null,null,null,null,null,null,null,null,null,null,null,null,null,null,null,null,null,null,null,null,null,null,null,null,null,null,null,null,null,null,null,null,null,null,null,null,null,null,null,null,null,null,null,null,null,null,null,null,null,null,null,null,null,null,null,null,null,null,null,null,null,null,null,null,null,null,null,null,null,null,null,null,null,null,null,null,null,null,null,null,null,null,null,null,null,null,null,null,null,null,null,null,null,null,null,null,null,null,null,null,null,null,null,null,null,null,null,null,null,null,null,null,null,null,null,null,null,null,null,null,null,null,null,null,null,null,null,null,null,null,null,null,null,null,null,null,null,null,null,null,null,null,null,null,null,null,null,null,null,null,null,null,null,null,null,null,null,null,null,null,null,null,null,null,null,null,null,null,null,null,null,null,null,null,null,null,null,null,null,null,null,null,null,null,null,null,null,null,null,null,null,null,null,null,null,null,null,null,null,null,null,"Page 21: Notices served","0.0%",{"$f":"AB7","v":0}]
["(P.12)[03]Enforcement appeals upheld",88,47,25,"Page 25: Enforcement appeals upheld",null,12,{"$f":"VLOOKUP(G106,G90:J100,2,FALSE)","v":{"$error":"#N/A"}},{"$error":"#N/A"},null,null,null,null,null,null,null,null,null,null,null,null,null,null,null,null,null,null,null,null,null,null,null,null,null,null,null,null,null,null,null,null,null,null,null,null,null,null,null,null,null,null,null,null,null,null,null,null,null,null,null,null,null,null,null,null,null,null,null,null,null,null,null,null,null,null,null,null,null,null,null,null,null,null,null,null,null,null,null,null,null,null,null,null,null,null,null,null,null,null,null,null,null,null,null,null,null,null,null,null,null,null,null,null,null,null,null,null,null,null,null,null,null,null,null,null,null,null,null,null,null,null,null,null,null,null,null,null,null,null,null,null,null,null,null,null,null,null,null,null,null,null,null,null,null,null,null,null,null,null,null,null,null,null,null,null,null,null,null,null,null,null,null,null,null,null,null,null,null,null,null,null,null,null,null,null,null,null,null,null,null,null,null,null,null,null,null,null,null,null,null,null,null,null,null,null,null,null,null,null,null,null,null,null,null,null,null,null,null,null,null,null,null,null,null,null,null,null,null,null,null,null,null,null,null,null,null,null,null,null,null,null,null,null,null,null,null,null,null,null,null,null,null,null,"Page 21: Enforcement appeals upheld","0.0%",{"$f":"AB7","v":0}]
["(P.13)[01]Cost per allegation received",88,48,26,"Page 26: Cost per allegation received",null,null,null,null,null,null,null,null,null,null,null,null,null,null,null,null,null,null,null,null,null,null,null,null,null,null,null,null,null,null,null,null,null,null,null,null,null,null,null,null,null,null,null,null,null,null,null,null,null,null,null,null,null,null,null,null,null,null,null,null,null,null,null,null,null,null,null,null,null,null,null,null,null,null,null,null,null,null,null,null,null,null,null,null,null,null,null,null,null,null,null,null,null,null,null,null,null,null,null,null,null,null,null,null,null,null,null,null,null,null,null,null,null,null,null,null,null,null,null,null,null,null,null,null,null,null,null,null,null,null,null,null,null,null,null,null,null,null,null,null,null,null,null,null,null,null,null,null,null,null,null,null,null,null,null,null,null,null,null,null,null,null,null,null,null,null,null,null,null,null,null,null,null,null,null,null,null,null,null,null,null,null,null,null,null,null,null,null,null,null,null,null,null,null,null,null,null,null,null,null,null,null,null,null,null,null,null,null,null,null,null,null,null,null,null,null,null,null,null,null,null,null,null,null,null,null,null,null,null,null,null,null,null,null,null,null,null,null,null,null,null,null,null,null,null,null,null,null,"Page 22: Cost per allegation received","£#,##0",{"$f":"AB7","v":0}]
["(P.13)[02]Cost per enforcement appeal",88,49,26,"Page 26: Cost per enforcement appeal",null,null,null,null,null,null,null,null,null,null,null,null,null,null,null,null,null,null,null,null,null,null,null,null,null,null,null,null,null,null,null,null,null,null,null,null,null,null,null,null,null,null,null,null,null,null,null,null,null,null,null,null,null,null,null,null,null,null,null,null,null,null,null,null,null,null,null,null,null,null,null,null,null,null,null,null,null,null,null,null,null,null,null,null,null,null,null,null,null,null,null,null,null,null,null,null,null,null,null,null,null,null,null,null,null,null,null,null,null,null,null,null,null,null,null,null,null,null,null,null,null,null,null,null,null,null,null,null,null,null,null,null,null,null,null,null,null,null,null,null,null,null,null,null,null,null,null,null,null,null,null,null,null,null,null,null,null,null,null,null,null,null,null,null,null,null,null,null,null,null,null,null,null,null,null,null,null,null,null,null,null,null,null,null,null,null,null,null,null,null,null,null,null,null,null,null,null,null,null,null,null,null,null,null,null,null,null,null,null,null,null,null,null,null,null,null,null,null,null,null,null,null,null,null,null,null,null,null,null,null,null,null,null,null,null,null,null,null,null,null,null,null,null,null,null,null,null,null,"Page 22: Cost per enforcement appeal","£#,##0",{"$f":"AB7","v":0}]
["(P.01)[01]Total non-staff costs as % direct staff costs",110,0,29,"Page 29: Total non-staff costs as % direct staff costs",null,null,null,null,null,null,null,null,null,null,null,null,null,null,null,null,null,null,null,null,null,null,null,null,null,null,null,null,null,null,null,null,null,null,null,null,null,null,null,null,null,null,null,null,null,null,null,null,null,null,null,null,null,null,null,null,null,null,null,null,null,null,null,null,null,null,null,null,null,null,null,null,null,null,null,null,null,null,null,null,null,null,null,null,null,null,null,null,null,null,null,null,null,null,null,null,null,null,null,null,null,null,null,null,null,null,null,null,null,null,null,null,null,null,null,null,null,null,null,null,null,null,null,null,null,null,null,null,null,null,null,null,null,null,null,null,null,null,null,null,null,null,null,null,null,null,null,null,null,null,null,null,null,null,null,null,null,null,null,null,null,null,null,null,null,null,null,null,null,null,null,null,null,null,null,null,null,null,null,null,null,null,null,null,null,null,null,null,null,null,null,null,null,null,null,null,null,null,null,null,null,null,null,null,null,null,null,null,null,null,null,null,null,null,null,null,null,null,null,null,null,null,null,null,null,null,null,null,null,null,null,null,null,null,null,null,null,null,null,null,null,null,null,null,null,null,null,null,"Page 23: Total non-staff costs","0%",{"$f":"AB7","v":0}]
["(P.01)[02]Indirect staff costs as % direct staff costs",110,1,29,"Page 29: Indirect staff costs as % direct staff costs",null,null,null,null,null,null,null,null,null,null,null,null,null,null,null,null,null,null,null,null,null,null,null,null,null,null,null,null,null,null,null,null,null,null,null,null,null,null,null,null,null,null,null,null,null,null,null,null,null,null,null,null,null,null,null,null,null,null,null,null,null,null,null,null,null,null,null,null,null,null,null,null,null,null,null,null,null,null,null,null,null,null,null,null,null,null,null,null,null,null,null,null,null,null,null,null,null,null,null,null,null,null,null,null,null,null,null,null,null,null,null,null,null,null,null,null,null,null,null,null,null,null,null,null,null,null,null,null,null,null,null,null,null,null,null,null,null,null,null,null,null,null,null,null,null,null,null,null,null,null,null,null,null,null,null,null,null,null,null,null,null,null,null,null,null,null,null,null,null,null,null,null,null,null,null,null,null,null,null,null,null,null,null,null,null,null,null,null,null,null,null,null,null,null,null,null,null,null,null,null,null,null,null,null,null,null,null,null,null,null,null,null,null,null,null,null,null,null,null,null,null,null,null,null,null,null,null,null,null,null,null,null,null,null,null,null,null,null,null,null,null,null,null,null,null,null,null,null,"Page 23: Indirect staff costs","0%",{"$f":"AB7","v":0}]
["(P.01)[03]Expertise and advice costs as % direct staff costs",110,2,29,"Page 29: Expertise and advice costs as % direct staff costs",null,null,null,null,null,null,null,null,null,null,null,null,null,null,null,null,null,null,null,null,null,null,null,null,null,null,null,null,null,null,null,null,null,null,null,null,null,null,null,null,null,null,null,null,null,null,null,null,null,null,null,null,null,null,null,null,null,null,null,null,null,null,null,null,null,null,null,null,null,null,null,null,null,null,null,null,null,null,null,null,null,null,null,null,null,null,null,null,null,null,null,null,null,null,null,null,null,null,null,null,null,null,null,null,null,null,null,null,null,null,null,null,null,null,null,null,null,null,null,null,null,null,null,null,null,null,null,null,null,null,null,null,null,null,null,null,null,null,null,null,null,null,null,null,null,null,null,null,null,null,null,null,null,null,null,null,null,null,null,null,null,null,null,null,null,null,null,null,null,null,null,null,null,null,null,null,null,null,null,null,null,null,null,null,null,null,null,null,null,null,null,null,null,null,null,null,null,null,null,null,null,null,null,null,null,null,null,null,null,null,null,null,null,null,null,null,null,null,null,null,null,null,null,null,null,null,null,null,null,null,null,null,null,null,null,null,null,null,null,null,null,null,null,null,null,null,null,null,"Page 23: Expertise and advice costs","0%",{"$f":"AB7","v":0}]
["(P.01)[04]Legal costs as % direct staff costs",110,3,29,"Page 29: Legal costs as % direct staff costs",null,null,null,null,null,null,null,null,null,null,null,null,null,null,null,null,null,null,null,null,null,null,null,null,null,null,null,null,null,null,null,null,null,null,null,null,null,null,null,null,null,null,null,null,null,null,null,null,null,null,null,null,null,null,null,null,null,null,null,null,null,null,null,null,null,null,null,null,null,null,null,null,null,null,null,null,null,null,null,null,null,null,null,null,null,null,null,null,null,null,null,null,null,null,null,null,null,null,null,null,null,null,null,null,null,null,null,null,null,null,null,null,null,null,null,null,null,null,null,null,null,null,null,null,null,null,null,null,null,null,null,null,null,null,null,null,null,null,null,null,null,null,null,null,null,null,null,null,null,null,null,null,null,null,null,null,null,null,null,null,null,null,null,null,null,null,null,null,null,null,null,null,null,null,null,null,null,null,null,null,null,null,null,null,null,null,null,null,null,null,null,null,null,null,null,null,null,null,null,null,null,null,null,null,null,null,null,null,null,null,null,null,null,null,null,null,null,null,null,null,null,null,null,null,null,null,null,null,null,null,null,null,null,null,null,null,null,null,null,null,null,null,null,null,null,null,null,null,"Page 23: Legal costs","0.0%",{"$f":"AB7","v":0}]
["(P.01)[05]ICT costs as % direct staff costs",110,4,29,"Page 29: ICT costs as % direct staff costs",null,null,null,null,null,null,null,null,null,null,null,null,null,null,null,null,null,null,null,null,null,null,null,null,null,null,null,null,null,null,null,null,null,null,null,null,null,null,null,null,null,null,null,null,null,null,null,null,null,null,null,null,null,null,null,null,null,null,null,null,null,null,null,null,null,null,null,null,null,null,null,null,null,null,null,null,null,null,null,null,null,null,null,null,null,null,null,null,null,null,null,null,null,null,null,null,null,null,null,null,null,null,null,null,null,null,null,null,null,null,null,null,null,null,null,null,null,null,null,null,null,null,null,null,null,null,null,null,null,null,null,null,null,null,null,null,null,null,null,null,null,null,null,null,null,null,null,null,null,null,null,null,null,null,null,null,null,null,null,null,null,null,null,null,null,null,null,null,null,null,null,null,null,null,null,null,null,null,null,null,null,null,null,null,null,null,null,null,null,null,null,null,null,null,null,null,null,null,null,null,null,null,null,null,null,null,null,null,null,null,null,null,null,null,null,null,null,null,null,null,null,null,null,null,null,null,null,null,null,null,null,null,null,null,null,null,null,null,null,null,null,null,null,null,null,null,null,null,"Page 23: ICT costs","0.0%",{"$f":"AB7","v":0}]
["(P.01)[06]Other support services costs as % direct staff costs",110,5,29,"Page 29: Other support services costs as % direct staff costs",null,null,null,null,null,null,null,null,null,null,null,null,null,null,null,null,null,null,null,null,null,null,null,null,null,null,null,null,null,null,null,null,null,null,null,null,null,null,null,null,null,null,null,null,null,null,null,null,null,null,null,null,null,null,null,null,null,null,null,null,null,null,null,null,null,null,null,null,null,null,null,null,null,null,null,null,null,null,null,null,null,null,null,null,null,null,null,null,null,null,null,null,null,null,null,null,null,null,null,null,null,null,null,null,null,null,null,null,null,null,null,null,null,null,null,null,null,null,null,null,null,null,null,null,null,null,null,null,null,null,null,null,null,null,null,null,null,null,null,null,null,null,null,null,null,null,null,null,null,null,null,null,null,null,null,null,null,null,null,null,null,null,null,null,null,null,null,null,null,null,null,null,null,null,null,null,null,null,null,null,null,null,null,null,null,null,null,null,null,null,null,null,null,null,null,null,null,null,null,null,null,null,null,null,null,null,null,null,null,null,null,null,null,null,null,null,null,null,null,null,null,null,null,null,null,null,null,null,null,null,null,null,null,null,null,null,null,null,null,null,null,null,null,null,null,null,null,null,"Page 23: Other support services costs","0%",{"$f":"AB7","v":0}]
["(P.01)[07]All other costs as % direct staff costs",110,6,29,"Page 29: All other costs as % direct staff costs",null,null,null,null,null,null,null,null,null,null,null,null,null,null,null,null,null,null,null,null,null,null,null,null,null,null,null,null,null,null,null,null,null,null,null,null,null,null,null,null,null,null,null,null,null,null,null,null,null,null,null,null,null,null,null,null,null,null,null,null,null,null,null,null,null,null,null,null,null,null,null,null,null,null,null,null,null,null,null,null,null,null,null,null,null,null,null,null,null,null,null,null,null,null,null,null,null,null,null,null,null,null,null,null,null,null,null,null,null,null,null,null,null,null,null,null,null,null,null,null,null,null,null,null,null,null,null,null,null,null,null,null,null,null,null,null,null,null,null,null,null,null,null,null,null,null,null,null,null,null,null,null,null,null,null,null,null,null,null,null,null,null,null,null,null,null,null,null,null,null,null,null,null,null,null,null,null,null,null,null,null,null,null,null,null,null,null,null,null,null,null,null,null,null,null,null,null,null,null,null,null,null,null,null,null,null,null,null,null,null,null,null,null,null,null,null,null,null,null,null,null,null,null,null,null,null,null,null,null,null,null,null,null,null,null,null,null,null,null,null,null,null,null,null,null,null,null,null,"Page 23: All other costs","0%",{"$f":"AB7","v":0}]
["(P.01)[08]Provisions costs as % direct staff costs",110,7,29,"Page 29: Provisions costs as % direct staff costs",null,null,null,null,null,null,null,null,null,null,null,null,null,null,null,null,null,null,null,null,null,null,null,null,null,null,null,null,null,null,null,null,null,null,null,null,null,null,null,null,null,null,null,null,null,null,null,null,null,null,null,null,null,null,null,null,null,null,null,null,null,null,null,null,null,null,null,null,null,null,null,null,null,null,null,null,null,null,null,null,null,null,null,null,null,null,null,null,null,null,null,null,null,null,null,null,null,null,null,null,null,null,null,null,null,null,null,null,null,null,null,null,null,null,null,null,null,null,null,null,null,null,null,null,null,null,null,null,null,null,null,null,null,null,null,null,null,null,null,null,null,null,null,null,null,null,null,null,null,null,null,null,null,null,null,null,null,null,null,null,null,null,null,null,null,null,null,null,null,null,null,null,null,null,null,null,null,null,null,null,null,null,null,null,null,null,null,null,null,null,null,null,null,null,null,null,null,null,null,null,null,null,null,null,null,null,null,null,null,null,null,null,null,null,null,null,null,null,null,null,null,null,null,null,null,null,null,null,null,null,null,null,null,null,null,null,null,null,null,null,null,null,null,null,null,null,null,null,"Page 23: Provisions costs","0.0%",{"$f":"AB7","v":0}]
[null,null," "]
[null,null," "]
[null,null," "]
[null,null," "]
[null,null," "]
[null,null," "]
[null,null," "]
[null,null," "]
[null,null," "]
[null,null," "]
[null,null," "]
[null,null," "]
[null,null," "]
[null,null," "]
[null,null," "]
[null,null," "]
[null,null," "]
[null,null," "]
[null,null," "]
[null,null," "]
[null,null," "]
[null,null," "]
[null,null," "]
[null,null," "]
[null,null," "]
[null,null," "]
[null,null," "]
[null,null," "]
[null,null," "]
[null,null," "]
[null,null," "]
[null,null," "]
[null,null," "]
[null,null," "]
[null,null," "]
[null,null," "]
[null,null," "]
[null,null," "]
[null,null," "]
[null,null," "]
[null,null," "]
[null,null," "]
[null,null," "]
[null,null," "]
[null,null," "]
[null,null," "]
[null,null," "]
[null,null," "]
[null,null," "]
[null,null," "]
[null,null," "]
[null,null," "]
[null,null," "]
[null,null," "]
[null,null," "]
[null,null," "]
[null,null," "]
[null,null," "]
[null,null," "]
[null,null," "]
[null,null," "]
[null,null," "]
[null,null," "]
[null,null," "]
[null,null," "]
[null,null," "]
[null,null," "]
[null,null," "]
[null,null," "]
[null,null," "]
[null,null," "]
[null,null," "]
[null,null," "]
[null,null," "]
[null,null," "]
[null,null," "]
[null,null," "]
[null,null," "]
[null,null," "]
[null,null," "]
[null,null," "]
[null,null," "]
[null,null," "]
[null,null," "]
[null,null," "]
[]
[]
[]
[]
[]
[]
[]
[]
[]
[]
[]
[]
[]
[]
[]
[]
[]
[]
[]
[]
[]
[]
[]
[]
[]
[]
[]
[]
[]
[]
[]
[]
[]
[]
[]
[]
[]
[]
[]
[]
[]
[]
[]
[]
[]
[]
[]
[]
[]
[]
[]
[]
[]
[]
[]
[]
[]
[]
[]
[]
[]
[]
[]
[]
[]
[]
[]
[]
[]
[]
[]
[]
[]
[]
[]
[]
[]
[]
[]
[]
[]
[]
[]
[]
[]
[]
[]
[]
[]
[]
[]
[]
[]
[]
[]
[]
[]
[]
[]
[]
[]
[]
[]
[]
[]
[]
[]
[]
[]
[]
[]
[]
[]
[]
[]
[]
[]
[]
[]
[]
[]
[]
[]
[]
[]
[]
[]
[]
[]
[]
[]
[]
[]
[]
[]
[]
[]
[]
[]
[]
[]
[]
[]
[]
[]
[]
[]
[]
[]
[]
[]
[]
[]
[]
[]
[]
[]
[]
[]
[]
[]
[]
[]
[]
[]
[]
[]
[]
[]
[]
[]
[]
[]
[]
[]
[]
[]
[]
[]
[]
[]
[]
[]
[]
[]
[]
[]
[]
[]
[]
[]
[]
[]
[]
[]
[]
[]
[]
[]
[null,null,null,null,"Chart Data Template"]
[null,null,null,null,null,null,null,null,null,null,null,null,1,2,3,4,5,6,7,8,9,10,11,12,13,14,15,16,17,18,19,20,21,22,23,24,25,26,27,28,29,30,31,32,33,34,35,36,37,38,39,40,41,42,43,44,45,46,47,48,49,50,51,52,53,54,55,56,57,58,59,60,61,62,63,64,65,66,67,68,69,70,71,72,73,74,75,76,77,78,79,80,81,82,83,84,85,86,87,88,89,90,91,92,93,94,95,96,97,98,99,100,101,102,103,104,105,106,107,108,109,110,111,112,113,114,115,116,117,118,119,120,121,122,123,124,125,126,127,128,129,130,131,132,133,134,135,136,137,138,139,140,141,142,143,144,145,146,147,148,149,150,151,152,153,154,155,156,157,158,159,160,161,162,163,164,165,166,167]
[null,null,null,null,null,"Club Name (Full):","HOPS",null,null,null,"Block:",6,5,44,7,1,50,8]
[null,null,null,null,null,"Number of Charts:",115,null,null,null,"ColNo:",0]
[null,null,null,null,null,"Number of Authorities:",12]
[]
[null,null,null,"Comparators"]
[]
[null,null,null,"Authority","Longname","Tier","Tier2","Comp1","Comp2","Comp3","Comp4","Comp5","Comp6","Comp7","Comp8","Comp9","Comp10","Comp11","Comp12","Comp13","Comp14","Comp15","Comp16","Comp17","Comp18"]
[null,null,null,"St Peters","St Peters",1,null,0,0,0,0,0,0,0,0,0,0,null,null,37433.04800000001,35167.526039086275,22314.585604587741,69494.710269723742,26537.249028013895,19340.221224023509]
[null,null,null,"Christchapel","Christchapel",3,null,0,0,0,0,0,0,0,0,0,0,null,null,7765.0800000000008,5317.227361656719,9040.9297927548159,16269.663204656992,4419.7219881552583,4214.7544596290527]
[null,null,null,"Easthampton","Easthampton",1,null,0,0,0,0,0,0,0,0,0,0,null,null,10788,3479.0188596273201,7742.3040706556731,28099.004231546827,17877.547048414574,4878.0336344304142]
[null,null,null,"Meltrum","Meltrum",4,null,0,0,0,0,0,0,0,0,0,0,null,null,27197.313748669905,31137.981028502683,22140.565949165692,72816.002608456896,14609.561552213552,11459.575288847491]
[null,null,null,"Dimble","Dimble",1,null,0,0,0,0,0,0,0,0,0,0,null,null,7065.7683655189903,5560.9574156770395,7629.2647914211229,23520.854183881231,5502.9699209418113,2887.9928697883252]
[null,null,null,"Plout","Plout",4,null,0,0,0,0,0,0,0,0,0,0,null,null,6344.9017594547067,3503.8738818744732,8044.1715356154637,13114.162981482112,8300.1796536724396,1641.3430239385073]
[null,null,null,"Kinbride","Kinbride",2,null,0,0,0,0,0,0,0,0,0,0,null,null,13063.346304592851,9948.3456632395719,8210.6002012999088,36979.60502700229,8607.9410646715587,6944.7272136392012]
[null,null,null,"Wroughton","Wroughton",4,null,0,0,0,0,0,0,0,0,0,0,null,null,23107.998369235818,15726.411161695316,29711.520056901671,51624.136040373916,18846.353485391755,15730.646562609025]
[null,null,null,"Galbraith","Galbraith",1,null,0,0,0,0,0,0,0,0,0,0,null,null,36633.865500205757,27882.141440077146,15638.650101129713,69086.997715988997,20836.162575510796,8551.8538506574423]
[null,null,null,"Slockton","Slockton",2,null,0,0,0,0,0,0,0,0,0,0,null,null,9440.6314071206943,2851.0703714184524,11823.555364004755,18577.025187685937,3818.6425580689697,5085.7625414204213]
[null,null,null,"Needham","Needham",1,null,0,0,0,0,0,0,0,0,0,0,null,null,4488,3546.6127765663214,6386.8576485123085,8462.0924286707414,4175.3676760224998,940.77462142281138]
[null,null,null,"Mallender","Mallender",2,null,0,0,0,0,0,0,0,0,0,0,null,null,8279.4944241528483,5853.6833589447961,7135.1398660858904,14760.480263535406,7172.1850265217199,3155.3909368299455]
[]
[null,null,null,"ChartData"]
[null,null,null,"(P.01)[01]Application income % handling cost","(P.01)[02] Cost per productive hour of handling applications ","(P.01)[03]Cost per productive hour of planning applications (indirect) ","(P.01)[04]Cost per productive hour of planning policy","(P.01)[05]Cost per productive hour of compliance & delivery "]
[null,null,null,"Summary1","Summary1","Summary1","Summary1","Summary1"]
[null,null,null,"0.0%","$#,##0","$#,##0","$#,##0","$#,##0"]
[null,null,null,0.52908234657778186,52.46841637376378,35.128714668383189,47.861220662815512,36.482553268212357]
[null,null,null,0.8739025230246964,42.662663211276815,37.754095816342854,44.871638590308756,47.407398277529623]
[null,null,null,0.50134654930919886,45.691099551020955,35.980480763531169,46.546795601893301,56.053125227669689]
[null,null,null,0.88000632097313369,43.059780850483023,41.477663466203545,46.568386762031579,48.335696842940365]
[null,null,null,0.62427010439670316,56.123438901084185,46.355637918466037,54.838809581804796,39.265773320202676]
[null,null,null,0.60067863589321557,53.822597926934272,45.715088757542759,47.255968527948873,59.726582347160559]
[null,null,null,0.88290871895382916,54.213229832959996,">max",90.994080183754193,49.453491324459236]
[null,null,null,0.87290633418716168,51.397159161309553,57.35179737014095,74.855079764362401,53.57179091571281]
[null,null,null,0.69098146313601749,66.685772734349925,62.089967217727221,57.427832061431353,56.480376406460813]
[null,null,null,0.30973314012830377,42.485815811804606,31.068637260866318,43.664810257612579,40.533143383426172]
[null,null,null,0.38367350352804808,61.248401515472324,56.948228575524297,82.003211030212455,47.702797417378662]
[null,null,null,0.72588306852515472,54.324977550172029,46.98614579453308,72.833156234792696,39.869246832250482]
[]
[]
[]
[]
[]
[]
[]
[null,null,null,"(P.01)[01]Major non-residential: Total cost per application","(P.01)[02]Major non-residential: Receipt and validation costs per application","(P.01)[03]Major non-residential: Consultation costs per application","(P.01)[04]Major non-residential: Evaluation and negotiation costs per application","(P.01)[05]Major non-residential: Delegated reports and decisions costs per application\n","(P.01)[06]Major non-residential: Committee reports and decisions costs per application","(P.01)[07]Major non-residential: Decision notice and agreements costs per application","(P.01)[08]Major non-residential: Planning appeals costs per application","(P.02)[01]All dwellings: Total cost per application\n\n","(P.02)[02]All dwellings: Receipt and validation costs per application","(P.02)[03]All dwellings: Consultation costs per application","(P.02)[04]All dwellings: Evaluation and negotiation costs per application","(P.02)[05]All dwellings: Delegated reports and decisions costs per application","(P.02)[06]All dwellings: Committee reports and decisions costs per application","(P.02)[07]All dwellings: Decision notice and agreements costs per application","(P.02)[08]All dwellings: Planning appeals costs per application","(P.03)[01]Local non-residential: Total cost per application","(P.03)[02]Local non-residential: Receipt and validation costs per application","(P.03)[03]Local non-residential: Consultation costs per application","(P.03)[04]Local non-residential: Evaluation and negotiation costs per application","(P.03)[05]Local non-residential: Delegated reports and decisions costs per application","(P.03)[06]Local non-residential: Committee reports and decisions costs per application","(P.03)[07]Local non-residential: Decision notice and agreements costs per application","(P.03)[08]Local non-residential: Planning appeals costs per application","(P.04)[01]All Others: Total cost per application","(P.04)[02]All Others: Receipt and validation costs per application","(P.04)[03]All Others: Consultation costs per application","(P.04)[04]All Others: Evaluation and negotiation costs per application","(P.04)[05]All Others: Delegated reports and decisions costs per application","(P.04)[06]All Others: Committee reports and decisions costs per application","(P.04)[07]All Others: Decision notice and agreements costs per application","(P.04)[08]All Others: Planning appeals costs per application","(P.05)[01]Householders: Total cost per application","(P.05)[02]Householders: Receipt and validation costs per application","(P.05)[03]Householders: Consultation costs per application","(P.05)[04]Householders: Evaluation and negotiation costs per application","(P.05)[05]Householders: Delegated reports and decisions costs per application","(P.05)[06]Householders: Committee reports and decisions costs per application","(P.06)[01]Heritage: Total cost per application","(P.06)[02]Heritage: Receipt and validation costs per application","(P.06)[03]Heritage: Consultation costs per application","(P.06)[04]Heritage: Evaluation and negotiation costs per application","(P.06)[05]Heritage: Delegated reports and decisions costs per application","(P.06)[06]Heritage: Committee reports and decisions costs per application"]
[null,null,null,"CostApp2","CostApp2","CostApp2","CostApp2","CostApp2","CostApp2","CostApp2","CostApp2","CostApp2","CostApp2","CostApp2","CostApp2","CostApp2","CostApp2","CostApp2","CostApp2","CostApp2","CostApp2","CostApp2","CostApp2","CostApp2","CostApp2","CostApp2","CostApp2","CostApp2","CostApp2","CostApp2","CostApp2","CostApp2","CostApp2","CostApp2","CostApp2","CostApp2","CostApp2","CostApp2","CostApp2","CostApp2","CostApp2","CostApp2","CostApp2","CostApp2","CostApp2","CostApp2","CostApp2"]
[null,null,null,"$#,##0","$#,##0","$#,##0","$#,##0","$#,##0","$#,##0","$#,##0","$#,##0","$#,##0","$#,##0","$#,##0","$#,##0","$#,##0","$#,##0","$#,##0","$#,##0","$#,##0","$#,##0","$#,##0","$#,##0","$#,##0","$#,##0","$#,##0","$#,##0","$#,##0","$#,##0","$#,##0","$#,##0","$#,##0","$#,##0","$#,##0","$#,##0","$#,##0","$#,##0","$#,##0","$#,##0","$#,##0","$#,##0","$#,##0","$#,##0","$#,##0","$#,##0","$#,##0","$#,##0"]
[null,null,null,"na","..","..","..","..","..","..","..",1666.4418405718438,158.83804674074852,395.8026889446096,336.03538899073828,380.90203864802345,324.60133000974412,32.785607869717332,37.476739368262471,1471.0454850779361,164.87110071786665,281.13633215130091,294.14902978078965,382.94882714505366,227.61699997553885,34.803784130981242,85.5194111764051,429.52179318287267,69.609453865533027,114.65279679930153,65.25036478823813,86.28632445614133,83.104702986418587,10.497794023286795,0.12035626395322527,551.03692258161459,130.10072681630047,47.30816270080264,135.98846090929288,175.90109167673734,26.943824730083328,511.52334899234768,51.692556664743435,249.51813933893877,91.853576750221251,105.47650929981199,8.8864239930745157]
[null,null,null,"na","..","..","..","..","..","..","..",921.59196183073004,118.27447302444517,177.78586742661332,216.67476822728798,309.5815006227524,74.195712839282592,24.079639690348934,0,1460.0164085138083,138.16791403011936,388.74448753235288,203.18612159592675,590.84160094369179,66.249629802323881,42.903606601234515,29.923048008159512,222.09575714932294,69.832761592425499,41.108239293221054,15.965010724241306,88.144466081609636,0,7.0452794578254183,0,397.40817910213349,74.436662100709711,61.267036836841498,96.922873778016793,139.96665603145948,0.32145490706671054,193.21913486132146,19.781677275877868,37.084531518937155,55.62668451059551,72.165016097971431,0]
[null,null,null,"na","..","..","..","..","..","..","..",932.40340083223793,134.44433864137486,234.89879984577775,232.76107506041348,215.48325656211816,75.669339227063332,37.430517066195662,1.7160744292946197,1270.5499906903001,78.166122938494325,258.17155580285424,217.7953680254972,275.18902484007577,376.835847834562,41.72723316456041,22.664838084259376,296.0380645786401,35.5169784748674,77.194159028193368,81.895536967278105,57.494179450770424,36.325184030178043,7.1613687635902306,0.45065786376249384,386.65690922795415,66.668161272959509,70.507977780911972,64.912558581197146,111.93155033537863,0,233.58562113161474,77.015006911734872,71.031216159506499,6.173265940260543,74.291101988802524,0]
[null,null,null,20502.273213628243,1659.0459579778415,1405.423660665022,3829.2643193093054,623.28794119550014,5875.1742042133692,1339.0879330738123,5770.9891971933921,3334.7513036463993,193.15334746347639,762.56218992696131,695.24774028906859,457.89563625525443,828.76306804408057,142.16644018238986,254.9628814851682,777.25584154128421,169.63448096286203,60.513206232064199,93.286591828309056,175.26581532954245,126.71154747929823,3.8776901625212461,147.96650954668698,188.62739316187808,48.571560222089381,2.6299353499596618,30.089121142442888,45.856020730010506,48.433985054257278,3.3126120009266486,9.7341586621917298,255.43232357513469,54.489707442739217,0.32818110933556849,77.353450470417528,95.280104206425904,5.3446239830068007,314.54831344817319,36.050910489834173,5.581002990899405,84.776559787367432,137.66969777865185,32.009471024563048]
[null,null,null,"na","..","..","..","..","..","..","..",1266.607136868741,78.697038521567293,183.57141987816874,350.93905495982739,379.94510943949024,94.360454252627363,63.603271401766776,115.49078841529324,763.8779577165102,85.012845978624924,237.18952174037346,128.35167007710029,226.65577723041909,49.282249275818309,14.131110240406546,23.254783173767596,123.84779365219318,19.171086438625284,37.913153314247317,15.9627818913558,38.442229043660461,11.358542964304263,0,0,571.49334058125316,86.281615163090933,52.078653110229688,122.67297436690518,307.58617665423321,2.8739212867940993,295.26028027965742,5.6999426173203975,7.0748226354039252,63.183581417973514,158.17107022314102,0]
[null,null,null,"na","..","..","..","..","..","..","..",3430.1106322295973,67.217305368036023,350.99312017163464,1124.661286926297,651.33174048496073,663.04213233375947,109.5246785474428,463.34036839746659,938.65927111297026,141.36076988085361,227.96214087999499,213.78597253725405,221.05136085268083,113.26948633961111,21.22954062257563,0,742.2546460996607,123.78666683245436,66.256028630566576,72.69212562332973,31.935531253362974,323.14043198611267,84.178414859815732,40.26544691401876,473.30911507228461,184.18981235665456,60.59718048175354,107.66678377334652,106.57139605673174,0,785.81193972074175,58.371962144614812,96.634465124286606,578.9945613748713,37.907858515624028,0]
[null,null,null,6955.5132409190128,676.0405818328253,3207.7438369824836,146.10309258916573,35.643456773439183,997.90417766430653,0,1892.078095076793,2413.9717496990943,222.57567253162946,679.49334418688295,388.17176567798055,271.42052727366831,665.92609885988679,19.259142228185397,167.125198940861,944.92131884746414,174.243380683449,229.41994519026065,100.68023859275559,226.61047645984846,125.55546830551846,12.92136018557497,75.490449430057012,319.1745641090892,42.163076729128505,163.95246287834678,3.841395577863246,39.02107733642719,39.890011484982871,18.106647613449191,12.199892488891381,355.83771930702562,164.24636895921302,19.604378370151345,63.64736542990962,99.696843594738553,7.0330194245362548E-2,289.18367999170505,32.696887652701463,124.49228828440492,25.142223458389129,97.828517891206431,8.7181745871097611]
[null,null,null,8184.5195802772796,348.10790895426965,2328.4115485797611,2600.5131711373947,1758.8777850297561,298.56383474454799,815.43251057730686,32.612821254241325,1823.9007387914755,110.7173201613719,460.37256170189033,271.94311292628583,342.48541129031224,325.07114525462578,165.02461017027633,148.28657728671331,752.17302018839928,165.02894330562955,144.16681933972458,121.16750320704701,217.19629010040248,55.045663141578629,23.614083355504448,26.953717738512395,389.71573904009989,81.034352507284979,90.900892742298808,56.602323503129533,69.807065013162017,0.54537790900629091,40.872383164145532,49.953344201072753,478.73836470572633,183.77846497807528,32.946483135138195,101.42562158387578,129.24027446918299,1.696931528909005,413.31115919321832,49.540835041136333,30.273103515163555,68.482795801437561,188.0707570222493,21.491938187005047]
[null,null,null,27243.326636680256,488.80395737272283,10525.490973340244,3395.0926947546759,132.46344660151811,7974.9808318895548,389.74828022593192,4336.7464524956067,1690.4301886792703,153.36151113034867,461.07609970687082,317.78506616915246,283.75884049652024,154.74016060647008,132.03873270810757,187.66977786180067,1500.9691976954609,158.981483885925,400.7337961196169,262.20739951617009,268.49464090431519,201.84431107586769,45.170634713752115,163.53693147981414,152.8545045531479,44.918280611083929,46.508507328142855,16.300504004700542,16.694994015185483,18.446151838997363,6.5834338045871199,3.4026329504506254,405.23000612700866,66.300464178094998,34.30414166156001,70.410850357939651,124.03639281417,3.089245369611092,507.23638583232804,39.165847972063688,63.958894832578935,222.91457512007085,164.08391110109096,0]
[null,null,null,"na","..","..","..","..","..","..","..",2104.198042692226,183.50510869122485,650.83060019887262,449.66793414420783,646.55486749592205,30.231524304554402,86.604516038425487,57.803491819018582,1239.5247467233778,164.10075831706061,206.21956168068394,153.40585101371792,179.57748095744131,499.47781572687609,32.485703121763088,4.2575759058349254,247.96638660312792,11.988684565708331,56.575391979641672,71.036579921312395,73.424992985594102,18.369051256491687,0,16.571685894379723,742.34274137069963,43.822805131669398,226.54951475354045,144.36039964414562,300.16192590417307,6.5282335022109139,569.65629865442475,91.178130801674328,8.3422767918558627,29.617341290026513,440.51854977086805,0]
[null,null,null,"na","..","..","..","..","..","..","..",1438.819987845779,175.79546766994645,279.06742999299541,391.10450056142145,452.63293297033408,56.879787759082248,53.247003450523202,30.092865441476061,1329.2604203309177,171.88560141449608,355.34129760874129,241.89399618996831,439.14356273794039,105.35577461807208,15.640187761699487,0,866.25844603761936,103.9445400075804,331.61237301154898,106.8123529377811,182.05896875492829,109.34529540175396,31.484915924026527,0,431.21498248528025,135.74327019046075,14.510702243695544,91.367980914223281,144.48333823564246,0,148.5382958720175,36.233501810984414,30.545103644054173,7.9929075836211858,49.168126828398258,0]
[null,null,null,"na","..","..","..","..","..","..","..",1589.3400444852318,119.99112077545371,485.09051457169386,394.076888417693,240.90163459525019,187.7325639150431,56.174637140144824,106.37268506995284,1470.9312707417409,63.58915348040933,888.90602956840371,285.85950207209396,200.80972087722472,5.2821455646907189,16.282614911903455,10.202104267015065,1229.6770369836079,27.52387034334345,1101.543171610735,0,49.200317644605136,0,51.409677384924215,0,267.87213705733615,93.227174162515013,2.4820955895848007,71.534783654953131,98.697461979569042,0,460.26321291618581,25.707545422366746,392.08493929770827,6.0849840166205658,37.385744179490203,0]
[]
[]
[]
[]
[]
[]
[]
[null,null,null,"(P.01)[01]Handling applications cost per hour","(P.01)[02]Direct staff cost per hour","(P.01)[03]Overhead charges cost per hour\n","(P.01)[04]Other direct costs per hour\n","(P.01)[05]Away from work Overhead charges (as % of staff costs)\n","(P.01)[06]Other Generic Overhead charges (as % of staff costs)\n","(P.01)[07]Management Overhead charges (as % of staff costs)\n"]
[null,null,null,"Costphour","Costphour","Costphour","Costphour","Costphour","Costphour","Costphour"]
[null,null,null,"$#,##0","$#,##0","$#,##0","$#,##0","0.0%","0.0%","0.0%"]
[null,null,null,52.46841637376378,20.540980397926834,29.927283741796234,2.0001522340407125,0.30443139457084312,0.37490890934312682,0.77761467885874835]
[null,null,null,42.662663211276815,22.619838245616513,16.284296025583863,3.7585289400764337,0.25446744372774266,0.30680523278921873,0.15863945763543849]
[null,null,null,45.691099551020955,24.543692075953512,15.901669982544002,5.2457374925234408,0.19160620202549064,9.8141190761658073E-2,0.35814494278055264]
[null,null,null,43.059780850483023,25.138957158126154,17.03181581385406,0.88900787850281915,0.20974873762832816,0.38560572640381563,8.2152391432166391E-2]
[null,null,null,56.123438901084185,22.498800250317991,32.718379046699283,0.90625960406692163,0.18426263513269145,0.53641415531058911,0.73355093204324806]
[null,null,null,53.822597926934272,25.876122668230611,20.61089462455724,7.3355806341464156,0.22561783064810068,0.43213403751749047,0.13876988622623854]
[null,null,null,54.213229832959996,24.502858787657864,28.082663016618532,1.6277080286835988,0.23081560897570663,0.65028245717460442,0.26499934476746406]
[null,null,null,51.397159161309553,22.816744847386861,28.580414313922692,0,0.20914438336477292,0.73968836445350206,0.30377425221994159]
[null,null,null,66.685772734349925,23.956227144271519,31.642075800915418,11.087469789162983,0.31451076048430604,0.49327401359838702,0.51304406972302974]
[null,null,null,42.485815811804606,23.057012943835876,14.745598796217287,4.6832040717514491,0.2021390611033102,0.22245814685937068,0.2149305067562986]
[null,null,null,61.248401515472324,21.028325027164957,38.005494201719927,2.2145822865874503,0.23866419383965684,0.58090909766837884,0.98777437658361733]
[null,null,null,54.324977550172029,23.177984312961399,25.185127604870939,5.9618656323396877,0.24199495759536419,0.32921640581722372,0.51538561002600047]
[]
[]
[]
[]
[]
[]
[]
[null,null,null,"(P.01)[01]Total Cost of Basket\n"]
[null,null,null,"Basket"]
[null,null,null,"£#,##0.0\"m\""]
[null,null,null,1.9539481442573274]
[null,null,null,1.4558383064748881]
[null,null,null,1.4036996940786981]
[null,null,null,2.0142604540813109]
[null,null,null,1.4265345889292236]
[null,null,null,2.3506523830044443]
[null,null,null,1.6935815407674262]
[null,null,null,1.518169154617582]
[null,null,null,1.9783702901830729]
[null,null,null,2.1434931213486057]
[null,null,null,1.6188637210245429]
[null,null,null,1.682565800463719]
[]
[]
[]
[]
[]
[]
[]
[null,null,null,"(P.01)[01]Applications valid on receipt: All dwellings","(P.01)[02]Applications valid on receipt: Local non-residential","(P.01)[03]Applications valid on receipt: Householders","(P.01)[04]Applications valid on receipt: Electricity","(P.01)[05]Applications valid on receipt: All others","(P.02)[01]Applications withdrawn: All dwellings","(P.02)[02]Applications withdrawn: Local non-residential","(P.02)[03]Applications withdrawn: Householders","(P.02)[04]Applications withdrawn: Electricity","(P.02)[05]Applications withdrawn: All others","(P.03)[01]Zero fee applications: All dwellings","(P.03)[02]Zero fee applications: Local non-residential","(P.03)[03]Zero fee applications: Householders","(P.03)[04]Zero fee applications: Electricity","(P.03)[05]Zero fee applications: All others","(P.04)[01]Pre-application advice: All dwellings","(P.04)[02]Pre-application advice: Local non-residential","(P.04)[03]Pre-application advice: Householders","(P.04)[04]Pre-application advice: All others","(P.05)[01]Delegation rate: Major non-residential","(P.05)[02]Delegation rate: All dwellings","(P.05)[03]Delegation rate: Local non-residential","(P.05)[04]Delegation rate: Householders","(P.06)[01]% Granted: Major non-residential","(P.06)[02]% Granted: All dwellings","(P.06)[03] % Granted: Local non-residential","(P.06)[04]% Granted: Householders","(P.07)[01]Overturn rate: Major non-residential","(P.07)[02]Overturn rate: All dwellings","(P.07)[03]Overturn rate: Local non-residential","(P.07)[04]Overturn rate: Householders","(P.08)[01]Appeal rate: Major non-residential","(P.08)[02]Appeal rate: All dwellings","(P.08)[03]Appeal rate: Local non-residential","(P.08)[04]Appeal rate: Householders","(P.09)[01]Appeals allowed rate: Major non-residential","(P.09)[02]Appeals allowed rate: All dwellings","(P.09)[03]Appeals allowed rate: Local non-residential","(P.09)[04]Appeals allowed rate: Householders","(P.10)[01]Cost per appeal","(P.11)[01]Average end-to-end weeks: Major non-residential","(P.11)[02]Average end-to-end weeks: All dwellings","(P.11)[03]Average end-to-end weeks: Local non-residential","(P.11)[04]Average end-to-end weeks: Householders","(P.11)[05]Average end-to-end weeks: All others","(P.12)[01]Enforcement action","(P.12)[02]Notices served","(P.12)[03]Enforcement appeals upheld","(P.13)[01]Cost per allegation received","(P.13)[02]Cost per enforcement appeal"]
[null,null,null,"Performance","Performance","Performance","Performance","Performance","Performance","Performance","Performance","Performance","Performance","Performance","Performance","Performance","Performance","Performance","Performance","Performance","Performance","Performance","Performance","Performance","Performance","Performance","Performance","Performance","Performance","Performance","Performance","Performance","Performance","Performance","Performance","Performance","Performance","Performance","Performance","Performance","Performance","Performance","Performance","Performance","Performance","Performance","Performance","Performance","Performance","Performance","Performance","Performance","Performance"]
[null,null,null,"0.0%","0.0%","0.0%","0.0%","0.0%","0.0%","0.0%","0.0%","0.0%","0.0%","0.0%","0.0%","0.0%","0.0%","0.0%","0.0%","0.0%","0.0%","0.0%","0.0%","0.0%","0.0%","0.0%","0.0%","0.0%","0.0%","0.0%","0.0%","0.0%","0.0%","0.0%","0.0%","0.0%","0.0%","0.0%","0.0%","0.0%","0.0%","0.0%","$#,##0","#,##0","#,##0","#,##0","#,##0","#,##0","0.0%","0.0%","0.0%","$#,##0","$#,##0"]
[null,null,null,0.16056910569105692,0.19104477611940299,0.25206611570247933,0,0.33471074380165289,6.910569105691057E-2,6.2686567164179099E-2,2.8925619834710745E-2,"na",5.7851239669421489E-2,0.16056910569105692,0.15820895522388059,0.22727272727272727,0.2,0.52066115702479343,0.53861788617886175,0.62089552238805967,0.1756198347107438,5.3719008264462811E-2,1,7.3369565217391311E-2,7.9310344827586213E-2,6.5502183406113534E-3,1,0.94836956521739135,0.91034482758620694,0.84061135371179041,0,2.1739130434782608E-2,6.8965517241379309E-3,0,0,3.8043478260869568E-2,1.7241379310344827E-2,1.3100436681222707E-2,"..",7.1428571428571425E-2,0.4,0,1755.1764702069213,22.571428571428573,12.291925465838508,9.9990147783251224,6.4803493449781655,5.7172011661807582,4.1666666666666664E-2,1,0,308.20176939964028,347.29584223752386]
[null,null,null,0.47413793103448276,0.25242718446601942,0.40490797546012269,0.625,0.42222222222222222,0.13793103448275862,1.9417475728155338E-2,3.6809815950920248E-2,0.25,0.13333333333333333,6.8965517241379309E-2,8.7378640776699032E-2,0.14723926380368099,0.125,0.28888888888888886,0.94827586206896552,1,0.95705521472392641,0.77777777777777779,0.5,0.97959183673469385,0.9263157894736842,0.99290780141843971,1,0.91836734693877553,0.98947368421052628,0.97872340425531912,0,0,1.0526315789473684E-2,0,0,3.0612244897959183E-2,4.2105263157894736E-2,1.4184397163120567E-2,"..",0.66666666666666663,1,0.5,313.44710680073825,21.5,11.925655976676385,12.607518796992482,6.8601823708206684,9.1703296703296697,0.53793103448275859,0.44871794871794873,0,127.18127999714243,368.31199933101232]
[null,null,null,0.16744186046511628,0.1377245508982036,0.30476190476190479,0.2857142857142857,0.60457516339869277,9.7674418604651161E-2,2.3952095808383235E-2,4.2857142857142858E-2,"na",6.2091503267973858E-2,5.1162790697674418E-2,8.3832335329341312E-2,9.0476190476190474E-2,0.14285714285714285,0.77124183006535951,0.8,1,0.85238095238095235,8.8235294117647065E-2,"..",1,0.98496240601503759,1,"..",0.98013245033112584,0.98496240601503759,1,"na",0,7.5187969924812026E-3,0,"..",3.3112582781456956E-2,0,2.7322404371584699E-3,1,0.5,"..",1,2087.9852876521818,"..",14.069063386944181,11.876476906552096,8.9484777517564407,6.8222996515679446,0.40476190476190477,0.23529411764705882,0,359.84678345252053,0]
[null,null,null,0.62992125984251968,0.61449275362318845,0.61267605633802813,0,0.68298109010011121,0.12598425196850394,8.1159420289855067E-2,4.6277665995975853E-2,"na",3.6707452725250278E-2,0.17322834645669291,0.15362318840579711,0.22334004024144868,0,0.58843159065628481,"..","..",0,0,0.42857142857142855,0.90361445783132532,0.94202898550724634,0.98434004474272929,0.8571428571428571,0.6506024096385542,0.82608695652173914,0.74832214765100669,0,0,1.0869565217391304E-2,1.1185682326621924E-3,0.2857142857142857,9.6385542168674704E-2,5.434782608695652E-2,1.3422818791946308E-2,1,0.25,0,0.25,2599.1075465264439,21.020408163265305,15.060240963855422,11.844720496894411,8.2988175135826143,8.3541959023294972,0.50666666666666671,0.52631578947368418,0.2,823.97093854067487,1594.6790814966746]
[null,null,null,0.24305555555555555,0.18090452261306533,0.24789915966386555,0,0.71159029649595684,0.10416666666666667,2.5125628140703519E-2,2.100840336134454E-2,"na",8.0862533692722376E-3,0.15277777777777779,9.5477386934673364E-2,0.13025210084033614,0.2,0.74932614555256061,0,0,0,0,0,0.93693693693693691,0.96045197740112997,0.98550724637681164,1,0.87387387387387383,0.96610169491525422,0.97584541062801933,0,1.8018018018018018E-2,5.6497175141242938E-3,4.830917874396135E-3,1,0.10810810810810811,0,9.6618357487922701E-3,0,0.33333333333333331,"..",0.5,1282.9898773580458,16,16.570141570141569,12.799031476997579,7.7135955831608012,7.4709918902058643,0,"..",0,289.29476777698039,696.52496931209316]
[null,null,null,0.34883720930232559,0.45238095238095238,0.47651006711409394,0,0.57777777777777772,0.27906976744186046,0.11904761904761904,4.6979865771812082E-2,1,"na",0.18604651162790697,0.10714285714285714,0.12751677852348994,0,0.1111111111111111,0.44186046511627908,0.25,0.25503355704697989,4.4444444444444446E-2,1,0.76666666666666672,0.9726027397260274,0.98461538461538467,1,0.9,0.95890410958904104,0.98461538461538467,0,3.3333333333333333E-2,0,1.5384615384615385E-2,0,0.23333333333333334,2.7397260273972601E-2,0,"..",0.8571428571428571,0.5,"..",2415.0645502468788,12.428571428571429,14.528571428571428,9.4833659491193742,6.7934065934065933,7.0779220779220777,0.29508196721311475,0,"..",94.056988541965993,".."]
[null,null,null,0.29104477611940299,0.25249169435215946,0.4181459566074951,0.125,0.56826568265682653,0.13432835820895522,7.6411960132890366E-2,5.5226824457593686E-2,0.125,1.107011070110701E-2,0.11940298507462686,8.9700996677740868E-2,0.11242603550295859,0.25,0.40959409594095941,0.5074626865671642,5.3156146179401995E-2,4.5364891518737675E-2,8.1180811808118078E-2,0,0.80232558139534882,0.93089430894308944,0.98938428874734607,1,0.91860465116279066,0.97154471544715448,0.97664543524416136,0,2.3255813953488372E-2,8.130081300813009E-3,0,0,4.6511627906976744E-2,0,2.5477707006369428E-2,"..",0.25,"..",0.58333333333333337,2739.3951198088862,13.619047619047619,17.692691029900335,14.657375145180024,10.805580831058538,6.6467633928571432,0.18120805369127516,0,0,180.36563880475646,1584.1104098451328]
[null,null,null,0.41714285714285715,0.31160896130346233,0.42778793418647165,0.2,0.56417910447761199,8.5714285714285715E-2,9.368635437881874E-2,0.12248628884826325,0.6,8.0597014925373134E-2,0.48571428571428571,0.25458248472505091,0.32541133455210236,0,0.23582089552238805,0.26857142857142857,0.13238289205702647,0.11151736745886655,2.6865671641791045E-2,1,0.96825396825396826,0.9899749373433584,0.98927038626609443,0.75,0.44444444444444442,0.71679197994987465,0.80901287553648071,0.125,3.968253968253968E-2,2.0050125313283207E-2,4.2918454935622317E-3,0,2.3809523809523808E-2,3.007518796992481E-2,8.5836909871244635E-3,"..",0.66666666666666663,0.41666666666666669,0.25,2333.949301341067,20.982142857142858,9.9625850340136051,11.049409237379162,8.7164316370324961,8.875,1,9.4339622641509441E-2,0.4,441.53177055167231,4489.1071789177513]
[null,null,null,0.36598890942698709,0.30201342281879195,0.37406015037593987,0.4642857142857143,0.47002606429192006,6.839186691312385E-2,7.3825503355704702E-2,3.3834586466165412E-2,"na",2.2589052997393572E-2,0.12939001848428835,0.1319910514541387,0.16353383458646617,0.35714285714285715,0.33362293657688968,0.33641404805914971,0.32885906040268459,0.88345864661654139,3.8227628149435276E-2,0,0.97011494252873565,0.97599999999999998,0.99473684210526314,1,0.9149425287356322,0.90666666666666662,0.94736842105263153,0,0,0,0,0.25,2.528735632183908E-2,5.3333333333333332E-3,1.3157894736842105E-2,0,0.27272727272727271,0.5,0.6,11362.580520946605,15.964285714285714,19.573399014778325,11.526857142857143,7.9372180451127816,6.7033476963871399,0.43902439024390244,0.40740740740740738,"..",208.77867072833556,".."]
[null,null,null,0.45348837209302323,0.33333333333333331,0.53749999999999998,0.2,0.45454545454545453,0.18604651162790697,5.3333333333333337E-2,"na",0.2,0.12121212121212122,5.8139534883720929E-2,0.10666666666666667,6.25E-2,0,0.27272727272727271,0.32558139534883723,0.49333333333333335,0.17499999999999999,0.51515151515151514,"..",1,0.98550724637681164,1,"..",0.96721311475409832,0.98550724637681164,0.96153846153846156,"na",0,0,0,"..",8.1967213114754092E-2,1.4492753623188406E-2,1.282051282051282E-2,"..",0.2,0,0,997.74790264681928,"..",7.5433255269320849,8.1677018633540364,6.1208791208791213,6.1314285714285717,0,"..","..",128.62719541786839,".."]
[null,null,null,0.33870967741935482,0.21875,0.36842105263157893,0.2,0.46938775510204084,0.14516129032258066,6.25E-2,"na","na","na",9.6774193548387094E-2,0,0.12280701754385964,0.2,0.40816326530612246,0,0,0,0,"..",0.98039215686274506,0.9642857142857143,0.98113207547169812,"..",0.88235294117647056,0.9642857142857143,0.94339622641509435,"na",0,3.5714285714285712E-2,0,"..",3.9215686274509803E-2,0,0,"..",1,"..","..",2337.1309704246419,"..",11.364145658263306,9.479591836734695,8.6684636118598384,8.7267080745341623,0.10526315789473684,0.75,"..",327.48821242821265,".."]
[null,null,null,0.375,0.23376623376623376,0.49468085106382981,"..",0.5625,0.15277777777777779,3.896103896103896E-2,6.9148936170212769E-2,"na",4.6875E-2,9.7222222222222224E-2,5.1948051948051951E-2,7.4468085106382975E-2,"..",0.25,0,0,0,0,0,0.95744680851063835,1,0.9939393939393939,1,0.87234042553191493,0.96923076923076923,0.98787878787878791,0,0,0,0,1,0.25531914893617019,4.6153846153846156E-2,6.0606060606060606E-3,0.2857142857142857,0.25,0,0,349.31594736517002,0,9.5714285714285712,10.015384615384615,6.5255411255411255,5.6809523809523812,0,"..","..",384.70443959984118,".."]
[]
[]
[]
[]
[]
[]
[]
[null,null,null,"(P.01)[01]Total non-staff costs","(P.01)[02]Indirect staff costs","(P.01)[03]Expertise and advice costs","(P.01)[04]Legal costs","(P.01)[05]ICT costs","(P.01)[06]Other support services costs","(P.01)[07]All other costs","(P.01)[08]Provisions costs"]
[null,null,null,"App3","App3","App3","App3","App3","App3","App3","App3"]
[null,null,null,"0%","0%","0%","0.0%","0.0%","0%","0%","0.0%"]
[null,null,null,0.30134533050658596,0.12859618824520805,6.4982116400504062E-3,0,0,7.5208249455109705E-2,6.491303015043616E-2,2.6129651015781633E-2]
[null,null,null,0.20508727854567516,3.4270273493048166E-4,8.8848857204198942E-3,1.9039040829471204E-3,0,0,0.19395578600737767,0]
[null,null,null,0.3526853534502416,1.4785474096578887E-2,0,3.2207848032038085E-2,2.7593273313997541E-2,0.16358196500482503,0.11574106792799652,0]
[null,null,null,0.13094881833145572,1.1329805335680767E-3,1.8449210039858544E-2,2.3157203473266431E-2,2.0018541184327839E-2,2.2085465130702035E-2,4.6105417969732804E-2,0]
[null,null,null,0.69391320522027533,0.18075952422336081,0,0,6.7177740265382258E-2,0.11905707081187152,0.3256017987529306,1.317071166730085E-3]
[null,null,null,0.27611343286043338,4.9135361260383599E-3,1.8152786243419497E-2,0.10564102670982474,1.3648711461217667E-2,3.8352879206021644E-2,0.10373020710525428,0]
[null,null,null,0.83683501254531878,4.5862747993509227E-3,7.9597104989526698E-4,0.10756575563050901,8.8648370678253624E-2,0.53165637126106713,0.11574261516588384,0]
[null,null,null,0.67398338413998282,0.14292322026101983,0,3.1655721512358112E-2,0.16985420721929465,0.16442076248209886,0.16512947266521136,0]
[null,null,null,0.43554528531679254,7.82596919021189E-3,7.3142712046980363E-2,7.2239715601955913E-3,3.973184358107576E-2,0.176987303224792,0.13364347386361847,0]
[null,null,null,0.25426137368956081,8.5405743470083242E-2,1.4994901525281792E-2,2.9337850810333941E-2,0,4.4332752335615733E-2,0.13756192268845469,1.3039044804592861E-3]
[null,null,null,0.25110104816306128,0,5.3482138244458986E-2,7.4682265116136431E-2,0,0,0.12293664480246587,0]
[null,null,null,0.5422251586790231,0.11237007082956989,0.12819684136894594,1.8833856941857487E-2,2.2315746460520217E-2,9.591022946861881E-2,0.16459841360951083,0]